Workbook

Sheet MASTER DATA
B3: fo|ky; dk uke | C3: jktdh; vkn'kZ mPp ek/;fed fo|ky; bUnjokM+k ] ia-l-& jkuh ] ikyh
B4: fo|ky; dk uke | C4: jk-m-ek-fo- bUnjokM+k | E4: l=~ %& | F4: 2019 | G4: & | H4: 20 | I4: ekg %& | J4: =AC5 -> tqykbZ&2019
B5: ftyk | C5: ikyh | O5: ije~ iwT; xq:nso oklqnso th egkjkt dks ueu | AC5: =IF(AND(C20=""),"",IF(AND(C20=AE8),AF8,IF(AND(C20=AE9),AF9,IF(AND(C20=AE10),AF10,IF(AND(C20=AE11),AF11,IF(AND(C20=AE12),AF12,IF(AND(C20=AE13),AF13,IF(AND(C20=AE14),AF14,IF(AND(C20=AE15),AF15,IF(AND(C20=AE16),AF16,IF(AND(C20=AE17),AF17,IF(AND(C20=AE18),AF18,IF(AND(C20=AE19),AF19))))))))))))) -> tqykbZ&2019
B6: ikbZbZvks@uksMy Ldwy dk uke | C6: jkmekfo ua- 02 jkuh | V6: HEERALAL JAT
B7: laLFkk iz/kku | C7: feJhyky | E7: d{kk | F7: dqy ukekadu
F8: SC | H8: ST | J8: OBC | L8: GEN | N8: TOTAL | AB8: tuojh | AC8: January | AD8: =H4 -> 20 | AE8: =CONCATENATE(AC8,"-",AD8) -> January-20 | AF8: =CONCATENATE(AB8,"&",AD8) -> tuojh &20
B9: iks"kkgkj izHkkjh | C9: vtqZuflag | F9: B | G9: G | H9: B | I9: G | J9: B | K9: G | L9: B | M9: G | N9: B | O9: G | P9: T | AB9: Qjojh | AC9: Febuary | AD9: =AD8 -> 20 | AE9: =CONCATENATE(AC9,"-",AD9) -> Febuary-20 | AF9: =CONCATENATE(AB9,"&",AD9) -> Qjojh&20
B10: laLFkk iz/kku eks-u- | C10: 9929247227 | E10: izFke | F10: 2 | G10: 5 | H10: 5 | I10: 4 | J10: 3 | K10: 6 | L10: 5 | M10: 6 | N10: =F10+H10+J10+L10 -> 15 | O10: =G10+I10+K10+M10 -> 21 | P10: =N10+O10 -> 36 | AB10: ekpZ | AC10: March | AD10: =AD9 -> 20 | AE10: March-20 | AF10: ekpZ&20
B11: iks"kkgkj izHkkjh eks-u- | C11: 9929247228 | E11: f}rh; | F11: 12 | G11: 11 | H11: 10 | I11: 9 | J11: 8 | K11: 10 | L11: 8 | M11: 7 | N11: =F11+H11+J11+L11 -> 38 | O11: =G11+I11+K11+M11 -> 37 | P11: =N11+O11 -> 75 | AB11: vizsy | AC11: April | AD11: =F4 -> 2019 | AE11: April-2019 | AF11: vizsy&2019
B12: DISE Code | C12: 8200303101 | E12: r`rh; | F12: 8 | G12: 9 | H12: 2 | I12: 8 | J12: 23 | K12: 20 | L12: 11 | M12: 4 | N12: 44 | O12: 41 | P12: 85 | AB12: ebZ | AC12: May | AD12: 2019 | AE12: May-2019 | AF12: ebZ&2019
B13: M.D.M. Code | C13: 1009 | E13: prqFkZ | F13: 8 | G13: 9 | H13: 7 | I13: 6 | J13: 7 | K13: 8 | L13: 9 | M13: 5 | N13: 31 | O13: 28 | P13: 59 | AB13: twu | AC13: June | AD13: 2019 | AE13: June-2019 | AF13: twu&2019
B14: xzke dk uke | C14: bUnjokM+k | E14: iape~ | F14: 3 | G14: 6 | H14: 9 | I14: 4 | J14: 3 | K14: 2 | L14: 1 | M14: 6 | N14: 16 | O14: 18 | P14: 34 | AB14: tqykbZ | AC14: July | AD14: 2019 | AE14: July-2019 | AF14: tqykbZ&2019
B15: xzke iapk;r dk uke | C15: bUnjokM+k | E15: ;ksx | F15: =SUM(F10:F14) -> 33 | G15: =SUM(G10:G14) -> 40 | H15: 33 | I15: 31 | J15: 44 | K15: 46 | L15: 34 | M15: 28 | N15: 144 | O15: 145 | P15: 289 | AB15: vxLr | AC15: August | AD15: 2019 | AE15: August-2019 | AF15: vxLr&2019
B16: CykWd@lfefr | C16: jkuh | E16: "k"Ve~ | F16: 4 | G16: 5 | H16: 6 | I16: 7 | J16: 8 | K16: 9 | L16: 8 | M16: 9 | N16: =F16+H16+J16+L16 -> 26 | O16: =G16+I16+K16+M16 -> 30 | P16: =N16+O16 -> 56 | AB16: flrEcj | AC16: September | AD16: 2019 | AE16: September-2019 | AF16: flrEcj&2019
B17: school Type | C17: Government | E17: lIre~ | F17: 15 | G17: 14 | H17: 13 | I17: 12 | J17: 11 | K17: 10 | L17: 11 | M17: 10 | N17: 50 | O17: 46 | P17: 96 | AB17: vDVqcj | AC17: October | AD17: 2019 | AE17: October-2019 | AF17: vDVqcj&2019
B18: {ks= | C18: Rural | E18: v"Ve~ | F18: 9 | G18: 8 | H18: 5 | I18: 14 | J18: 3 | K18: 3 | L18: 3 | M18: 10 | N18: 20 | O18: 35 | P18: 55 | AB18: uoEcj | AC18: November | AD18: 2019 | AE18: November-2019 | AF18: uoEcj&2019
B19: Block | C19: RANI | E19: ;ksx | F19: =SUM(F16:F18) -> 28 | G19: =SUM(G16:G18) -> 27 | H19: 24 | I19: 33 | J19: 22 | K19: 22 | L19: 22 | M19: 29 | N19: 96 | O19: 111 | P19: 207 | AB19: fnlEcj | AC19: December | AD19: 2019 | AE19: December-2019 | AF19: fnlEcj&2019
B20: ekg | C20: July-2019 | E20: Ekgk;ksx | F20: =SUM(F15+F19) -> 61 | G20: =SUM(G15+G19) -> 67 | H20: 57 | I20: 64 | J20: 66 | K20: 68 | L20: 56 | M20: 57 | N20: 240 | O20: 256 | P20: 496
B23: fujh{k.k dk fooj.k la[;k | F23: fdpu 'ksM dh fLFkfr | N23: is;ty lqfo/kk ¼gs.MiEi½
B24: tuizfrfuf/k }kjk | D24: vf/kdkfj;ksa }kjk | F24: Mh-ih-bZ-ih- }kjk | H24: ,l-th-vkj-okbZ }kjk | J24: vkn'kZ jlksbZ?kj | L24: ,e-Mh-,e- ;kstuk }kjk | N24: pkyw | O24: [kjkc | P24: udkjk
B25: 'kkSpky; gS ;k ugh | F25: iw.kZ | G25: viw.kZ | H25: iw.kZ | I25: viw.kZ | J25: iw.kZ | K25: viw.kZ | L25: iw.kZ | M25: viw.kZ
B26: Nk= | D26: Nk=k
B27: vk;ksftr cSBd ,l-,elh- ¼fnuakd ½ | D27: 2019-01-22 | E27: [kk|kUu lqjf{kr j[kus ds crZu la[;k | I27: 5 | K27: ekg ds vUr rd dqy [kkyh cksfj;kW dh la[;k | P27: 10
B28: rjktq gS ;k ugh | E28: jsEi gS ugh | I28: pkj fnokjh gS ;k ugh | AF28: TRUE | AG28: TRUE | AH28: TRUE | AI28: TRUE | AJ28: TRUE | AK28: TRUE | AL28: TRUE | AM28: TRUE | AN28: TRUE | AO28: TRUE | AP28: TRUE
C30: dUotZu dh nj izfr Nk= | H30: çfr fo|kFkhZ nqX/k dh nj
C31: nky lfgr nj | D31: nky jfgr nj
B32: çkFkfed d{kk,a ¼ 1 ls 5 ½ | C32: 3.08 | D32: 4.35 | E32: çkFkfed d{kk,a ¼1 ls 5½ nj çfr fo|kFkhZ | I32: 5.25 | J32: ¼#- esa ½ | Z32: 30 | AA32: 69.25 | AB32: =Z32*AA32 -> 2077.5 | AF32: FALSE | AG32: TRUE | AH32: FALSE | AI32: TRUE | AJ32: FALSE | AK32: FALSE | AL32: TRUE | AM32: FALSE
B33: mPp çkFkfed d{kk,a ¼ 6 ls 8 ½ | C33: 4.60 | D33: 6.51 | E33: mPp çkFkfed d{kk,a ¼6 ls 8½ nj çfr fo|kFkhZ | I33: 7.00 | J33: ¼#- esa ½ | Z33: 30 | AA33: 67.25 | AB33: =Z33*AA33 -> 2017.5 | AF33: FALSE | AG33: TRUE | AH33: TRUE | AI33: FALSE | AJ33: FALSE | AK33: FALSE | AL33: TRUE | AM33: FALSE
Z34: 10 | AA34: 118.25 | AB34: 1182.5 | AF34: FALSE | AG34: FALSE | AH34: FALSE | AI34: FALSE | AJ34: FALSE | AK34: FALSE | AL34: FALSE | AM34: FALSE
Z35: 30 | AA35: 156.25 | AB35: 4687.5 | AF35: FALSE | AG35: FALSE | AH35: FALSE | AI35: FALSE | AJ35: FALSE | AK35: FALSE | AL35: FALSE | AM35: FALSE
B36: S.No. | C36: Name | E36: Gender | H36: Category | M36: Mode of Payment | P36: Amount Received During the Month | Z36: 30 | AA36: 212.5 | AB36: 6375
B37: 1 | C37: Dhagalai Devi | P37: 1320 | AB37: 0
B38: 2 | C38: Geeta Devi | P38: 1320 | Z38: 30 | AA38: 113.5 | AB38: 3405 | AF38: FALSE | AG38: FALSE | AH38: FALSE | AI38: FALSE | AJ38: TRUE | AK38: FALSE | AL38: TRUE | AM38: FALSE | AN38: TRUE | AO38: FALSE | AP38: FALSE
B39: 3 | AB39: =SUM(AB32:AB36)-AB38 -> 12935 | AF39: TRUE | AG39: FALSE | AH39: TRUE | AI39: FALSE | AJ39: TRUE | AK39: FALSE
B40: 4 | AH40: TRUE | AI40: TRUE
AF42: TRUE | AG42: FALSE
AF43: FALSE | AG43: FALSE
AF44: FALSE | AG44: TRUE

Sheet Dal & Khadhiyan master
A1: School NAME :- | C1: ='MASTER DATA'!C3 -> jktdh; vkn'kZ mPp ek/;fed fo|ky; bUnjokM+k ] ia-l-& jkuh ] ikyh
A4: Sr. No. | B4: Detail | E4: Class 1 to 5 | G4: Class 6 to 8
A7: 1 | B7: izkjfEHkd 'ks"k [kk|kUu ¼fdyksaxzke esa½ | D7: xsgqa | E7: ='PS Balance Sheet'!D6 -> 250.000 | G7: ='UPS balance Sheet'!D6 -> 300.000
D8: pkoy | E8: ='PS Balance Sheet'!E6 -> 150.000 | G8: ='UPS balance Sheet'!E6 -> 200.000
A9: 2 | B9: izkjfEHkd 'ks"k nky ¼fdyksaxzke esa½ | D9: ewax | E9: ='PS Balance Sheet'!F6 -> 40.000 | G9: ='UPS balance Sheet'!F6 -> 60.000
D10: mMn | E10: ='PS Balance Sheet'!G6 -> 20.000 | G10: ='UPS balance Sheet'!G6 -> 30.000
D11: puk | E11: ='PS Balance Sheet'!H6 -> 20.000 | G11: ='UPS balance Sheet'!H6 -> 30.000
A12: 3 | B12: lIyk;j ls izkIr [kk|kUu ¼fdyksaxzke esa½ | D12: xsgqa | E12: ='PS Balance Sheet'!I37 -> 0.000 | G12: ='UPS balance Sheet'!I37 -> 0.000
D13: pkoy | E13: ='PS Balance Sheet'!J37 -> 0.000 | G13: ='UPS balance Sheet'!J37 -> 0.000
A14: 4 | B14: lIyk;j ls izkIr nky ¼fdyksaxzke esa½ | D14: ewax | E14: ='PS Balance Sheet'!K37 -> 0.000 | G14: ='UPS balance Sheet'!K37 -> 0.000
D15: mMn | E15: ='PS Balance Sheet'!L37 -> 0.000 | G15: ='UPS balance Sheet'!L37 -> 0.000
D16: puk | E16: ='PS Balance Sheet'!M37 -> 0.000 | G16: ='UPS balance Sheet'!M37 -> 0.000
A17: 5 | B17: vU;= ls izkIr [kk|kUu ¼tulg;ksx@m/kkj½ ¼fdyksaxzke esa½ | D17: xsgqa | E17: ='PS Balance Sheet'!N37+'PS Balance Sheet'!S37 -> 0.000 | G17: ='UPS balance Sheet'!N37+'UPS balance Sheet'!S37 -> 0.000
D18: pkoy | E18: ='PS Balance Sheet'!O37+'PS Balance Sheet'!T37 -> 0.000 | G18: ='UPS balance Sheet'!O37+'UPS balance Sheet'!T37 -> 0.000
A19: 6 | B19: vU;= ls izkIr nky ¼tulg;ksx@m/kkj½ ¼fdyksxzke esa½ | D19: ewax | E19: ='PS Balance Sheet'!P37+'PS Balance Sheet'!U37 -> 0.000 | G19: ='UPS balance Sheet'!P37+'UPS balance Sheet'!U37 -> 0.000
D20: mMn | E20: ='PS Balance Sheet'!Q37+'PS Balance Sheet'!V37 -> 0.000 | G20: ='UPS balance Sheet'!Q37+'UPS balance Sheet'!V37 -> 0.000
D21: puk | E21: ='PS Balance Sheet'!R37+'PS Balance Sheet'!W37 -> 0.000 | G21: ='UPS balance Sheet'!R37+'UPS balance Sheet'!W37 -> 0.000
A22: 7 | B22: miyC/k dqy [kk|kUu ¼1+3+5½ ¼fdyksxzke esa½ | D22: xsgqa | E22: =E7+E12+E17 -> 250.000 | G22: =G7+G12+G17 -> 300.000
D23: pkoy | E23: =E8+E13+E18 -> 150.000 | G23: =G8+G13+G18 -> 200.000
A24: 8 | B24: miyC/k dqy nky ¼2+4+6½ ¼fdyksxzke esa½ | D24: ewax | E24: =E9+E14+E19 -> 40.000 | G24: =G9+G14+G19 -> 60.000
D25: mMn | E25: 20.000 | G25: 30.000
D26: puk | E26: =E11+E16+E21 -> 20.000 | G26: 30.000
A27: 9 | B27: Hkkstu cukus esa [kpZ [kk|kUu ¼fdyksxzke esa½ | D27: xsgqa | E27: ='PS Balance Sheet'!AL37 -> 31.100 | G27: ='UPS balance Sheet'!AL37 -> 48.450
D28: pkoy | E28: ='PS Balance Sheet'!AM37 -> 8.900 | G28: ='UPS balance Sheet'!AM37 -> 13.950
A29: 10 | B29: Hkkstu cukus esa [kpZ nky ¼fdyksxzke esa½ | D29: ewax | E29: ='PS Balance Sheet'!AN37 -> 1.400 | G29: ='UPS balance Sheet'!AN37 -> 2.220
D30: mMn | E30: ='PS Balance Sheet'!AO37 -> 0.700 | G30: ='UPS balance Sheet'!AO37 -> 1.110
D31: puk | E31: ='PS Balance Sheet'!AP37 -> 0.700 | G31: ='UPS balance Sheet'!AP37 -> 1.110
A32: 11 | B32: 'ks"k [kk|kUu ¼7-9½ ¼fdyksxzke esa½ | D32: xsgqa | E32: =E22-E27 -> 218.900 | G32: =G22-G27 -> 251.550
D33: pkoy | E33: =E23-E28 -> 141.100 | G33: =G23-G28 -> 186.050
A34: 12 | B34: 'ks"k nky ¼8-10½ ¼fdyksxzke esa½ | D34: ewax | E34: 38.600 | G34: 57.780
D35: mMn | E35: 19.300 | G35: 28.890
D36: puk | E36: 19.300 | G36: 28.890
A37: 13 | B37: dqfdax dUotZu foÙkh; fLFkfr ¼:i;ksaa es½ | D37: izkjfEHkd 'ks"k | E37: 10000.00 | G37: 15000.00
D38: bl ekg esa izkIRk jkf'k | E38: 15000.00 | G38: 20000.00
D39: dqy jkf'k | E39: =E37+E38 -> 25000.00 | G39: =G37+G38 -> 35000.00
D40: O;; jkf'k | E40: ='PS Balance Sheet'!AV37 -> 1562.20 | G40: ='UPS balance Sheet'!AV37 -> 2425.48
D41: 'ks"k jkf'k | E41: =E39-E40 -> 23437.80 | G41: =G39-G40 -> 32574.52
A42: 14 | B42: dqd&de&gsYij foÙkh; fLFkfr ¼:i;ksa esa½ | D42: izkjfEHkd 'ks"k | E42: 2000 | G42: 2000
D43: bl ekg esa izkIRk jkf'k | E43: 6000 | G43: 6000
D44: dqy jkf'k | E44: =E42+E43 -> 8000 | G44: =G42+G43 -> 8000
D45: O;; jkf'k
D46: 'ks"k jkf'k | E46: =E44-E45 -> 8000 | G46: =G44-G45 -> 8000

Sheet Milk master
A1: School NAME :- | C1: ='MASTER DATA'!C3 -> jktdh; vkn'kZ mPp ek/;fed fo|ky; bUnjokM+k ] ia-l-& jkuh ] ikyh
A4: Sr. No. | B4: Detail | E4: Class 1 to 5 | G4: Class 6 to 8
A7: 1 | B7: vUuiw.kkZ nqX/k ;kstuk lEcfU/kr lwpuk | D7: nw/k ls ykHkkfUor la[;k | E7: ='PS Balance Sheet'!AK37 -> 431 | G7: ='UPS balance Sheet'!AK37 -> 588
D8: nw/k dk mi;ksx yhVj esa | E8: =E7*E15 -> 64.65 | G8: =G7*G15 -> 117.60
D9: izkj- 'ks"k jkf'k | E9: 5000 | G9: 7000
D10: izkIr jkf'k | E10: 1500 | G10: 2000
D11: dqy jkf'k | E11: =E9+E10 -> 6500 | G11: =G9+G10 -> 9000
D12: O;; jkf'k | E12: ='PS Balance Sheet'!AW37 -> 2262.75 | G12: ='UPS balance Sheet'!AW37 -> 4116.00
D13: 'ks"k jkf'k | E13: =E11-E12 -> 4237.25 | G13: =G11-G12 -> 4884.00
A14: 2 | B14: izfr Nk= nqX/k dh nj o ek=k | D14: nj | E14: 5.25 | G14: 7.00
D15: ek=k | E15: 0.150 | G15: 0.200
A16: 3 | B16: fo|ky; ftues ;kstuk dk lapkyu fd;k tk jgk gS esa nw/k Ø; djus ds L=ksr ¼lEcfU/kr fodYi ij fDyd djsa½ | D16: ljl Ms;jh ¼'kgjh {ks=½ | G16: efgyk Lo;a lgk;rk lewg
D17: iathd`r efgyk nw/k mRiknd lgdkjh l- | G17: vU; Lo;a lgk;rk lewg
D18: vU; iathd`r nw/k mRiknd lg0 lfefr | G18: vU; L=ksr
A19: 4 | B19: nw/k miyC/k djkus okyh laLFkk@lewg dk uke ,oa eksckbZy ua- | D19: uke | E19: ljl Ms;jh bUnjokM+k
D20: eksckbZy uEcj | E20: 9922334455
A21: 5 | B21: nw/k miyC/k djkus okyh laLFkk@lewg dks Hkqxrku dh xbZ jkf'k dk fooj.k | D21: Hkqxrku dh xbZ jkf'k | E21: 20000
D22: pSd @ vkjVhth,l la[;k | E22: RMGB123456
D23: fnukad | E23: 2019-02-03

Sheet Att. Dairy
B1: fo|ky; ds ykHkkfUor Nk=ksa dh fnukadokj lwpuk jftLV~zj | O1: =CONCATENATE('MASTER DATA'!I4, 'MASTER DATA'!J4) -> ekg %&tqykbZ&2019
A2: Ø- l- | B2: frfFk | C2: ;fn ehuw ds vuqlkj [kk|kUu miyC/k u gks rks tks Hkh [kk|kUu miyC/k gks] mls Mkmu fyLV esa ls lysDV djsaA vU;Fkk dkWye [kkyh j[ksaA | D2: d{kk F | E2: [kk|kUu ls ykHkkfUor | I2: nqX/k ls ykHkkfUor | O2: fnukadokbZt dqy ukekadu
B3: H | D3: ukekadu F | E3: Class 1 to 5 TOTAL | G3: Class 6 to 8 TOTAL | I3: 1 to 5 | L3: 6 to 8 | O3: 1 to 5 | R3: 6 to 8 | U3: G. Total
E4: B | F4: G | G4: B | H4: G | I4: B | J4: G | K4: T | L4: B | M4: G | N4: T | O4: B | P4: G | Q4: T | R4: B | S4: G | T4: T
D5: okj H | E5: ='MASTER DATA'!N15 -> 144 | F5: ='MASTER DATA'!O15 -> 145 | G5: ='MASTER DATA'!N19 -> 96 | H5: ='MASTER DATA'!O19 -> 111 | I5: ='MASTER DATA'!N15 -> 144 | J5: ='MASTER DATA'!O15 -> 145 | K5: ='MASTER DATA'!P15 -> 289 | L5: ='MASTER DATA'!N19 -> 96 | M5: ='MASTER DATA'!O19 -> 111 | N5: ='MASTER DATA'!P19 -> 207 | O5: ='MASTER DATA'!N15 -> 144 | P5: ='MASTER DATA'!O15 -> 145 | Q5: =SUM(O5+P5) -> 289 | R5: ='MASTER DATA'!N19 -> 96 | S5: ='MASTER DATA'!O19 -> 111 | T5: =SUM(R5+S5) -> 207 | U5: =Q5+T5 -> 496
A6: 1 | B6: 2019-07-01 | C6: Wheat | D6: =IF(X6=1,"Sunday",IF(X6=2,"Monday",IF(X6=3,"Tuesday",IF(X6=4,"Wednesday",IF(X6=5,"Thursday",IF(X6=6,"Friday",IF(X6=7,"Saturday"," "))))))) -> Monday | E6: 25 | F6: 26 | G6: 27 | H6: 28 | I6: 20 | J6: 20 | K6: =IF(AND(I6="",J6=""),"",SUM(I6,J6)) -> 40 | L6: 30 | M6: 30 | N6: =IF(AND(L6="",M6=""),"",SUM(L6,M6)) -> 60 | O6: =IF(AND(E6="",K6=""),"",O$5) -> 144 | P6: =IF(AND(E6="",K6=""),"",P$5) -> 145 | Q6: =IF(AND(E6="",K6=""),"",SUM(O6,P6)) -> 289 | R6: =IF(AND(G6="",N6=""),"",R$5) -> 96 | S6: =IF(AND(G6="",N6=""),"",S$5) -> 111 | T6: =IF(AND(G6="",N6=""),"",SUM(R6,S6)) -> 207 | U6: =IF(AND(Q6="",T6=""),"",SUM(Q6,T6)) -> 496 | V6: =E6+F6 -> 51 | W6: =G6+H6 -> 55 | X6: =IF(AND(B6=""),"",SUM(Y6)) -> 2 | Y6: =WEEKDAY(B6) -> 2
A7: 2 | B7: 2019-07-02 | D7: =IF(X7=1,"Sunday",IF(X7=2,"Monday",IF(X7=3,"Tuesday",IF(X7=4,"Wednesday",IF(X7=5,"Thursday",IF(X7=6,"Friday",IF(X7=7,"Saturday"," "))))))) -> Tuesday | I7: 33 | J7: 36 | K7: =IF(AND(I7="",J7=""),"",SUM(I7,J7)) -> 69 | L7: 65 | M7: 66 | N7: =IF(AND(L7="",M7=""),"",SUM(L7,M7)) -> 131 | O7: 144 | P7: 145 | Q7: 289 | R7: =IF(AND(G7="",N7=""),"",R$5) -> 96 | S7: =IF(AND(G7="",N7=""),"",S$5) -> 111 | T7: =IF(AND(G7="",N7=""),"",SUM(R7,S7)) -> 207 | U7: =IF(AND(Q7="",T7=""),"",SUM(Q7,T7)) -> 496 | V7: =E7+F7 -> 0 | W7: =G7+H7 -> 0 | X7: 3 | Y7: =WEEKDAY(B7) -> 3
A8: 3 | B8: 2019-07-03 | D8: =IF(X8=1,"Sunday",IF(X8=2,"Monday",IF(X8=3,"Tuesday",IF(X8=4,"Wednesday",IF(X8=5,"Thursday",IF(X8=6,"Friday",IF(X8=7,"Saturday"," "))))))) -> Wednesday | I8: 32 | J8: 36 | K8: 68 | L8: 45 | M8: 46 | N8: 91 | O8: 144 | P8: 145 | Q8: 289 | R8: 96 | S8: 111 | T8: 207 | U8: 496 | V8: 0 | W8: 0 | X8: 4 | Y8: 4
A9: 4 | B9: 2019-07-04 | D9: Thursday | E9: 44 | F9: 45 | G9: 46 | H9: 47 | I9: 35 | J9: 36 | K9: 71 | L9: 88 | M9: 96 | N9: 184 | O9: 144 | P9: 145 | Q9: 289 | R9: 96 | S9: 111 | T9: 207 | U9: 496 | V9: 89 | W9: 93 | X9: 5 | Y9: 5 | AB9: Sunday
A10: 5 | B10: 2019-07-05 | D10: Friday | I10: 88 | J10: 95 | K10: 183 | L10: 60 | M10: 62 | N10: 122 | O10: 144 | P10: 145 | Q10: 289 | R10: 96 | S10: 111 | T10: 207 | U10: 496 | V10: 0 | W10: 0 | X10: 6 | Y10: 6 | AB10: Monday
A11: 6 | B11: 2019-07-06 | D11: =IF(X11=1,"Sunday",IF(X11=2,"Monday",IF(X11=3,"Tuesday",IF(X11=4,"Wednesday",IF(X11=5,"Thursday",IF(X11=6,"Friday",IF(X11=7,"Saturday"," "))))))) -> Saturday | E11: 63 | F11: 64 | G11: 65 | H11: 66 | O11: 144 | P11: 145 | Q11: 289 | R11: 96 | S11: 111 | T11: 207 | U11: 496 | V11: 127 | W11: 131 | X11: 7 | Y11: 7 | AB11: Tuesday
A12: 7 | B12: 2019-07-07 | D12: =IF(X12=1,"Sunday",IF(X12=2,"Monday",IF(X12=3,"Tuesday",IF(X12=4,"Wednesday",IF(X12=5,"Thursday",IF(X12=6,"Friday",IF(X12=7,"Saturday"," "))))))) -> Sunday | V12: 0 | W12: 0 | X12: 1 | Y12: 1 | AB12: Wednesday
A13: 8 | B13: 2019-07-08 | D13: Monday | E13: 66 | F13: 67 | G13: 68 | H13: 69 | O13: 144 | P13: 145 | Q13: 289 | R13: 96 | S13: 111 | T13: 207 | U13: 496 | V13: 133 | W13: 137 | X13: 2 | Y13: 2 | AB13: Thursday
A14: 9 | B14: 2019-07-09 | D14: Tuesday | V14: 0 | W14: 0 | X14: 3 | Y14: 3 | AB14: Friday
A15: 10 | B15: 2019-07-10 | D15: =IF(X15=1,"Sunday",IF(X15=2,"Monday",IF(X15=3,"Tuesday",IF(X15=4,"Wednesday",IF(X15=5,"Thursday",IF(X15=6,"Friday",IF(X15=7,"Saturday"," "))))))) -> Wednesday | V15: 0 | W15: 0 | X15: 4 | Y15: 4 | AB15: Saturday
A16: 11 | B16: 2019-07-11 | D16: Thursday | V16: 0 | W16: 0 | X16: 5 | Y16: 5
A17: 12 | B17: 2019-07-12 | D17: Friday | V17: 0 | W17: 0 | X17: 6 | Y17: 6
A18: 13 | B18: 2019-07-13 | D18: Saturday | V18: 0 | W18: 0 | X18: 7 | Y18: 7
A19: 14 | B19: 2019-07-14 | D19: Sunday | V19: 0 | W19: 0 | X19: 1 | Y19: 1
A20: 15 | B20: 2019-07-15 | D20: Monday | V20: 0 | W20: 0 | X20: 2 | Y20: 2 | AB20: Wheat
A21: 16 | B21: 2019-07-16 | D21: Tuesday | V21: 0 | W21: 0 | X21: 3 | Y21: 3 | AB21: Rice
A22: 17 | B22: 2019-07-17 | D22: Wednesday | V22: 0 | W22: 0 | X22: 4 | Y22: 4
A23: 18 | B23: 2019-07-18 | D23: Thursday | V23: 0 | W23: 0 | X23: 5 | Y23: 5
A24: 19 | B24: 2019-07-19 | D24: Friday | V24: 0 | W24: 0 | X24: 6 | Y24: 6
A25: 20 | B25: 2019-07-20 | D25: Saturday | V25: 0 | W25: 0 | X25: 7 | Y25: 7
A26: 21 | B26: 2019-07-21 | D26: Sunday | V26: 0 | W26: 0 | X26: 1 | Y26: 1
A27: 22 | B27: 2019-07-22 | D27: Monday | V27: 0 | W27: 0 | X27: 2 | Y27: 2
A28: 23 | B28: 2019-07-23 | D28: Tuesday | V28: 0 | W28: 0 | X28: 3 | Y28: 3
A29: 24 | B29: 2019-07-24 | D29: Wednesday | V29: 0 | W29: 0 | X29: 4 | Y29: 4
A30: 25 | B30: 2019-07-25 | D30: Thursday | V30: 0 | W30: 0 | X30: 5 | Y30: 5
A31: 26 | B31: 2019-07-26 | D31: Friday | V31: 0 | W31: 0 | X31: 6 | Y31: 6
A32: 27 | B32: 2019-07-27 | D32: Saturday | V32: 0 | W32: 0 | X32: 7 | Y32: 7
A33: 28 | B33: 2019-07-28 | D33: Sunday | V33: 0 | W33: 0 | X33: 1 | Y33: 1
A34: 29 | B34: 2019-07-29 | D34: Monday | V34: 0 | W34: 0 | X34: 2 | Y34: 2
A35: 30 | B35: 2019-07-30 | D35: Tuesday | V35: 0 | W35: 0 | X35: 3 | Y35: 3
A36: 31 | B36: 2019-07-31 | D36: =IF(X36=1,"Sunday",IF(X36=2,"Monday",IF(X36=3,"Tuesday",IF(X36=4,"Wednesday",IF(X36=5,"Thursday",IF(X36=6,"Friday",IF(X36=7,"Saturday"," "))))))) -> Wednesday | K36: =IF(AND(I36="",J36=""),"",SUM(I36,J36)) ->  | V36: 0 | W36: 0 | X36: 4 | Y36: 4
E37: =SUM(E6:E36) -> 198 | F37: =SUM(F6:F36) -> 202 | G37: =SUM(G6:G36) -> 206 | H37: =SUM(H6:H36) -> 210 | I37: =SUM(I6:I36) -> 208 | J37: 223 | K37: 431 | L37: 288 | M37: 300 | N37: 588 | O37: 1008 | P37: 1015 | Q37: 2023 | R37: 672 | S37: 777 | T37: 1449 | U37: 3472
I38: PS | L38: UPS
E39: [kk|kUu ls ykHkkfUor fnuksa dh la[;k & | I39: =COUNTA(V6:V36)-COUNTIF(V6:V36,"0")-COUNTIF(V6:V36,"blank")-COUNTIF(V6:V36,"") -> 4 | L39: =COUNTA(W6:W36)-COUNTIF(W6:W36,"0")-COUNTIF(W6:W36,"blank")-COUNTIF(W6:W36,"") -> 4
E42: nqX/k ls ykHkkfUor fnuksa dh la[;k & | I42: =COUNTA(K6:K36)-COUNTIF(K6:K36,"0")-COUNTIF(K6:K36,"blank")-COUNTIF(K6:K36,"") -> 5 | L42: =COUNTA(N6:N36)-COUNTIF(N6:N36,"0")-COUNTIF(N6:N36,"blank")-COUNTIF(N6:N36,"") -> 5

Sheet PS Balance Sheet
B1: loZçFke vVsusUl 'khV ij fnukad okys Column dh çfof"B;ka iw.kZ djsa | D1: Presented By:- | H1: Mr. HeeraLaL Jat Sojat (PALI) | U1: =CONCATENATE('MASTER DATA'!I4, 'MASTER DATA'!J4) -> ekg %&tqykbZ&2019 | BB1: ='MASTER DATA'!C32 -> 3.08 | BC1: ='MASTER DATA'!D32 -> 4.35 | BD1: ='MASTER DATA'!I32 -> 5.25
B2: fnukad | C2: nky ds fy, Yes/No | D2: çkjfEHkd [kk|ku o nky dh ek=k fdyks xzke esa | I2: forj.k drkZ ls çkIr [kk|ku fdyks xzke esa | N2: vU;= lzksr ls m/kkj fy;k@fn;k¼fdxzk½ | S2: vU; fo|ky; ls m/kkj fy;k@fn;k¼fdxzk½ | X2: dqy [kk|ku o nky | AC2: dqy ukekadu d{kk 1 ls 5 | AF2: dqy ykHkkfUor Nk=@Nk=k d{kk 1 ls 5 | AI2: dqy nqX/k ls ykHkkfUor | AL2: ekg esa mi;ksx fy;k x;k izfrfnu [kk|ku o nky | AQ2: 'ks"k [kk|ku o nky | AV2: ekg esa izfrfnu dUotZu ij O;; jkf'k | AW2: ekg esa izfrfnu nqX/k ij O;; jkf'k | AX2: ekg esa izfrfnu dqy O;; jkf'k | AY2: feuw ds vuqlkj Hkkstu | DU2: fnukad | DV2: nky ds fy, Yes/ No | DW2: çkjfEHkd [kk|ku o nky dh ek=k fdyks xzke esa | DZ2: forj.k drkZ ls çkIr [kk|ku fdyks xzke esa | EC2: dqy [kk|ku o nky | EF2: dqy ukekadu d{kk 1 ls 5 | EH2: dqy ykHkkfUor Nk=@Nk=k d{kk 1 ls 5 | EJ2: dqy nqX/k ls ykHkkfUor | EL2: ekg esa mi;ksx fy;k x;k izfrfnu [kk|ku o nky | EO2: 'ks"k [kk|ku o nky | ER2: ekg esa izfrfnu dUotZu ij O;; jkf'k | ES2: ekg esa izfrfnu nqX/k ij O;; jkf'k | ET2: feuw ds vuqlkj Hkkstu
N4: m/kkj nsus ij¼&½fpUg yxk, | S4: m/kkj nsus ij¼&½fpUg yxk,
A5: Sr. | B5: MM-DDD-YYYY e.g.(01-Jan-1900) | D5: xsagw | E5: pkoy | F5: ewax | G5: mM+n | H5: puk | I5: xsagw | J5: pkoy | K5: ewax | L5: mM+n | M5: puk | N5: xsagw | O5: pkoy | P5: ewax | Q5: mM+n | R5: puk | S5: xsagw | T5: pkoy | U5: ewax | V5: mM+n | W5: puk | X5: xsagw | Y5: pkoy | Z5: ewax | AA5: mM+n | AB5: puk | AC5: Nk= | AD5: Nk=k | AE5: dqy | AF5: Nk= | AG5: Nk=k | AH5: dqy | AI5: Nk= | AJ5: Nk=k | AK5: dqy | AL5: xsagw | AM5: pkoy | AN5: ewax | AO5: mM+n | AP5: puk | AQ5: xsagw | AR5: pkoy | AS5: ewax | AT5: mM+n | AU5: puk | BG5: Wheat/Rice | BZ5: Wheat/Rice | CA5: Wheat/Rice | DU5: MM-DD-YYYY e.g.(01-Jan-1900) | DW5: xsagw | DX5: pkoy | DY5: nky | DZ5: xsagw | EA5: pkoy | EB5: nky | EC5: xsagw | ED5: pkoy | EE5: nky | EF5: Nk= | EG5: Nk=k | EH5: Nk= | EI5: Nk=k | EJ5: Nk= | EK5: Nk=k | EL5: xsagw | EM5: pkoy | EN5: nky | EO5: xsagw | EP5: pkoy | EQ5: ewax
A6: 1 | B6: =IF(AND('Att. Dairy'!B6=""),"",'Att. Dairy'!B6) -> 2019-07-01 | C6: YES | D6: 250.000 | E6: 150.000 | F6: 40.000 | G6: 20.000 | H6: 20.000 | X6: =IF(AND(D6=""),"",SUM(D6,I6,N6,S6)) -> 250.000 | Y6: =IF(AND(E6=""),"",SUM(E6,J6,O6,T6)) -> 150.000 | Z6: =IF(AND(F6=""),"",SUM(F6,K6,P6,U6)) -> 40.000 | AA6: =IF(AND(G6=""),"",SUM(G6,L6,Q6,V6)) -> 20.000 | AB6: =IF(AND(H6=""),"",SUM(H6,M6,R6,W6)) -> 20.000 | AC6: =IF(AND('Att. Dairy'!O6=""),"",'Att. Dairy'!O6) -> 144 | AD6: =IF(AND('Att. Dairy'!P6=""),"",'Att. Dairy'!P6) -> 145 | AE6: =SUM(AC6,AD6) -> 289 | AF6: =IF(AND('Att. Dairy'!E6=""),"",'Att. Dairy'!E6) -> 25 | AG6: =IF(AND('Att. Dairy'!F6=""),"",'Att. Dairy'!F6) -> 26 | AH6: =SUM(AF6,AG6) -> 51 | AI6: =IF(AND('Att. Dairy'!I6=""),"",'Att. Dairy'!I6) -> 20 | AJ6: =IF(AND('Att. Dairy'!J6=""),"",'Att. Dairy'!J6) -> 20 | AK6: =SUM(AI6,AJ6) -> 40 | AL6: =IF(AND(AH6=""),"0",IF(AND(CA6="w"),AH6*100/1000,"0")) -> 5.100 | AM6: =IF(AND(AH6=""),"0",IF(AND(CA6="R"),AH6*100/1000,"0")) -> 0 | AN6: =IF(AND(C6="YES",AH6>0),AH6*0.01,0) -> 0.510 | AO6: =IF(AND(C6="YES",AH6>0),AH6*0.005,0) -> 0.255 | AP6: =IF(AND(C6="YES",AH6>0),AH6*0.005,0) -> 0.255 | AQ6: =SUM(X6-AL6) -> 244.900 | AR6: =(Y6-AM6) -> 150.000 | AS6: =(Z6-AN6) -> 39.490 | AT6: 19.745 | AU6: 19.745 | AV6: =IF(AND('Att. Dairy'!B6=""),"",IF(AND(AH6=""),"",IF(AND(C6="YES",AH6>0),AH6*$BB$1,AH6*$BC$1))) -> 157.08 | AW6: =IF(AND('Att. Dairy'!B6=""),"",IF(AND(AK6=""),"",AK6*$BD$1)) -> 210.00 | AX6: =IF(AND('Att. Dairy'!B6=""),"",IF(AND(AV6="",AW6=""),"",SUM(AV6,AW6))) -> 367.08 | AY6: =IF(AND('Att. Dairy'!B6=""),"",IF(AND(AF6=""),"",BI6)) -> lCthjksVh | BF6: =IF(AND('Att. Dairy'!C6=""),"",'Att. Dairy'!C6) -> Wheat | BG6: =IF(AND(BF6=""),"",IF(BF6="Rice","R",IF(BF6="Wheat","W"))) -> W | BH6: =IF(AND('Att. Dairy'!D6=""),"",'Att. Dairy'!D6) -> Monday | BI6: =IF(OR(BH6=0,BH6=""),"",IF(BH6="tuesday","nkypkoy",IF(BH6="thursday","f[kpM+h",IF(OR(BH6="monday",BH6="saturday"),"lCthjksVh",IF(OR(BH6="wednesday",BH6="friday"),"nkyjksVh","vodk'k"))))) -> lCthjksVh | BK6: =IF(AND(C6=BM$10),AV6,0) -> 157 | BZ6: =IF(OR(BH6=0,BH6=""),"",IF(BH6="tuesday","R",IF(BH6="thursday","R",IF(OR(BH6="monday",BH6="saturday"),"W",IF(OR(BH6="wednesday",BH6="friday"),"W"))))) -> W | CA6: =IF(AND(BF6=""),BZ6,BG6) -> W | DU6: =IF(AND(B6=""),"",B6) -> 2019-07-01 | DV6: =C6 -> YES | DW6: =D6 -> 250.00 | DX6: =E6 -> 150.00 | DY6: =F6+G6+H6 -> 80.00 | DZ6: =I6 -> 0.00 | EA6: =J6 -> 0.00 | EB6: =K6+L6+M6 -> 0.00 | EC6: =X6 -> 250.00 | ED6: =Y6 -> 150.00 | EE6: =Z6+AA6+AB6 -> 80.00 | EF6: =AC6 -> 144 | EG6: =AD6 -> 145 | EH6: =AF6 -> 25 | EI6: =AG6 -> 26 | EJ6: =AI6 -> 20 | EK6: =AJ6 -> 20 | EL6: =AL6 -> 5.10 | EM6: =AM6 -> 0 | EN6: =AN6+AO6+AP6 -> 1.02 | EO6: =AQ6 -> 244.90 | EP6: =AR6 -> 150.00 | EQ6: =AS6+AT6+AU6 -> 78.98 | ER6: =AV6 -> 157.08 | ES6: =AW6 -> 210.00 | ET6: =AY6 -> lCthjksVh
A7: 2 | B7: =IF(AND('Att. Dairy'!B7=""),"",'Att. Dairy'!B7) -> 2019-07-02 | C7: YES | D7: =IF(AND(AQ6=""),"",AQ6) -> 244.900 | E7: =IF(AND(AR6=""),"",AR6) -> 150.000 | F7: =IF(AND(AS6=""),"",AS6) -> 39.490 | G7: 19.745 | H7: 19.745 | X7: =IF(AND(D7=""),"",SUM(D7,I7,N7,S7)) -> 244.900 | Y7: =IF(AND(E7=""),"",SUM(E7,J7,O7,T7)) -> 150.000 | Z7: =IF(AND(F7=""),"",SUM(F7,K7,P7,U7)) -> 39.490 | AA7: =IF(AND(G7=""),"",SUM(G7,L7,Q7,V7)) -> 19.745 | AB7: =IF(AND(H7=""),"",SUM(H7,M7,R7,W7)) -> 19.745 | AC7: =IF(AND('Att. Dairy'!O7=""),"",'Att. Dairy'!O7) -> 144 | AD7: =IF(AND('Att. Dairy'!P7=""),"",'Att. Dairy'!P7) -> 145 | AE7: =SUM(AC7,AD7) -> 289 | AF7: =IF(AND('Att. Dairy'!E7=""),"",'Att. Dairy'!E7) ->  | AG7: =IF(AND('Att. Dairy'!F7=""),"",'Att. Dairy'!F7) ->  | AH7: =SUM(AF7,AG7) -> 0 | AI7: =IF(AND('Att. Dairy'!I7=""),"",'Att. Dairy'!I7) -> 33 | AJ7: =IF(AND('Att. Dairy'!J7=""),"",'Att. Dairy'!J7) -> 36 | AK7: =SUM(AI7,AJ7) -> 69 | AL7: =IF(AND(AH7=""),"0",IF(AND(CA7="w"),AH7*100/1000,"0")) -> 0 | AM7: =IF(AND(AH7=""),"0",IF(AND(CA7="R"),AH7*100/1000,"0")) -> 0.000 | AN7: =IF(AND(C7="YES",AH7>0),AH7*0.01,0) -> 0.000 | AO7: =IF(AND(C7="YES",AH7>0),AH7*0.005,0) -> 0.000 | AP7: =IF(AND(C7="YES",AH7>0),AH7*0.005,0) -> 0.000 | AQ7: =SUM(X7-AL7) -> 244.900 | AR7: =(Y7-AM7) -> 150.000 | AS7: =(Z7-AN7) -> 39.490 | AT7: =(AA7-AO7) -> 19.745 | AU7: =(AB7-AP7) -> 19.745 | AV7: =IF(AND('Att. Dairy'!B7=""),"",IF(AND(AH7=""),"",IF(AND(C7="YES",AH7>0),AH7*$BB$1,AH7*$BC$1))) -> 0.00 | AW7: =IF(AND('Att. Dairy'!B7=""),"",IF(AND(AK7=""),"",AK7*$BD$1)) -> 362.25 | AX7: =IF(AND('Att. Dairy'!B7=""),"",IF(AND(AV7="",AW7=""),"",SUM(AV7,AW7))) -> 362.25 | AY7: =IF(AND('Att. Dairy'!B7=""),"",IF(AND(AF7=""),"",BI7)) ->  | BF7: =IF(AND('Att. Dairy'!C7=""),"",'Att. Dairy'!C7) ->  | BG7: =IF(AND(BF7=""),"",IF(BF7="Rice","R",IF(BF7="Wheat","W"))) ->  | BH7: =IF(AND('Att. Dairy'!D7=""),"",'Att. Dairy'!D7) -> Tuesday | BI7: =IF(OR(BH7=0,BH7=""),"",IF(BH7="tuesday","nkypkoy",IF(BH7="thursday","f[kpM+h",IF(OR(BH7="monday",BH7="saturday"),"lCthjksVh",IF(OR(BH7="wednesday",BH7="friday"),"nkyjksVh","vodk'k"))))) -> nkypkoy | BK7: =IF(AND(C7=BM$10),AV7,0) -> 0 | BZ7: =IF(OR(BH7=0,BH7=""),"",IF(BH7="tuesday","R",IF(BH7="thursday","R",IF(OR(BH7="monday",BH7="saturday"),"W",IF(OR(BH7="wednesday",BH7="friday"),"W"))))) -> R | CA7: =IF(AND(BF7=""),BZ7,BG7) -> R | DU7: =IF(AND(B7=""),"",B7) -> 2019-07-02 | DV7: =C7 -> YES | DW7: =D7 -> 244.90 | DX7: =E7 -> 150.00 | DY7: =F7+G7+H7 -> 78.98 | DZ7: =I7 -> 0.00 | EA7: =J7 -> 0.00 | EB7: =K7+L7+M7 -> 0.00 | EC7: =X7 -> 244.90 | ED7: =Y7 -> 150.00 | EE7: =Z7+AA7+AB7 -> 78.98 | EF7: =AC7 -> 144 | EG7: =AD7 -> 145 | EH7: =AF7 ->  | EI7: =AG7 ->  | EJ7: =AI7 -> 33 | EK7: =AJ7 -> 36 | EL7: =AL7 -> 0 | EM7: =AM7 -> 0.00 | EN7: =AN7+AO7+AP7 -> 0.00 | EO7: =AQ7 -> 244.90 | EP7: =AR7 -> 150.00 | EQ7: =AS7+AT7+AU7 -> 78.98 | ER7: =AV7 -> 0.00 | ES7: =AW7 -> 362.25 | ET7: =AY7 -> 
A8: 3 | B8: =IF(AND('Att. Dairy'!B8=""),"",'Att. Dairy'!B8) -> 2019-07-03 | C8: YES | D8: =IF(AND(AQ7=""),"",AQ7) -> 244.900 | E8: =IF(AND(AR7=""),"",AR7) -> 150.000 | F8: =IF(AND(AS7=""),"",AS7) -> 39.490 | G8: =IF(AND(AT7=""),"",AT7) -> 19.745 | H8: =IF(AND(AU7=""),"",AU7) -> 19.745 | X8: 244.900 | Y8: 150.000 | Z8: 39.490 | AA8: 19.745 | AB8: 19.745 | AC8: =IF(AND('Att. Dairy'!O8=""),"",'Att. Dairy'!O8) -> 144 | AD8: =IF(AND('Att. Dairy'!P8=""),"",'Att. Dairy'!P8) -> 145 | AE8: 289 | AF8: =IF(AND('Att. Dairy'!E8=""),"",'Att. Dairy'!E8) ->  | AG8: =IF(AND('Att. Dairy'!F8=""),"",'Att. Dairy'!F8) ->  | AH8: 0 | AI8: =IF(AND('Att. Dairy'!I8=""),"",'Att. Dairy'!I8) -> 32 | AJ8: =IF(AND('Att. Dairy'!J8=""),"",'Att. Dairy'!J8) -> 36 | AK8: 68 | AL8: 0.000 | AM8: 0 | AN8: 0.000 | AO8: 0.000 | AP8: 0.000 | AQ8: 244.900 | AR8: 150.000 | AS8: 39.490 | AT8: 19.745 | AU8: 19.745 | AV8: =IF(AND('Att. Dairy'!B8=""),"",IF(AND(AH8=""),"",IF(AND(C8="YES",AH8>0),AH8*$BB$1,AH8*$BC$1))) -> 0.00 | AW8: =IF(AND('Att. Dairy'!B8=""),"",IF(AND(AK8=""),"",AK8*$BD$1)) -> 357.00 | AX8: =IF(AND('Att. Dairy'!B8=""),"",IF(AND(AV8="",AW8=""),"",SUM(AV8,AW8))) -> 357.00 | AY8: =IF(AND('Att. Dairy'!B8=""),"",IF(AND(AF8=""),"",BI8)) ->  | BF8: =IF(AND('Att. Dairy'!C8=""),"",'Att. Dairy'!C8) ->  | BH8: =IF(AND('Att. Dairy'!D8=""),"",'Att. Dairy'!D8) -> Wednesday | BI8: nkyjksVh | BK8: 0 | BZ8: W | CA8: W | DU8: 2019-07-03 | DV8: YES | DW8: 244.90 | DX8: 150.00 | DY8: 78.98 | DZ8: 0.00 | EA8: 0.00 | EB8: 0.00 | EC8: 244.90 | ED8: 150.00 | EE8: 78.98 | EF8: 144 | EG8: 145 | EJ8: 32 | EK8: 36 | EL8: 0.00 | EM8: 0 | EN8: 0.00 | EO8: 244.90 | EP8: 150.00 | EQ8: 78.98 | ER8: 0.00 | ES8: 357.00
A9: 4 | B9: =IF(AND('Att. Dairy'!B9=""),"",'Att. Dairy'!B9) -> 2019-07-04 | C9: YES | D9: 244.900 | E9: 150.000 | F9: 39.490 | G9: 19.745 | H9: 19.745 | X9: 244.900 | Y9: 150.000 | Z9: 39.490 | AA9: 19.745 | AB9: 19.745 | AC9: =IF(AND('Att. Dairy'!O9=""),"",'Att. Dairy'!O9) -> 144 | AD9: =IF(AND('Att. Dairy'!P9=""),"",'Att. Dairy'!P9) -> 145 | AE9: 289 | AF9: =IF(AND('Att. Dairy'!E9=""),"",'Att. Dairy'!E9) -> 44 | AG9: =IF(AND('Att. Dairy'!F9=""),"",'Att. Dairy'!F9) -> 45 | AH9: 89 | AI9: =IF(AND('Att. Dairy'!I9=""),"",'Att. Dairy'!I9) -> 35 | AJ9: =IF(AND('Att. Dairy'!J9=""),"",'Att. Dairy'!J9) -> 36 | AK9: 71 | AL9: 0 | AM9: 8.900 | AN9: 0.890 | AO9: 0.445 | AP9: 0.445 | AQ9: 244.900 | AR9: 141.100 | AS9: 38.600 | AT9: 19.300 | AU9: 19.300 | AV9: =IF(AND('Att. Dairy'!B9=""),"",IF(AND(AH9=""),"",IF(AND(C9="YES",AH9>0),AH9*$BB$1,AH9*$BC$1))) -> 274.12 | AW9: =IF(AND('Att. Dairy'!B9=""),"",IF(AND(AK9=""),"",AK9*$BD$1)) -> 372.75 | AX9: =IF(AND('Att. Dairy'!B9=""),"",IF(AND(AV9="",AW9=""),"",SUM(AV9,AW9))) -> 646.87 | AY9: =IF(AND('Att. Dairy'!B9=""),"",IF(AND(AF9=""),"",BI9)) -> f[kpM+h | BF9: =IF(AND('Att. Dairy'!C9=""),"",'Att. Dairy'!C9) ->  | BH9: =IF(AND('Att. Dairy'!D9=""),"",'Att. Dairy'!D9) -> Thursday | BI9: f[kpM+h | BK9: 274 | BZ9: R | CA9: R | DU9: 2019-07-04 | DV9: YES | DW9: 244.90 | DX9: 150.00 | DY9: 78.98 | DZ9: 0.00 | EA9: 0.00 | EB9: 0.00 | EC9: 244.90 | ED9: 150.00 | EE9: 78.98 | EF9: 144 | EG9: 145 | EH9: 44 | EI9: 45 | EJ9: 35 | EK9: 36 | EL9: 0 | EM9: 8.90 | EN9: 1.78 | EO9: 244.90 | EP9: 141.10 | EQ9: 77.20 | ER9: 274.12 | ES9: 372.75 | ET9: f[kpM+h
A10: 5 | B10: =IF(AND('Att. Dairy'!B10=""),"",'Att. Dairy'!B10) -> 2019-07-05 | C10: NO | D10: 244.900 | E10: 141.100 | F10: 38.600 | G10: 19.300 | H10: 19.300 | X10: 244.900 | Y10: 141.100 | Z10: 38.600 | AA10: 19.300 | AB10: 19.300 | AC10: =IF(AND('Att. Dairy'!O10=""),"",'Att. Dairy'!O10) -> 144 | AD10: =IF(AND('Att. Dairy'!P10=""),"",'Att. Dairy'!P10) -> 145 | AE10: 289 | AF10: =IF(AND('Att. Dairy'!E10=""),"",'Att. Dairy'!E10) ->  | AG10: =IF(AND('Att. Dairy'!F10=""),"",'Att. Dairy'!F10) ->  | AH10: 0 | AI10: =IF(AND('Att. Dairy'!I10=""),"",'Att. Dairy'!I10) -> 88 | AJ10: =IF(AND('Att. Dairy'!J10=""),"",'Att. Dairy'!J10) -> 95 | AK10: 183 | AL10: 0.000 | AM10: 0 | AN10: 0.000 | AO10: 0.000 | AP10: 0.000 | AQ10: 244.900 | AR10: 141.100 | AS10: 38.600 | AT10: 19.300 | AU10: 19.300 | AV10: =IF(AND('Att. Dairy'!B10=""),"",IF(AND(AH10=""),"",IF(AND(C10="YES",AH10>0),AH10*$BB$1,AH10*$BC$1))) -> 0.00 | AW10: =IF(AND('Att. Dairy'!B10=""),"",IF(AND(AK10=""),"",AK10*$BD$1)) -> 960.75 | AX10: =IF(AND('Att. Dairy'!B10=""),"",IF(AND(AV10="",AW10=""),"",SUM(AV10,AW10))) -> 960.75 | AY10: =IF(AND('Att. Dairy'!B10=""),"",IF(AND(AF10=""),"",BI10)) ->  | BF10: =IF(AND('Att. Dairy'!C10=""),"",'Att. Dairy'!C10) ->  | BH10: =IF(AND('Att. Dairy'!D10=""),"",'Att. Dairy'!D10) -> Friday | BI10: nkyjksVh | BK10: 0 | BM10: YES | BZ10: W | CA10: W | DU10: 2019-07-05 | DV10: NO | DW10: 244.90 | DX10: 141.10 | DY10: 77.20 | DZ10: 0.00 | EA10: 0.00 | EB10: 0.00 | EC10: 244.90 | ED10: 141.10 | EE10: 77.20 | EF10: 144 | EG10: 145 | EJ10: 88 | EK10: 95 | EL10: 0.00 | EM10: 0 | EN10: 0.00 | EO10: 244.90 | EP10: 141.10 | EQ10: 77.20 | ER10: 0.00 | ES10: 960.75
A11: 6 | B11: =IF(AND('Att. Dairy'!B11=""),"",'Att. Dairy'!B11) -> 2019-07-06 | D11: 244.900 | E11: 141.100 | F11: 38.600 | G11: 19.300 | H11: 19.300 | X11: 244.900 | Y11: 141.100 | Z11: 38.600 | AA11: 19.300 | AB11: 19.300 | AC11: =IF(AND('Att. Dairy'!O11=""),"",'Att. Dairy'!O11) -> 144 | AD11: =IF(AND('Att. Dairy'!P11=""),"",'Att. Dairy'!P11) -> 145 | AE11: 289 | AF11: =IF(AND('Att. Dairy'!E11=""),"",'Att. Dairy'!E11) -> 63 | AG11: =IF(AND('Att. Dairy'!F11=""),"",'Att. Dairy'!F11) -> 64 | AH11: 127 | AI11: =IF(AND('Att. Dairy'!I11=""),"",'Att. Dairy'!I11) ->  | AJ11: =IF(AND('Att. Dairy'!J11=""),"",'Att. Dairy'!J11) ->  | AK11: 0 | AL11: 12.700 | AM11: 0 | AN11: 0.000 | AO11: 0.000 | AP11: 0.000 | AQ11: 232.200 | AR11: 141.100 | AS11: 38.600 | AT11: 19.300 | AU11: 19.300 | AV11: =IF(AND('Att. Dairy'!B11=""),"",IF(AND(AH11=""),"",IF(AND(C11="YES",AH11>0),AH11*$BB$1,AH11*$BC$1))) -> 552.45 | AW11: =IF(AND('Att. Dairy'!B11=""),"",IF(AND(AK11=""),"",AK11*$BD$1)) -> 0.00 | AX11: =IF(AND('Att. Dairy'!B11=""),"",IF(AND(AV11="",AW11=""),"",SUM(AV11,AW11))) -> 552.45 | AY11: =IF(AND('Att. Dairy'!B11=""),"",IF(AND(AF11=""),"",BI11)) -> lCthjksVh | BF11: =IF(AND('Att. Dairy'!C11=""),"",'Att. Dairy'!C11) ->  | BH11: =IF(AND('Att. Dairy'!D11=""),"",'Att. Dairy'!D11) -> Saturday | BI11: lCthjksVh | BK11: 0 | BM11: NO | BZ11: W | CA11: W | DU11: 2019-07-06 | DV11: 0 | DW11: 244.90 | DX11: 141.10 | DY11: 77.20 | DZ11: 0.00 | EA11: 0.00 | EB11: 0.00 | EC11: 244.90 | ED11: 141.10 | EE11: 77.20 | EF11: 144 | EG11: 145 | EH11: 63 | EI11: 64 | EL11: 12.70 | EM11: 0 | EN11: 0.00 | EO11: 232.20 | EP11: 141.10 | EQ11: 77.20 | ER11: 552.45 | ES11: 0.00 | ET11: lCthjksVh
A12: 7 | B12: =IF(AND('Att. Dairy'!B12=""),"",'Att. Dairy'!B12) -> 2019-07-07 | D12: 232.200 | E12: 141.100 | F12: 38.600 | G12: 19.300 | H12: 19.300 | X12: 232.200 | Y12: 141.100 | Z12: 38.600 | AA12: 19.300 | AB12: 19.300 | AC12: =IF(AND('Att. Dairy'!O12=""),"",'Att. Dairy'!O12) ->  | AD12: =IF(AND('Att. Dairy'!P12=""),"",'Att. Dairy'!P12) ->  | AE12: 0 | AF12: =IF(AND('Att. Dairy'!E12=""),"",'Att. Dairy'!E12) ->  | AG12: =IF(AND('Att. Dairy'!F12=""),"",'Att. Dairy'!F12) ->  | AH12: 0 | AI12: =IF(AND('Att. Dairy'!I12=""),"",'Att. Dairy'!I12) ->  | AJ12: =IF(AND('Att. Dairy'!J12=""),"",'Att. Dairy'!J12) ->  | AK12: 0 | AL12: 0 | AM12: 0 | AN12: 0.000 | AO12: 0.000 | AP12: 0.000 | AQ12: 232.200 | AR12: 141.100 | AS12: 38.600 | AT12: 19.300 | AU12: 19.300 | AV12: =IF(AND('Att. Dairy'!B12=""),"",IF(AND(AH12=""),"",IF(AND(C12="YES",AH12>0),AH12*$BB$1,AH12*$BC$1))) -> 0.00 | AW12: =IF(AND('Att. Dairy'!B12=""),"",IF(AND(AK12=""),"",AK12*$BD$1)) -> 0.00 | AX12: =IF(AND('Att. Dairy'!B12=""),"",IF(AND(AV12="",AW12=""),"",SUM(AV12,AW12))) -> 0.00 | AY12: =IF(AND('Att. Dairy'!B12=""),"",IF(AND(AF12=""),"",BI12)) ->  | BF12: =IF(AND('Att. Dairy'!C12=""),"",'Att. Dairy'!C12) ->  | BH12: =IF(AND('Att. Dairy'!D12=""),"",'Att. Dairy'!D12) -> Sunday | BI12: vodk'k | BK12: 0 | BZ12: FALSE | CA12: FALSE | DU12: 2019-07-07 | DV12: 0 | DW12: 232.20 | DX12: 141.10 | DY12: 77.20 | DZ12: 0.00 | EA12: 0.00 | EB12: 0.00 | EC12: 232.20 | ED12: 141.10 | EE12: 77.20 | EL12: 0 | EM12: 0 | EN12: 0.00 | EO12: 232.20 | EP12: 141.10 | EQ12: 77.20 | ER12: 0.00 | ES12: 0.00
A13: 8 | B13: =IF(AND('Att. Dairy'!B13=""),"",'Att. Dairy'!B13) -> 2019-07-08 | D13: 232.200 | E13: 141.100 | F13: 38.600 | G13: 19.300 | H13: 19.300 | X13: 232.200 | Y13: 141.100 | Z13: 38.600 | AA13: 19.300 | AB13: 19.300 | AC13: =IF(AND('Att. Dairy'!O13=""),"",'Att. Dairy'!O13) -> 144 | AD13: =IF(AND('Att. Dairy'!P13=""),"",'Att. Dairy'!P13) -> 145 | AE13: 289 | AF13: =IF(AND('Att. Dairy'!E13=""),"",'Att. Dairy'!E13) -> 66 | AG13: =IF(AND('Att. Dairy'!F13=""),"",'Att. Dairy'!F13) -> 67 | AH13: 133 | AI13: =IF(AND('Att. Dairy'!I13=""),"",'Att. Dairy'!I13) ->  | AJ13: =IF(AND('Att. Dairy'!J13=""),"",'Att. Dairy'!J13) ->  | AK13: 0 | AL13: 13.300 | AM13: 0 | AN13: 0.000 | AO13: 0.000 | AP13: 0.000 | AQ13: 218.900 | AR13: 141.100 | AS13: 38.600 | AT13: 19.300 | AU13: 19.300 | AV13: =IF(AND('Att. Dairy'!B13=""),"",IF(AND(AH13=""),"",IF(AND(C13="YES",AH13>0),AH13*$BB$1,AH13*$BC$1))) -> 578.55 | AW13: =IF(AND('Att. Dairy'!B13=""),"",IF(AND(AK13=""),"",AK13*$BD$1)) -> 0.00 | AX13: =IF(AND('Att. Dairy'!B13=""),"",IF(AND(AV13="",AW13=""),"",SUM(AV13,AW13))) -> 578.55 | AY13: =IF(AND('Att. Dairy'!B13=""),"",IF(AND(AF13=""),"",BI13)) -> lCthjksVh | BF13: =IF(AND('Att. Dairy'!C13=""),"",'Att. Dairy'!C13) ->  | BH13: =IF(AND('Att. Dairy'!D13=""),"",'Att. Dairy'!D13) -> Monday | BI13: lCthjksVh | BK13: 0 | BZ13: W | CA13: W | DU13: 2019-07-08 | DV13: 0 | DW13: 232.20 | DX13: 141.10 | DY13: 77.20 | DZ13: 0.00 | EA13: 0.00 | EB13: 0.00 | EC13: 232.20 | ED13: 141.10 | EE13: 77.20 | EF13: 144 | EG13: 145 | EH13: 66 | EI13: 67 | EL13: 13.30 | EM13: 0 | EN13: 0.00 | EO13: 218.90 | EP13: 141.10 | EQ13: 77.20 | ER13: 578.55 | ES13: 0.00 | ET13: lCthjksVh
A14: 9 | B14: =IF(AND('Att. Dairy'!B14=""),"",'Att. Dairy'!B14) -> 2019-07-09 | D14: 218.900 | E14: 141.100 | F14: 38.600 | G14: 19.300 | H14: 19.300 | X14: 218.900 | Y14: 141.100 | Z14: 38.600 | AA14: 19.300 | AB14: 19.300 | AC14: =IF(AND('Att. Dairy'!O14=""),"",'Att. Dairy'!O14) ->  | AD14: =IF(AND('Att. Dairy'!P14=""),"",'Att. Dairy'!P14) ->  | AE14: 0 | AF14: =IF(AND('Att. Dairy'!E14=""),"",'Att. Dairy'!E14) ->  | AG14: =IF(AND('Att. Dairy'!F14=""),"",'Att. Dairy'!F14) ->  | AH14: 0 | AI14: =IF(AND('Att. Dairy'!I14=""),"",'Att. Dairy'!I14) ->  | AJ14: =IF(AND('Att. Dairy'!J14=""),"",'Att. Dairy'!J14) ->  | AK14: 0 | AL14: 0 | AM14: 0.000 | AN14: 0.000 | AO14: 0.000 | AP14: 0.000 | AQ14: 218.900 | AR14: 141.100 | AS14: 38.600 | AT14: 19.300 | AU14: 19.300 | AV14: =IF(AND('Att. Dairy'!B14=""),"",IF(AND(AH14=""),"",IF(AND(C14="YES",AH14>0),AH14*$BB$1,AH14*$BC$1))) -> 0.00 | AW14: =IF(AND('Att. Dairy'!B14=""),"",IF(AND(AK14=""),"",AK14*$BD$1)) -> 0.00 | AX14: =IF(AND('Att. Dairy'!B14=""),"",IF(AND(AV14="",AW14=""),"",SUM(AV14,AW14))) -> 0.00 | AY14: =IF(AND('Att. Dairy'!B14=""),"",IF(AND(AF14=""),"",BI14)) ->  | BF14: =IF(AND('Att. Dairy'!C14=""),"",'Att. Dairy'!C14) ->  | BH14: =IF(AND('Att. Dairy'!D14=""),"",'Att. Dairy'!D14) -> Tuesday | BI14: nkypkoy | BK14: 0 | BZ14: R | CA14: R | DU14: 2019-07-09 | DV14: 0 | DW14: 218.90 | DX14: 141.10 | DY14: 77.20 | DZ14: 0.00 | EA14: 0.00 | EB14: 0.00 | EC14: 218.90 | ED14: 141.10 | EE14: 77.20 | EL14: 0 | EM14: 0.00 | EN14: 0.00 | EO14: 218.90 | EP14: 141.10 | EQ14: 77.20 | ER14: 0.00 | ES14: 0.00
A15: 10 | B15: =IF(AND('Att. Dairy'!B15=""),"",'Att. Dairy'!B15) -> 2019-07-10 | D15: 218.900 | E15: 141.100 | F15: 38.600 | G15: 19.300 | H15: 19.300 | X15: =IF(AND(D15=""),"",SUM(D15,I15,N15,S15)) -> 218.900 | Y15: 141.100 | Z15: 38.600 | AA15: 19.300 | AB15: 19.300 | AC15: =IF(AND('Att. Dairy'!O15=""),"",'Att. Dairy'!O15) ->  | AD15: =IF(AND('Att. Dairy'!P15=""),"",'Att. Dairy'!P15) ->  | AE15: 0 | AF15: =IF(AND('Att. Dairy'!E15=""),"",'Att. Dairy'!E15) ->  | AG15: =IF(AND('Att. Dairy'!F15=""),"",'Att. Dairy'!F15) ->  | AH15: 0 | AI15: =IF(AND('Att. Dairy'!I15=""),"",'Att. Dairy'!I15) ->  | AJ15: =IF(AND('Att. Dairy'!J15=""),"",'Att. Dairy'!J15) ->  | AK15: 0 | AL15: 0.000 | AM15: 0 | AN15: 0.000 | AO15: 0.000 | AP15: 0.000 | AQ15: 218.900 | AR15: 141.100 | AS15: 38.600 | AT15: 19.300 | AU15: 19.300 | AV15: =IF(AND('Att. Dairy'!B15=""),"",IF(AND(AH15=""),"",IF(AND(C15="YES",AH15>0),AH15*$BB$1,AH15*$BC$1))) -> 0.00 | AW15: =IF(AND('Att. Dairy'!B15=""),"",IF(AND(AK15=""),"",AK15*$BD$1)) -> 0.00 | AX15: =IF(AND('Att. Dairy'!B15=""),"",IF(AND(AV15="",AW15=""),"",SUM(AV15,AW15))) -> 0.00 | AY15: =IF(AND('Att. Dairy'!B15=""),"",IF(AND(AF15=""),"",BI15)) ->  | BF15: =IF(AND('Att. Dairy'!C15=""),"",'Att. Dairy'!C15) ->  | BH15: =IF(AND('Att. Dairy'!D15=""),"",'Att. Dairy'!D15) -> Wednesday | BI15: nkyjksVh | BK15: 0 | BZ15: W | CA15: W | DU15: 2019-07-10 | DV15: 0 | DW15: 218.90 | DX15: 141.10 | DY15: 77.20 | DZ15: 0.00 | EA15: 0.00 | EB15: 0.00 | EC15: 218.90 | ED15: 141.10 | EE15: 77.20 | EL15: 0.00 | EM15: 0 | EN15: 0.00 | EO15: 218.90 | EP15: 141.10 | EQ15: 77.20 | ER15: 0.00 | ES15: 0.00
A16: 11 | B16: =IF(AND('Att. Dairy'!B16=""),"",'Att. Dairy'!B16) -> 2019-07-11 | D16: 218.900 | E16: 141.100 | F16: 38.600 | G16: 19.300 | H16: 19.300 | X16: 218.900 | Y16: 141.100 | Z16: 38.600 | AA16: 19.300 | AB16: 19.300 | AC16: =IF(AND('Att. Dairy'!O16=""),"",'Att. Dairy'!O16) ->  | AD16: =IF(AND('Att. Dairy'!P16=""),"",'Att. Dairy'!P16) ->  | AE16: 0 | AF16: =IF(AND('Att. Dairy'!E16=""),"",'Att. Dairy'!E16) ->  | AG16: =IF(AND('Att. Dairy'!F16=""),"",'Att. Dairy'!F16) ->  | AH16: 0 | AI16: =IF(AND('Att. Dairy'!I16=""),"",'Att. Dairy'!I16) ->  | AJ16: =IF(AND('Att. Dairy'!J16=""),"",'Att. Dairy'!J16) ->  | AK16: 0 | AL16: 0 | AM16: 0.000 | AN16: 0.000 | AO16: 0.000 | AP16: 0.000 | AQ16: 218.900 | AR16: 141.100 | AS16: 38.600 | AT16: 19.300 | AU16: 19.300 | AV16: =IF(AND('Att. Dairy'!B16=""),"",IF(AND(AH16=""),"",IF(AND(C16="YES",AH16>0),AH16*$BB$1,AH16*$BC$1))) -> 0.00 | AW16: =IF(AND('Att. Dairy'!B16=""),"",IF(AND(AK16=""),"",AK16*$BD$1)) -> 0.00 | AX16: =IF(AND('Att. Dairy'!B16=""),"",IF(AND(AV16="",AW16=""),"",SUM(AV16,AW16))) -> 0.00 | AY16: =IF(AND('Att. Dairy'!B16=""),"",IF(AND(AF16=""),"",BI16)) ->  | BF16: =IF(AND('Att. Dairy'!C16=""),"",'Att. Dairy'!C16) ->  | BH16: =IF(AND('Att. Dairy'!D16=""),"",'Att. Dairy'!D16) -> Thursday | BI16: f[kpM+h | BK16: 0 | BZ16: R | CA16: R | DU16: 2019-07-11 | DV16: 0 | DW16: 218.90 | DX16: 141.10 | DY16: 77.20 | DZ16: 0.00 | EA16: 0.00 | EB16: 0.00 | EC16: 218.90 | ED16: 141.10 | EE16: 77.20 | EL16: 0 | EM16: 0.00 | EN16: 0.00 | EO16: 218.90 | EP16: 141.10 | EQ16: 77.20 | ER16: 0.00 | ES16: 0.00
A17: 12 | B17: =IF(AND('Att. Dairy'!B17=""),"",'Att. Dairy'!B17) -> 2019-07-12 | D17: 218.900 | E17: 141.100 | F17: 38.600 | G17: 19.300 | H17: 19.300 | X17: 218.900 | Y17: 141.100 | Z17: 38.600 | AA17: 19.300 | AB17: 19.300 | AC17: =IF(AND('Att. Dairy'!O17=""),"",'Att. Dairy'!O17) ->  | AD17: =IF(AND('Att. Dairy'!P17=""),"",'Att. Dairy'!P17) ->  | AE17: 0 | AF17: =IF(AND('Att. Dairy'!E17=""),"",'Att. Dairy'!E17) ->  | AG17: =IF(AND('Att. Dairy'!F17=""),"",'Att. Dairy'!F17) ->  | AH17: 0 | AI17: =IF(AND('Att. Dairy'!I17=""),"",'Att. Dairy'!I17) ->  | AJ17: =IF(AND('Att. Dairy'!J17=""),"",'Att. Dairy'!J17) ->  | AK17: 0 | AL17: 0.000 | AM17: 0 | AN17: 0.000 | AO17: 0.000 | AP17: 0.000 | AQ17: 218.900 | AR17: 141.100 | AS17: 38.600 | AT17: 19.300 | AU17: 19.300 | AV17: =IF(AND('Att. Dairy'!B17=""),"",IF(AND(AH17=""),"",IF(AND(C17="YES",AH17>0),AH17*$BB$1,AH17*$BC$1))) -> 0.00 | AW17: =IF(AND('Att. Dairy'!B17=""),"",IF(AND(AK17=""),"",AK17*$BD$1)) -> 0.00 | AX17: =IF(AND('Att. Dairy'!B17=""),"",IF(AND(AV17="",AW17=""),"",SUM(AV17,AW17))) -> 0.00 | AY17: =IF(AND('Att. Dairy'!B17=""),"",IF(AND(AF17=""),"",BI17)) ->  | BF17: =IF(AND('Att. Dairy'!C17=""),"",'Att. Dairy'!C17) ->  | BH17: =IF(AND('Att. Dairy'!D17=""),"",'Att. Dairy'!D17) -> Friday | BI17: nkyjksVh | BK17: 0 | BZ17: W | CA17: W | DU17: 2019-07-12 | DV17: 0 | DW17: 218.90 | DX17: 141.10 | DY17: 77.20 | DZ17: 0.00 | EA17: 0.00 | EB17: 0.00 | EC17: 218.90 | ED17: 141.10 | EE17: 77.20 | EL17: 0.00 | EM17: 0 | EN17: 0.00 | EO17: 218.90 | EP17: 141.10 | EQ17: 77.20 | ER17: 0.00 | ES17: 0.00
A18: 13 | B18: =IF(AND('Att. Dairy'!B18=""),"",'Att. Dairy'!B18) -> 2019-07-13 | D18: 218.900 | E18: 141.100 | F18: 38.600 | G18: 19.300 | H18: 19.300 | X18: 218.900 | Y18: 141.100 | Z18: 38.600 | AA18: 19.300 | AB18: 19.300 | AC18: =IF(AND('Att. Dairy'!O18=""),"",'Att. Dairy'!O18) ->  | AD18: =IF(AND('Att. Dairy'!P18=""),"",'Att. Dairy'!P18) ->  | AE18: 0 | AF18: =IF(AND('Att. Dairy'!E18=""),"",'Att. Dairy'!E18) ->  | AG18: =IF(AND('Att. Dairy'!F18=""),"",'Att. Dairy'!F18) ->  | AH18: 0 | AI18: =IF(AND('Att. Dairy'!I18=""),"",'Att. Dairy'!I18) ->  | AJ18: =IF(AND('Att. Dairy'!J18=""),"",'Att. Dairy'!J18) ->  | AK18: 0 | AL18: 0.000 | AM18: 0 | AN18: 0.000 | AO18: 0.000 | AP18: 0.000 | AQ18: 218.900 | AR18: 141.100 | AS18: 38.600 | AT18: 19.300 | AU18: 19.300 | AV18: =IF(AND('Att. Dairy'!B18=""),"",IF(AND(AH18=""),"",IF(AND(C18="YES",AH18>0),AH18*$BB$1,AH18*$BC$1))) -> 0.00 | AW18: =IF(AND('Att. Dairy'!B18=""),"",IF(AND(AK18=""),"",AK18*$BD$1)) -> 0.00 | AX18: =IF(AND('Att. Dairy'!B18=""),"",IF(AND(AV18="",AW18=""),"",SUM(AV18,AW18))) -> 0.00 | AY18: =IF(AND('Att. Dairy'!B18=""),"",IF(AND(AF18=""),"",BI18)) ->  | BF18: =IF(AND('Att. Dairy'!C18=""),"",'Att. Dairy'!C18) ->  | BH18: =IF(AND('Att. Dairy'!D18=""),"",'Att. Dairy'!D18) -> Saturday | BI18: lCthjksVh | BK18: 0 | BZ18: W | CA18: W | DU18: 2019-07-13 | DV18: 0 | DW18: 218.90 | DX18: 141.10 | DY18: 77.20 | DZ18: 0.00 | EA18: 0.00 | EB18: 0.00 | EC18: 218.90 | ED18: 141.10 | EE18: 77.20 | EL18: 0.00 | EM18: 0 | EN18: 0.00 | EO18: 218.90 | EP18: 141.10 | EQ18: 77.20 | ER18: 0.00 | ES18: 0.00
A19: 14 | B19: =IF(AND('Att. Dairy'!B19=""),"",'Att. Dairy'!B19) -> 2019-07-14 | D19: 218.900 | E19: 141.100 | F19: 38.600 | G19: 19.300 | H19: 19.300 | X19: 218.900 | Y19: 141.100 | Z19: 38.600 | AA19: 19.300 | AB19: 19.300 | AC19: =IF(AND('Att. Dairy'!O19=""),"",'Att. Dairy'!O19) ->  | AD19: =IF(AND('Att. Dairy'!P19=""),"",'Att. Dairy'!P19) ->  | AE19: 0 | AF19: =IF(AND('Att. Dairy'!E19=""),"",'Att. Dairy'!E19) ->  | AG19: =IF(AND('Att. Dairy'!F19=""),"",'Att. Dairy'!F19) ->  | AH19: 0 | AI19: =IF(AND('Att. Dairy'!I19=""),"",'Att. Dairy'!I19) ->  | AJ19: =IF(AND('Att. Dairy'!J19=""),"",'Att. Dairy'!J19) ->  | AK19: 0 | AL19: 0 | AM19: 0 | AN19: 0.000 | AO19: 0.000 | AP19: 0.000 | AQ19: 218.900 | AR19: 141.100 | AS19: 38.600 | AT19: 19.300 | AU19: 19.300 | AV19: =IF(AND('Att. Dairy'!B19=""),"",IF(AND(AH19=""),"",IF(AND(C19="YES",AH19>0),AH19*$BB$1,AH19*$BC$1))) -> 0.00 | AW19: =IF(AND('Att. Dairy'!B19=""),"",IF(AND(AK19=""),"",AK19*$BD$1)) -> 0.00 | AX19: =IF(AND('Att. Dairy'!B19=""),"",IF(AND(AV19="",AW19=""),"",SUM(AV19,AW19))) -> 0.00 | AY19: =IF(AND('Att. Dairy'!B19=""),"",IF(AND(AF19=""),"",BI19)) ->  | BF19: =IF(AND('Att. Dairy'!C19=""),"",'Att. Dairy'!C19) ->  | BH19: =IF(AND('Att. Dairy'!D19=""),"",'Att. Dairy'!D19) -> Sunday | BI19: vodk'k | BK19: 0 | BZ19: FALSE | CA19: FALSE | DU19: 2019-07-14 | DV19: 0 | DW19: 218.90 | DX19: 141.10 | DY19: 77.20 | DZ19: 0.00 | EA19: 0.00 | EB19: 0.00 | EC19: 218.90 | ED19: 141.10 | EE19: 77.20 | EL19: 0 | EM19: 0 | EN19: 0.00 | EO19: 218.90 | EP19: 141.10 | EQ19: 77.20 | ER19: 0.00 | ES19: 0.00
A20: 15 | B20: =IF(AND('Att. Dairy'!B20=""),"",'Att. Dairy'!B20) -> 2019-07-15 | D20: 218.900 | E20: 141.100 | F20: 38.600 | G20: 19.300 | H20: 19.300 | X20: 218.900 | Y20: 141.100 | Z20: 38.600 | AA20: 19.300 | AB20: 19.300 | AC20: =IF(AND('Att. Dairy'!O20=""),"",'Att. Dairy'!O20) ->  | AD20: =IF(AND('Att. Dairy'!P20=""),"",'Att. Dairy'!P20) ->  | AE20: 0 | AF20: =IF(AND('Att. Dairy'!E20=""),"",'Att. Dairy'!E20) ->  | AG20: =IF(AND('Att. Dairy'!F20=""),"",'Att. Dairy'!F20) ->  | AH20: 0 | AI20: =IF(AND('Att. Dairy'!I20=""),"",'Att. Dairy'!I20) ->  | AJ20: =IF(AND('Att. Dairy'!J20=""),"",'Att. Dairy'!J20) ->  | AK20: 0 | AL20: 0.000 | AM20: 0 | AN20: 0.000 | AO20: 0.000 | AP20: 0.000 | AQ20: 218.900 | AR20: 141.100 | AS20: 38.600 | AT20: 19.300 | AU20: 19.300 | AV20: =IF(AND('Att. Dairy'!B20=""),"",IF(AND(AH20=""),"",IF(AND(C20="YES",AH20>0),AH20*$BB$1,AH20*$BC$1))) -> 0.00 | AW20: =IF(AND('Att. Dairy'!B20=""),"",IF(AND(AK20=""),"",AK20*$BD$1)) -> 0.00 | AX20: =IF(AND('Att. Dairy'!B20=""),"",IF(AND(AV20="",AW20=""),"",SUM(AV20,AW20))) -> 0.00 | AY20: =IF(AND('Att. Dairy'!B20=""),"",IF(AND(AF20=""),"",BI20)) ->  | BF20: =IF(AND('Att. Dairy'!C20=""),"",'Att. Dairy'!C20) ->  | BH20: =IF(AND('Att. Dairy'!D20=""),"",'Att. Dairy'!D20) -> Monday | BI20: lCthjksVh | BK20: 0 | BZ20: W | CA20: W | DU20: 2019-07-15 | DV20: 0 | DW20: 218.90 | DX20: 141.10 | DY20: 77.20 | DZ20: 0.00 | EA20: 0.00 | EB20: 0.00 | EC20: 218.90 | ED20: 141.10 | EE20: 77.20 | EL20: 0.00 | EM20: 0 | EN20: 0.00 | EO20: 218.90 | EP20: 141.10 | EQ20: 77.20 | ER20: 0.00 | ES20: 0.00
A21: 16 | B21: =IF(AND('Att. Dairy'!B21=""),"",'Att. Dairy'!B21) -> 2019-07-16 | D21: 218.900 | E21: 141.100 | F21: 38.600 | G21: 19.300 | H21: 19.300 | X21: 218.900 | Y21: 141.100 | Z21: 38.600 | AA21: 19.300 | AB21: 19.300 | AC21: =IF(AND('Att. Dairy'!O21=""),"",'Att. Dairy'!O21) ->  | AD21: =IF(AND('Att. Dairy'!P21=""),"",'Att. Dairy'!P21) ->  | AE21: 0 | AF21: =IF(AND('Att. Dairy'!E21=""),"",'Att. Dairy'!E21) ->  | AG21: =IF(AND('Att. Dairy'!F21=""),"",'Att. Dairy'!F21) ->  | AH21: 0 | AI21: =IF(AND('Att. Dairy'!I21=""),"",'Att. Dairy'!I21) ->  | AJ21: =IF(AND('Att. Dairy'!J21=""),"",'Att. Dairy'!J21) ->  | AK21: 0 | AL21: 0 | AM21: 0.000 | AN21: 0.000 | AO21: 0.000 | AP21: 0.000 | AQ21: 218.900 | AR21: 141.100 | AS21: 38.600 | AT21: 19.300 | AU21: 19.300 | AV21: =IF(AND('Att. Dairy'!B21=""),"",IF(AND(AH21=""),"",IF(AND(C21="YES",AH21>0),AH21*$BB$1,AH21*$BC$1))) -> 0.00 | AW21: =IF(AND('Att. Dairy'!B21=""),"",IF(AND(AK21=""),"",AK21*$BD$1)) -> 0.00 | AX21: =IF(AND('Att. Dairy'!B21=""),"",IF(AND(AV21="",AW21=""),"",SUM(AV21,AW21))) -> 0.00 | AY21: =IF(AND('Att. Dairy'!B21=""),"",IF(AND(AF21=""),"",BI21)) ->  | BF21: =IF(AND('Att. Dairy'!C21=""),"",'Att. Dairy'!C21) ->  | BH21: =IF(AND('Att. Dairy'!D21=""),"",'Att. Dairy'!D21) -> Tuesday | BI21: nkypkoy | BK21: 0 | BZ21: R | CA21: R | DU21: 2019-07-16 | DV21: 0 | DW21: 218.90 | DX21: 141.10 | DY21: 77.20 | DZ21: 0.00 | EA21: 0.00 | EB21: 0.00 | EC21: 218.90 | ED21: 141.10 | EE21: 77.20 | EL21: 0 | EM21: 0.00 | EN21: 0.00 | EO21: 218.90 | EP21: 141.10 | EQ21: 77.20 | ER21: 0.00 | ES21: 0.00
A22: 17 | B22: =IF(AND('Att. Dairy'!B22=""),"",'Att. Dairy'!B22) -> 2019-07-17 | D22: 218.900 | E22: 141.100 | F22: 38.600 | G22: 19.300 | H22: 19.300 | X22: 218.900 | Y22: 141.100 | Z22: 38.600 | AA22: 19.300 | AB22: 19.300 | AC22: =IF(AND('Att. Dairy'!O22=""),"",'Att. Dairy'!O22) ->  | AD22: =IF(AND('Att. Dairy'!P22=""),"",'Att. Dairy'!P22) ->  | AE22: 0 | AF22: =IF(AND('Att. Dairy'!E22=""),"",'Att. Dairy'!E22) ->  | AG22: =IF(AND('Att. Dairy'!F22=""),"",'Att. Dairy'!F22) ->  | AH22: 0 | AI22: =IF(AND('Att. Dairy'!I22=""),"",'Att. Dairy'!I22) ->  | AJ22: =IF(AND('Att. Dairy'!J22=""),"",'Att. Dairy'!J22) ->  | AK22: 0 | AL22: 0.000 | AM22: 0 | AN22: 0.000 | AO22: 0.000 | AP22: 0.000 | AQ22: 218.900 | AR22: 141.100 | AS22: 38.600 | AT22: 19.300 | AU22: 19.300 | AV22: =IF(AND('Att. Dairy'!B22=""),"",IF(AND(AH22=""),"",IF(AND(C22="YES",AH22>0),AH22*$BB$1,AH22*$BC$1))) -> 0.00 | AW22: =IF(AND('Att. Dairy'!B22=""),"",IF(AND(AK22=""),"",AK22*$BD$1)) -> 0.00 | AX22: =IF(AND('Att. Dairy'!B22=""),"",IF(AND(AV22="",AW22=""),"",SUM(AV22,AW22))) -> 0.00 | AY22: =IF(AND('Att. Dairy'!B22=""),"",IF(AND(AF22=""),"",BI22)) ->  | BF22: =IF(AND('Att. Dairy'!C22=""),"",'Att. Dairy'!C22) ->  | BH22: =IF(AND('Att. Dairy'!D22=""),"",'Att. Dairy'!D22) -> Wednesday | BI22: nkyjksVh | BK22: 0 | BZ22: W | CA22: W | DU22: 2019-07-17 | DV22: 0 | DW22: 218.90 | DX22: 141.10 | DY22: 77.20 | DZ22: 0.00 | EA22: 0.00 | EB22: 0.00 | EC22: 218.90 | ED22: 141.10 | EE22: 77.20 | EL22: 0.00 | EM22: 0 | EN22: 0.00 | EO22: 218.90 | EP22: 141.10 | EQ22: 77.20 | ER22: 0.00 | ES22: 0.00
A23: 18 | B23: =IF(AND('Att. Dairy'!B23=""),"",'Att. Dairy'!B23) -> 2019-07-18 | D23: 218.900 | E23: 141.100 | F23: 38.600 | G23: 19.300 | H23: 19.300 | X23: 218.900 | Y23: 141.100 | Z23: 38.600 | AA23: 19.300 | AB23: 19.300 | AC23: =IF(AND('Att. Dairy'!O23=""),"",'Att. Dairy'!O23) ->  | AD23: =IF(AND('Att. Dairy'!P23=""),"",'Att. Dairy'!P23) ->  | AE23: 0 | AF23: =IF(AND('Att. Dairy'!E23=""),"",'Att. Dairy'!E23) ->  | AG23: =IF(AND('Att. Dairy'!F23=""),"",'Att. Dairy'!F23) ->  | AH23: 0 | AI23: =IF(AND('Att. Dairy'!I23=""),"",'Att. Dairy'!I23) ->  | AJ23: =IF(AND('Att. Dairy'!J23=""),"",'Att. Dairy'!J23) ->  | AK23: 0 | AL23: 0 | AM23: 0.000 | AN23: 0.000 | AO23: 0.000 | AP23: 0.000 | AQ23: 218.900 | AR23: 141.100 | AS23: 38.600 | AT23: 19.300 | AU23: 19.300 | AV23: =IF(AND('Att. Dairy'!B23=""),"",IF(AND(AH23=""),"",IF(AND(C23="YES",AH23>0),AH23*$BB$1,AH23*$BC$1))) -> 0.00 | AW23: =IF(AND('Att. Dairy'!B23=""),"",IF(AND(AK23=""),"",AK23*$BD$1)) -> 0.00 | AX23: =IF(AND('Att. Dairy'!B23=""),"",IF(AND(AV23="",AW23=""),"",SUM(AV23,AW23))) -> 0.00 | AY23: =IF(AND('Att. Dairy'!B23=""),"",IF(AND(AF23=""),"",BI23)) ->  | BF23: =IF(AND('Att. Dairy'!C23=""),"",'Att. Dairy'!C23) ->  | BH23: =IF(AND('Att. Dairy'!D23=""),"",'Att. Dairy'!D23) -> Thursday | BI23: f[kpM+h | BK23: 0 | BZ23: R | CA23: R | DU23: 2019-07-18 | DV23: 0 | DW23: 218.90 | DX23: 141.10 | DY23: 77.20 | DZ23: 0.00 | EA23: 0.00 | EB23: 0.00 | EC23: 218.90 | ED23: 141.10 | EE23: 77.20 | EL23: 0 | EM23: 0.00 | EN23: 0.00 | EO23: 218.90 | EP23: 141.10 | EQ23: 77.20 | ER23: 0.00 | ES23: 0.00
A24: 19 | B24: =IF(AND('Att. Dairy'!B24=""),"",'Att. Dairy'!B24) -> 2019-07-19 | D24: 218.900 | E24: 141.100 | F24: 38.600 | G24: 19.300 | H24: 19.300 | X24: 218.900 | Y24: 141.100 | Z24: 38.600 | AA24: 19.300 | AB24: 19.300 | AC24: =IF(AND('Att. Dairy'!O24=""),"",'Att. Dairy'!O24) ->  | AD24: =IF(AND('Att. Dairy'!P24=""),"",'Att. Dairy'!P24) ->  | AE24: 0 | AF24: =IF(AND('Att. Dairy'!E24=""),"",'Att. Dairy'!E24) ->  | AG24: =IF(AND('Att. Dairy'!F24=""),"",'Att. Dairy'!F24) ->  | AH24: 0 | AI24: =IF(AND('Att. Dairy'!I24=""),"",'Att. Dairy'!I24) ->  | AJ24: =IF(AND('Att. Dairy'!J24=""),"",'Att. Dairy'!J24) ->  | AK24: 0 | AL24: 0.000 | AM24: 0 | AN24: 0.000 | AO24: 0.000 | AP24: 0.000 | AQ24: 218.900 | AR24: 141.100 | AS24: 38.600 | AT24: 19.300 | AU24: 19.300 | AV24: =IF(AND('Att. Dairy'!B24=""),"",IF(AND(AH24=""),"",IF(AND(C24="YES",AH24>0),AH24*$BB$1,AH24*$BC$1))) -> 0.00 | AW24: =IF(AND('Att. Dairy'!B24=""),"",IF(AND(AK24=""),"",AK24*$BD$1)) -> 0.00 | AX24: =IF(AND('Att. Dairy'!B24=""),"",IF(AND(AV24="",AW24=""),"",SUM(AV24,AW24))) -> 0.00 | AY24: =IF(AND('Att. Dairy'!B24=""),"",IF(AND(AF24=""),"",BI24)) ->  | BF24: =IF(AND('Att. Dairy'!C24=""),"",'Att. Dairy'!C24) ->  | BH24: =IF(AND('Att. Dairy'!D24=""),"",'Att. Dairy'!D24) -> Friday | BI24: nkyjksVh | BK24: 0 | BZ24: W | CA24: W | DU24: 2019-07-19 | DV24: 0 | DW24: 218.90 | DX24: 141.10 | DY24: 77.20 | DZ24: 0.00 | EA24: 0.00 | EB24: 0.00 | EC24: 218.90 | ED24: 141.10 | EE24: 77.20 | EL24: 0.00 | EM24: 0 | EN24: 0.00 | EO24: 218.90 | EP24: 141.10 | EQ24: 77.20 | ER24: 0.00 | ES24: 0.00
A25: 20 | B25: =IF(AND('Att. Dairy'!B25=""),"",'Att. Dairy'!B25) -> 2019-07-20 | D25: 218.900 | E25: 141.100 | F25: 38.600 | G25: 19.300 | H25: 19.300 | X25: 218.900 | Y25: 141.100 | Z25: 38.600 | AA25: 19.300 | AB25: 19.300 | AC25: =IF(AND('Att. Dairy'!O25=""),"",'Att. Dairy'!O25) ->  | AD25: =IF(AND('Att. Dairy'!P25=""),"",'Att. Dairy'!P25) ->  | AE25: 0 | AF25: =IF(AND('Att. Dairy'!E25=""),"",'Att. Dairy'!E25) ->  | AG25: =IF(AND('Att. Dairy'!F25=""),"",'Att. Dairy'!F25) ->  | AH25: 0 | AI25: =IF(AND('Att. Dairy'!I25=""),"",'Att. Dairy'!I25) ->  | AJ25: =IF(AND('Att. Dairy'!J25=""),"",'Att. Dairy'!J25) ->  | AK25: 0 | AL25: 0.000 | AM25: 0 | AN25: 0.000 | AO25: 0.000 | AP25: 0.000 | AQ25: 218.900 | AR25: 141.100 | AS25: 38.600 | AT25: 19.300 | AU25: 19.300 | AV25: =IF(AND('Att. Dairy'!B25=""),"",IF(AND(AH25=""),"",IF(AND(C25="YES",AH25>0),AH25*$BB$1,AH25*$BC$1))) -> 0.00 | AW25: =IF(AND('Att. Dairy'!B25=""),"",IF(AND(AK25=""),"",AK25*$BD$1)) -> 0.00 | AX25: =IF(AND('Att. Dairy'!B25=""),"",IF(AND(AV25="",AW25=""),"",SUM(AV25,AW25))) -> 0.00 | AY25: =IF(AND('Att. Dairy'!B25=""),"",IF(AND(AF25=""),"",BI25)) ->  | BF25: =IF(AND('Att. Dairy'!C25=""),"",'Att. Dairy'!C25) ->  | BH25: =IF(AND('Att. Dairy'!D25=""),"",'Att. Dairy'!D25) -> Saturday | BI25: lCthjksVh | BK25: 0 | BZ25: W | CA25: W | DU25: 2019-07-20 | DV25: 0 | DW25: 218.90 | DX25: 141.10 | DY25: 77.20 | DZ25: 0.00 | EA25: 0.00 | EB25: 0.00 | EC25: 218.90 | ED25: 141.10 | EE25: 77.20 | EL25: 0.00 | EM25: 0 | EN25: 0.00 | EO25: 218.90 | EP25: 141.10 | EQ25: 77.20 | ER25: 0.00 | ES25: 0.00
A26: 21 | B26: =IF(AND('Att. Dairy'!B26=""),"",'Att. Dairy'!B26) -> 2019-07-21 | D26: 218.900 | E26: 141.100 | F26: 38.600 | G26: 19.300 | H26: 19.300 | X26: 218.900 | Y26: 141.100 | Z26: 38.600 | AA26: 19.300 | AB26: 19.300 | AC26: =IF(AND('Att. Dairy'!O26=""),"",'Att. Dairy'!O26) ->  | AD26: =IF(AND('Att. Dairy'!P26=""),"",'Att. Dairy'!P26) ->  | AE26: 0 | AF26: =IF(AND('Att. Dairy'!E26=""),"",'Att. Dairy'!E26) ->  | AG26: =IF(AND('Att. Dairy'!F26=""),"",'Att. Dairy'!F26) ->  | AH26: 0 | AI26: =IF(AND('Att. Dairy'!I26=""),"",'Att. Dairy'!I26) ->  | AJ26: =IF(AND('Att. Dairy'!J26=""),"",'Att. Dairy'!J26) ->  | AK26: 0 | AL26: 0 | AM26: 0 | AN26: 0.000 | AO26: 0.000 | AP26: 0.000 | AQ26: 218.900 | AR26: 141.100 | AS26: 38.600 | AT26: 19.300 | AU26: 19.300 | AV26: =IF(AND('Att. Dairy'!B26=""),"",IF(AND(AH26=""),"",IF(AND(C26="YES",AH26>0),AH26*$BB$1,AH26*$BC$1))) -> 0.00 | AW26: =IF(AND('Att. Dairy'!B26=""),"",IF(AND(AK26=""),"",AK26*$BD$1)) -> 0.00 | AX26: =IF(AND('Att. Dairy'!B26=""),"",IF(AND(AV26="",AW26=""),"",SUM(AV26,AW26))) -> 0.00 | AY26: =IF(AND('Att. Dairy'!B26=""),"",IF(AND(AF26=""),"",BI26)) ->  | BF26: =IF(AND('Att. Dairy'!C26=""),"",'Att. Dairy'!C26) ->  | BH26: =IF(AND('Att. Dairy'!D26=""),"",'Att. Dairy'!D26) -> Sunday | BI26: vodk'k | BK26: 0 | BZ26: FALSE | CA26: FALSE | DU26: 2019-07-21 | DV26: 0 | DW26: 218.90 | DX26: 141.10 | DY26: 77.20 | DZ26: 0.00 | EA26: 0.00 | EB26: 0.00 | EC26: 218.90 | ED26: 141.10 | EE26: 77.20 | EL26: 0 | EM26: 0 | EN26: 0.00 | EO26: 218.90 | EP26: 141.10 | EQ26: 77.20 | ER26: 0.00 | ES26: 0.00
A27: 22 | B27: =IF(AND('Att. Dairy'!B27=""),"",'Att. Dairy'!B27) -> 2019-07-22 | D27: 218.900 | E27: 141.100 | F27: 38.600 | G27: 19.300 | H27: 19.300 | X27: 218.900 | Y27: 141.100 | Z27: 38.600 | AA27: 19.300 | AB27: 19.300 | AC27: =IF(AND('Att. Dairy'!O27=""),"",'Att. Dairy'!O27) ->  | AD27: =IF(AND('Att. Dairy'!P27=""),"",'Att. Dairy'!P27) ->  | AE27: 0 | AF27: =IF(AND('Att. Dairy'!E27=""),"",'Att. Dairy'!E27) ->  | AG27: =IF(AND('Att. Dairy'!F27=""),"",'Att. Dairy'!F27) ->  | AH27: 0 | AI27: =IF(AND('Att. Dairy'!I27=""),"",'Att. Dairy'!I27) ->  | AJ27: =IF(AND('Att. Dairy'!J27=""),"",'Att. Dairy'!J27) ->  | AK27: 0 | AL27: 0.000 | AM27: 0 | AN27: 0.000 | AO27: 0.000 | AP27: 0.000 | AQ27: 218.900 | AR27: 141.100 | AS27: 38.600 | AT27: 19.300 | AU27: 19.300 | AV27: =IF(AND('Att. Dairy'!B27=""),"",IF(AND(AH27=""),"",IF(AND(C27="YES",AH27>0),AH27*$BB$1,AH27*$BC$1))) -> 0.00 | AW27: =IF(AND('Att. Dairy'!B27=""),"",IF(AND(AK27=""),"",AK27*$BD$1)) -> 0.00 | AX27: =IF(AND('Att. Dairy'!B27=""),"",IF(AND(AV27="",AW27=""),"",SUM(AV27,AW27))) -> 0.00 | AY27: =IF(AND('Att. Dairy'!B27=""),"",IF(AND(AF27=""),"",BI27)) ->  | BF27: =IF(AND('Att. Dairy'!C27=""),"",'Att. Dairy'!C27) ->  | BH27: =IF(AND('Att. Dairy'!D27=""),"",'Att. Dairy'!D27) -> Monday | BI27: lCthjksVh | BK27: 0 | BZ27: W | CA27: W | DU27: 2019-07-22 | DV27: 0 | DW27: 218.90 | DX27: 141.10 | DY27: 77.20 | DZ27: 0.00 | EA27: 0.00 | EB27: 0.00 | EC27: 218.90 | ED27: 141.10 | EE27: 77.20 | EL27: 0.00 | EM27: 0 | EN27: 0.00 | EO27: 218.90 | EP27: 141.10 | EQ27: 77.20 | ER27: 0.00 | ES27: 0.00
A28: 23 | B28: =IF(AND('Att. Dairy'!B28=""),"",'Att. Dairy'!B28) -> 2019-07-23 | D28: =IF(AND(AQ27=""),"",AQ27) -> 218.900 | E28: =IF(AND(AR27=""),"",AR27) -> 141.100 | F28: 38.600 | G28: 19.300 | H28: 19.300 | X28: 218.900 | Y28: 141.100 | Z28: 38.600 | AA28: 19.300 | AB28: 19.300 | AC28: =IF(AND('Att. Dairy'!O28=""),"",'Att. Dairy'!O28) ->  | AD28: =IF(AND('Att. Dairy'!P28=""),"",'Att. Dairy'!P28) ->  | AE28: 0 | AF28: =IF(AND('Att. Dairy'!E28=""),"",'Att. Dairy'!E28) ->  | AG28: =IF(AND('Att. Dairy'!F28=""),"",'Att. Dairy'!F28) ->  | AH28: 0 | AI28: =IF(AND('Att. Dairy'!I28=""),"",'Att. Dairy'!I28) ->  | AJ28: =IF(AND('Att. Dairy'!J28=""),"",'Att. Dairy'!J28) ->  | AK28: 0 | AL28: 0 | AM28: 0.000 | AN28: 0.000 | AO28: 0.000 | AP28: 0.000 | AQ28: 218.900 | AR28: 141.100 | AS28: 38.600 | AT28: 19.300 | AU28: 19.300 | AV28: =IF(AND('Att. Dairy'!B28=""),"",IF(AND(AH28=""),"",IF(AND(C28="YES",AH28>0),AH28*$BB$1,AH28*$BC$1))) -> 0.00 | AW28: =IF(AND('Att. Dairy'!B28=""),"",IF(AND(AK28=""),"",AK28*$BD$1)) -> 0.00 | AX28: =IF(AND('Att. Dairy'!B28=""),"",IF(AND(AV28="",AW28=""),"",SUM(AV28,AW28))) -> 0.00 | AY28: =IF(AND('Att. Dairy'!B28=""),"",IF(AND(AF28=""),"",BI28)) ->  | BF28: =IF(AND('Att. Dairy'!C28=""),"",'Att. Dairy'!C28) ->  | BH28: =IF(AND('Att. Dairy'!D28=""),"",'Att. Dairy'!D28) -> Tuesday | BI28: nkypkoy | BK28: 0 | BZ28: R | CA28: R | DU28: 2019-07-23 | DV28: 0 | DW28: 218.90 | DX28: 141.10 | DY28: 77.20 | DZ28: 0.00 | EA28: 0.00 | EB28: 0.00 | EC28: 218.90 | ED28: 141.10 | EE28: 77.20 | EL28: 0 | EM28: 0.00 | EN28: 0.00 | EO28: 218.90 | EP28: 141.10 | EQ28: 77.20 | ER28: 0.00 | ES28: 0.00
A29: 24 | B29: =IF(AND('Att. Dairy'!B29=""),"",'Att. Dairy'!B29) -> 2019-07-24 | D29: 218.900 | E29: 141.100 | F29: 38.600 | G29: 19.300 | H29: 19.300 | X29: 218.900 | Y29: 141.100 | Z29: 38.600 | AA29: 19.300 | AB29: 19.300 | AC29: =IF(AND('Att. Dairy'!O29=""),"",'Att. Dairy'!O29) ->  | AD29: =IF(AND('Att. Dairy'!P29=""),"",'Att. Dairy'!P29) ->  | AE29: 0 | AF29: =IF(AND('Att. Dairy'!E29=""),"",'Att. Dairy'!E29) ->  | AG29: =IF(AND('Att. Dairy'!F29=""),"",'Att. Dairy'!F29) ->  | AH29: 0 | AI29: =IF(AND('Att. Dairy'!I29=""),"",'Att. Dairy'!I29) ->  | AJ29: =IF(AND('Att. Dairy'!J29=""),"",'Att. Dairy'!J29) ->  | AK29: 0 | AL29: 0.000 | AM29: 0 | AN29: 0.000 | AO29: 0.000 | AP29: 0.000 | AQ29: 218.900 | AR29: 141.100 | AS29: 38.600 | AT29: 19.300 | AU29: 19.300 | AV29: =IF(AND('Att. Dairy'!B29=""),"",IF(AND(AH29=""),"",IF(AND(C29="YES",AH29>0),AH29*$BB$1,AH29*$BC$1))) -> 0.00 | AW29: =IF(AND('Att. Dairy'!B29=""),"",IF(AND(AK29=""),"",AK29*$BD$1)) -> 0.00 | AX29: =IF(AND('Att. Dairy'!B29=""),"",IF(AND(AV29="",AW29=""),"",SUM(AV29,AW29))) -> 0.00 | AY29: =IF(AND('Att. Dairy'!B29=""),"",IF(AND(AF29=""),"",BI29)) ->  | BF29: =IF(AND('Att. Dairy'!C29=""),"",'Att. Dairy'!C29) ->  | BH29: =IF(AND('Att. Dairy'!D29=""),"",'Att. Dairy'!D29) -> Wednesday | BI29: nkyjksVh | BK29: 0 | BZ29: W | CA29: W | DU29: 2019-07-24 | DV29: 0 | DW29: 218.90 | DX29: 141.10 | DY29: 77.20 | DZ29: 0.00 | EA29: 0.00 | EB29: 0.00 | EC29: 218.90 | ED29: 141.10 | EE29: 77.20 | EL29: 0.00 | EM29: 0 | EN29: 0.00 | EO29: 218.90 | EP29: 141.10 | EQ29: 77.20 | ER29: 0.00 | ES29: 0.00
A30: 25 | B30: =IF(AND('Att. Dairy'!B30=""),"",'Att. Dairy'!B30) -> 2019-07-25 | D30: 218.900 | E30: 141.100 | F30: 38.600 | G30: 19.300 | H30: 19.300 | X30: 218.900 | Y30: 141.100 | Z30: 38.600 | AA30: 19.300 | AB30: 19.300 | AC30: =IF(AND('Att. Dairy'!O30=""),"",'Att. Dairy'!O30) ->  | AD30: =IF(AND('Att. Dairy'!P30=""),"",'Att. Dairy'!P30) ->  | AE30: 0 | AF30: =IF(AND('Att. Dairy'!E30=""),"",'Att. Dairy'!E30) ->  | AG30: =IF(AND('Att. Dairy'!F30=""),"",'Att. Dairy'!F30) ->  | AH30: 0 | AI30: =IF(AND('Att. Dairy'!I30=""),"",'Att. Dairy'!I30) ->  | AJ30: =IF(AND('Att. Dairy'!J30=""),"",'Att. Dairy'!J30) ->  | AK30: 0 | AL30: 0 | AM30: 0.000 | AN30: 0.000 | AO30: 0.000 | AP30: 0.000 | AQ30: 218.900 | AR30: 141.100 | AS30: 38.600 | AT30: 19.300 | AU30: 19.300 | AV30: =IF(AND('Att. Dairy'!B30=""),"",IF(AND(AH30=""),"",IF(AND(C30="YES",AH30>0),AH30*$BB$1,AH30*$BC$1))) -> 0.00 | AW30: =IF(AND('Att. Dairy'!B30=""),"",IF(AND(AK30=""),"",AK30*$BD$1)) -> 0.00 | AX30: =IF(AND('Att. Dairy'!B30=""),"",IF(AND(AV30="",AW30=""),"",SUM(AV30,AW30))) -> 0.00 | AY30: =IF(AND('Att. Dairy'!B30=""),"",IF(AND(AF30=""),"",BI30)) ->  | BF30: =IF(AND('Att. Dairy'!C30=""),"",'Att. Dairy'!C30) ->  | BH30: =IF(AND('Att. Dairy'!D30=""),"",'Att. Dairy'!D30) -> Thursday | BI30: f[kpM+h | BK30: 0 | BZ30: R | CA30: R | DU30: 2019-07-25 | DV30: 0 | DW30: 218.90 | DX30: 141.10 | DY30: 77.20 | DZ30: 0.00 | EA30: 0.00 | EB30: 0.00 | EC30: 218.90 | ED30: 141.10 | EE30: 77.20 | EL30: 0 | EM30: 0.00 | EN30: 0.00 | EO30: 218.90 | EP30: 141.10 | EQ30: 77.20 | ER30: 0.00 | ES30: 0.00
A31: 26 | B31: =IF(AND('Att. Dairy'!B31=""),"",'Att. Dairy'!B31) -> 2019-07-26 | D31: 218.900 | E31: 141.100 | F31: 38.600 | G31: 19.300 | H31: 19.300 | X31: 218.900 | Y31: 141.100 | Z31: 38.600 | AA31: 19.300 | AB31: 19.300 | AC31: =IF(AND('Att. Dairy'!O31=""),"",'Att. Dairy'!O31) ->  | AD31: =IF(AND('Att. Dairy'!P31=""),"",'Att. Dairy'!P31) ->  | AE31: 0 | AF31: =IF(AND('Att. Dairy'!E31=""),"",'Att. Dairy'!E31) ->  | AG31: =IF(AND('Att. Dairy'!F31=""),"",'Att. Dairy'!F31) ->  | AH31: 0 | AI31: =IF(AND('Att. Dairy'!I31=""),"",'Att. Dairy'!I31) ->  | AJ31: =IF(AND('Att. Dairy'!J31=""),"",'Att. Dairy'!J31) ->  | AK31: 0 | AL31: 0.000 | AM31: 0 | AN31: 0.000 | AO31: 0.000 | AP31: 0.000 | AQ31: 218.900 | AR31: 141.100 | AS31: 38.600 | AT31: 19.300 | AU31: 19.300 | AV31: =IF(AND('Att. Dairy'!B31=""),"",IF(AND(AH31=""),"",IF(AND(C31="YES",AH31>0),AH31*$BB$1,AH31*$BC$1))) -> 0.00 | AW31: =IF(AND('Att. Dairy'!B31=""),"",IF(AND(AK31=""),"",AK31*$BD$1)) -> 0.00 | AX31: =IF(AND('Att. Dairy'!B31=""),"",IF(AND(AV31="",AW31=""),"",SUM(AV31,AW31))) -> 0.00 | AY31: =IF(AND('Att. Dairy'!B31=""),"",IF(AND(AF31=""),"",BI31)) ->  | BF31: =IF(AND('Att. Dairy'!C31=""),"",'Att. Dairy'!C31) ->  | BH31: =IF(AND('Att. Dairy'!D31=""),"",'Att. Dairy'!D31) -> Friday | BI31: nkyjksVh | BK31: 0 | BZ31: W | CA31: W | DU31: 2019-07-26 | DV31: 0 | DW31: 218.90 | DX31: 141.10 | DY31: 77.20 | DZ31: 0.00 | EA31: 0.00 | EB31: 0.00 | EC31: 218.90 | ED31: 141.10 | EE31: 77.20 | EL31: 0.00 | EM31: 0 | EN31: 0.00 | EO31: 218.90 | EP31: 141.10 | EQ31: 77.20 | ER31: 0.00 | ES31: 0.00
A32: 27 | B32: =IF(AND('Att. Dairy'!B32=""),"",'Att. Dairy'!B32) -> 2019-07-27 | D32: 218.900 | E32: 141.100 | F32: 38.600 | G32: 19.300 | H32: 19.300 | X32: 218.900 | Y32: 141.100 | Z32: 38.600 | AA32: 19.300 | AB32: 19.300 | AC32: =IF(AND('Att. Dairy'!O32=""),"",'Att. Dairy'!O32) ->  | AD32: =IF(AND('Att. Dairy'!P32=""),"",'Att. Dairy'!P32) ->  | AE32: 0 | AF32: =IF(AND('Att. Dairy'!E32=""),"",'Att. Dairy'!E32) ->  | AG32: =IF(AND('Att. Dairy'!F32=""),"",'Att. Dairy'!F32) ->  | AH32: 0 | AI32: =IF(AND('Att. Dairy'!I32=""),"",'Att. Dairy'!I32) ->  | AJ32: =IF(AND('Att. Dairy'!J32=""),"",'Att. Dairy'!J32) ->  | AK32: 0 | AL32: 0.000 | AM32: 0 | AN32: 0.000 | AO32: 0.000 | AP32: 0.000 | AQ32: 218.900 | AR32: 141.100 | AS32: 38.600 | AT32: 19.300 | AU32: 19.300 | AV32: =IF(AND('Att. Dairy'!B32=""),"",IF(AND(AH32=""),"",IF(AND(C32="YES",AH32>0),AH32*$BB$1,AH32*$BC$1))) -> 0.00 | AW32: =IF(AND('Att. Dairy'!B32=""),"",IF(AND(AK32=""),"",AK32*$BD$1)) -> 0.00 | AX32: =IF(AND('Att. Dairy'!B32=""),"",IF(AND(AV32="",AW32=""),"",SUM(AV32,AW32))) -> 0.00 | AY32: =IF(AND('Att. Dairy'!B32=""),"",IF(AND(AF32=""),"",BI32)) ->  | BF32: =IF(AND('Att. Dairy'!C32=""),"",'Att. Dairy'!C32) ->  | BH32: =IF(AND('Att. Dairy'!D32=""),"",'Att. Dairy'!D32) -> Saturday | BI32: lCthjksVh | BK32: 0 | BZ32: W | CA32: W | DU32: 2019-07-27 | DV32: 0 | DW32: 218.90 | DX32: 141.10 | DY32: 77.20 | DZ32: 0.00 | EA32: 0.00 | EB32: 0.00 | EC32: 218.90 | ED32: 141.10 | EE32: 77.20 | EL32: 0.00 | EM32: 0 | EN32: 0.00 | EO32: 218.90 | EP32: 141.10 | EQ32: 77.20 | ER32: 0.00 | ES32: 0.00
A33: 28 | B33: =IF(AND('Att. Dairy'!B33=""),"",'Att. Dairy'!B33) -> 2019-07-28 | D33: 218.900 | E33: 141.100 | F33: 38.600 | G33: 19.300 | H33: 19.300 | X33: 218.900 | Y33: 141.100 | Z33: 38.600 | AA33: 19.300 | AB33: 19.300 | AC33: =IF(AND('Att. Dairy'!O33=""),"",'Att. Dairy'!O33) ->  | AD33: =IF(AND('Att. Dairy'!P33=""),"",'Att. Dairy'!P33) ->  | AE33: 0 | AF33: =IF(AND('Att. Dairy'!E33=""),"",'Att. Dairy'!E33) ->  | AG33: =IF(AND('Att. Dairy'!F33=""),"",'Att. Dairy'!F33) ->  | AH33: 0 | AI33: =IF(AND('Att. Dairy'!I33=""),"",'Att. Dairy'!I33) ->  | AJ33: =IF(AND('Att. Dairy'!J33=""),"",'Att. Dairy'!J33) ->  | AK33: 0 | AL33: 0 | AM33: 0 | AN33: 0.000 | AO33: 0.000 | AP33: 0.000 | AQ33: 218.900 | AR33: 141.100 | AS33: 38.600 | AT33: 19.300 | AU33: 19.300 | AV33: =IF(AND('Att. Dairy'!B33=""),"",IF(AND(AH33=""),"",IF(AND(C33="YES",AH33>0),AH33*$BB$1,AH33*$BC$1))) -> 0.00 | AW33: =IF(AND('Att. Dairy'!B33=""),"",IF(AND(AK33=""),"",AK33*$BD$1)) -> 0.00 | AX33: =IF(AND('Att. Dairy'!B33=""),"",IF(AND(AV33="",AW33=""),"",SUM(AV33,AW33))) -> 0.00 | AY33: =IF(AND('Att. Dairy'!B33=""),"",IF(AND(AF33=""),"",BI33)) ->  | BF33: =IF(AND('Att. Dairy'!C33=""),"",'Att. Dairy'!C33) ->  | BH33: =IF(AND('Att. Dairy'!D33=""),"",'Att. Dairy'!D33) -> Sunday | BI33: vodk'k | BK33: 0 | BZ33: FALSE | CA33: FALSE | DU33: 2019-07-28 | DV33: 0 | DW33: 218.90 | DX33: 141.10 | DY33: 77.20 | DZ33: 0.00 | EA33: 0.00 | EB33: 0.00 | EC33: 218.90 | ED33: 141.10 | EE33: 77.20 | EL33: 0 | EM33: 0 | EN33: 0.00 | EO33: 218.90 | EP33: 141.10 | EQ33: 77.20 | ER33: 0.00 | ES33: 0.00
A34: 29 | B34: =IF(AND('Att. Dairy'!B34=""),"",'Att. Dairy'!B34) -> 2019-07-29 | D34: 218.900 | E34: 141.100 | F34: 38.600 | G34: 19.300 | H34: 19.300 | X34: 218.900 | Y34: 141.100 | Z34: 38.600 | AA34: 19.300 | AB34: 19.300 | AC34: =IF(AND('Att. Dairy'!O34=""),"",'Att. Dairy'!O34) ->  | AD34: =IF(AND('Att. Dairy'!P34=""),"",'Att. Dairy'!P34) ->  | AE34: 0 | AF34: =IF(AND('Att. Dairy'!E34=""),"",'Att. Dairy'!E34) ->  | AG34: =IF(AND('Att. Dairy'!F34=""),"",'Att. Dairy'!F34) ->  | AH34: 0 | AI34: =IF(AND('Att. Dairy'!I34=""),"",'Att. Dairy'!I34) ->  | AJ34: =IF(AND('Att. Dairy'!J34=""),"",'Att. Dairy'!J34) ->  | AK34: 0 | AL34: 0.000 | AM34: 0 | AN34: 0.000 | AO34: 0.000 | AP34: 0.000 | AQ34: 218.900 | AR34: 141.100 | AS34: 38.600 | AT34: 19.300 | AU34: 19.300 | AV34: =IF(AND('Att. Dairy'!B34=""),"",IF(AND(AH34=""),"",IF(AND(C34="YES",AH34>0),AH34*$BB$1,AH34*$BC$1))) -> 0.00 | AW34: =IF(AND('Att. Dairy'!B34=""),"",IF(AND(AK34=""),"",AK34*$BD$1)) -> 0.00 | AX34: =IF(AND('Att. Dairy'!B34=""),"",IF(AND(AV34="",AW34=""),"",SUM(AV34,AW34))) -> 0.00 | AY34: =IF(AND('Att. Dairy'!B34=""),"",IF(AND(AF34=""),"",BI34)) ->  | BF34: =IF(AND('Att. Dairy'!C34=""),"",'Att. Dairy'!C34) ->  | BH34: =IF(AND('Att. Dairy'!D34=""),"",'Att. Dairy'!D34) -> Monday | BI34: lCthjksVh | BK34: 0 | BZ34: W | CA34: W | DU34: 2019-07-29 | DV34: 0 | DW34: 218.90 | DX34: 141.10 | DY34: 77.20 | DZ34: 0.00 | EA34: 0.00 | EB34: 0.00 | EC34: 218.90 | ED34: 141.10 | EE34: 77.20 | EL34: 0.00 | EM34: 0 | EN34: 0.00 | EO34: 218.90 | EP34: 141.10 | EQ34: 77.20 | ER34: 0.00 | ES34: 0.00
A35: 30 | B35: =IF(AND('Att. Dairy'!B35=""),"",'Att. Dairy'!B35) -> 2019-07-30 | D35: 218.900 | E35: 141.100 | F35: 38.600 | G35: 19.300 | H35: 19.300 | X35: 218.900 | Y35: 141.100 | Z35: 38.600 | AA35: 19.300 | AB35: 19.300 | AC35: =IF(AND('Att. Dairy'!O35=""),"",'Att. Dairy'!O35) ->  | AD35: =IF(AND('Att. Dairy'!P35=""),"",'Att. Dairy'!P35) ->  | AE35: 0 | AF35: =IF(AND('Att. Dairy'!E35=""),"",'Att. Dairy'!E35) ->  | AG35: =IF(AND('Att. Dairy'!F35=""),"",'Att. Dairy'!F35) ->  | AH35: 0 | AI35: =IF(AND('Att. Dairy'!I35=""),"",'Att. Dairy'!I35) ->  | AJ35: =IF(AND('Att. Dairy'!J35=""),"",'Att. Dairy'!J35) ->  | AK35: 0 | AL35: 0 | AM35: 0.000 | AN35: 0.000 | AO35: 0.000 | AP35: 0.000 | AQ35: 218.900 | AR35: 141.100 | AS35: 38.600 | AT35: 19.300 | AU35: 19.300 | AV35: =IF(AND('Att. Dairy'!B35=""),"",IF(AND(AH35=""),"",IF(AND(C35="YES",AH35>0),AH35*$BB$1,AH35*$BC$1))) -> 0.00 | AW35: =IF(AND('Att. Dairy'!B35=""),"",IF(AND(AK35=""),"",AK35*$BD$1)) -> 0.00 | AX35: =IF(AND('Att. Dairy'!B35=""),"",IF(AND(AV35="",AW35=""),"",SUM(AV35,AW35))) -> 0.00 | AY35: =IF(AND('Att. Dairy'!B35=""),"",IF(AND(AF35=""),"",BI35)) ->  | BF35: =IF(AND('Att. Dairy'!C35=""),"",'Att. Dairy'!C35) ->  | BH35: =IF(AND('Att. Dairy'!D35=""),"",'Att. Dairy'!D35) -> Tuesday | BI35: nkypkoy | BK35: 0 | BZ35: R | CA35: R | DU35: 2019-07-30 | DV35: 0 | DW35: 218.90 | DX35: 141.10 | DY35: 77.20 | DZ35: 0.00 | EA35: 0.00 | EB35: 0.00 | EC35: 218.90 | ED35: 141.10 | EE35: 77.20 | EL35: 0 | EM35: 0.00 | EN35: 0.00 | EO35: 218.90 | EP35: 141.10 | EQ35: 77.20 | ER35: 0.00 | ES35: 0.00
A36: 31 | B36: =IF(AND('Att. Dairy'!B36=""),"",'Att. Dairy'!B36) -> 2019-07-31 | D36: 218.900 | E36: 141.100 | F36: 38.600 | G36: 19.300 | H36: 19.300 | X36: 218.900 | Y36: 141.100 | Z36: 38.600 | AA36: 19.300 | AB36: 19.300 | AC36: =IF(AND('Att. Dairy'!O36=""),"",'Att. Dairy'!O36) ->  | AD36: =IF(AND('Att. Dairy'!P36=""),"",'Att. Dairy'!P36) ->  | AE36: 0 | AF36: =IF(AND('Att. Dairy'!E36=""),"",'Att. Dairy'!E36) ->  | AG36: =IF(AND('Att. Dairy'!F36=""),"",'Att. Dairy'!F36) ->  | AH36: 0 | AI36: =IF(AND('Att. Dairy'!I36=""),"",'Att. Dairy'!I36) ->  | AJ36: =IF(AND('Att. Dairy'!J36=""),"",'Att. Dairy'!J36) ->  | AK36: 0 | AL36: 0.000 | AM36: 0 | AN36: 0.000 | AO36: 0.000 | AP36: 0.000 | AQ36: 218.900 | AR36: 141.100 | AS36: 38.600 | AT36: 19.300 | AU36: 19.300 | AV36: =IF(AND('Att. Dairy'!B36=""),"",IF(AND(AH36=""),"",IF(AND(C36="YES",AH36>0),AH36*$BB$1,AH36*$BC$1))) -> 0.00 | AW36: =IF(AND('Att. Dairy'!B36=""),"",IF(AND(AK36=""),"",AK36*$BD$1)) -> 0.00 | AX36: =IF(AND('Att. Dairy'!B36=""),"",IF(AND(AV36="",AW36=""),"",SUM(AV36,AW36))) -> 0.00 | AY36: =IF(AND('Att. Dairy'!B36=""),"",IF(AND(AF36=""),"",BI36)) ->  | BF36: =IF(AND('Att. Dairy'!C36=""),"",'Att. Dairy'!C36) ->  | BH36: =IF(AND('Att. Dairy'!D36=""),"",'Att. Dairy'!D36) -> Wednesday | BI36: nkyjksVh | BK36: 0 | BZ36: W | CA36: W | DU36: 2019-07-31 | DV36: 0 | DW36: 218.90 | DX36: 141.10 | DY36: 77.20 | DZ36: 0.00 | EA36: 0.00 | EB36: 0.00 | EC36: 218.90 | ED36: 141.10 | EE36: 77.20 | EL36: 0.00 | EM36: 0 | EN36: 0.00 | EO36: 218.90 | EP36: 141.10 | EQ36: 77.20 | ER36: 0.00 | ES36: 0.00
D37: dqy | I37: =SUM(I6:I36) -> 0.000 | J37: =SUM(J6:J36) -> 0.000 | K37: =SUM(K6:K36) -> 0.000 | L37: 0.000 | M37: 0.000 | N37: =SUM(N6:N36) -> 0.000 | O37: =SUM(O6:O36) -> 0.000 | P37: 0.000 | Q37: 0.000 | R37: 0.000 | S37: 0.000 | T37: 0.000 | U37: 0.000 | V37: 0.000 | W37: 0.000 | AC37: =SUM(AC6:AC36) -> 1008 | AD37: =SUM(AD6:AD36) -> 1015 | AE37: 2023 | AF37: 198 | AG37: 202 | AH37: 400 | AI37: 208 | AJ37: 223 | AK37: =SUM(AK6:AK36) -> 431 | AL37: =SUM(AL6:AL36) -> 31.100 | AM37: =SUM(AM6:AM36) -> 8.900 | AN37: =SUM(AN6:AN36) -> 1.400 | AO37: =SUM(AO6:AO36) -> 0.700 | AP37: 0.700 | AV37: =SUM(AV6:AV36) -> 1562.20 | AW37: =SUM(AW6:AW36) -> 2262.75 | AX37: =SUM(AX6:AX36) -> 3824.95 | BF37: =IF(AND('Att. Dairy'!C37=""),"",'Att. Dairy'!C37) ->  | BH37: =IF(AND('Att. Dairy'!D37=""),"",'Att. Dairy'!D37) ->  | BK37: =SUM(BK6:BK36) -> 431 | DV37: dqy | DZ37: =SUM(DZ6:DZ36) -> 0.00 | EA37: =SUM(EA6:EA36) -> 0.00 | EB37: 0.00 | EF37: =SUM(EF6:EF36) -> 1008 | EG37: =SUM(EG6:EG36) -> 1015 | EH37: 198 | EI37: 202 | EJ37: 208 | EK37: 223 | EL37: =SUM(EL6:EL36) -> 31.10 | EM37: =SUM(EM6:EM36) -> 8.90 | EN37: =SUM(EN6:EN36) -> 2.80 | ER37: =SUM(ER6:ER36) -> 1562.20 | ES37: =SUM(ES6:ES36) -> 2262.75
AK38: 31 | AM38: =AL37+AM37 -> 40.000 | AV38: =SUM(C6:C36) -> 0.00 | BF38: =IF(AND('Att. Dairy'!C38=""),"",'Att. Dairy'!C38) ->  | BY38: 0.000
S39: =N37+S37 -> 0.000 | T39: =O37+T37 -> 0.000 | AK39: 0 | AV39: =#REF! ->  | BF39: =IF(AND('Att. Dairy'!C39=""),"",'Att. Dairy'!C39) ->  | BY39: 0
S40: 0.000 | T40: 0.000 | AV40: =SUM(AV39-AV37+AV38) ->  | BF40: =IF(AND('Att. Dairy'!C40=""),"",'Att. Dairy'!C40) ->  | BY40: 0.00
BF41: =IF(AND('Att. Dairy'!C41=""),"",'Att. Dairy'!C41) -> 
BF42: =IF(AND('Att. Dairy'!C42=""),"",'Att. Dairy'!C42) -> 
AL43: ekg esa çkIr dqy jkf'k | BF43: =IF(AND('Att. Dairy'!C43=""),"",'Att. Dairy'!C43) -> 
AL44: ekg esa O;; dqy jkf'k | BF44: =IF(AND('Att. Dairy'!C44=""),"",'Att. Dairy'!C44) ->  | CA44: =IF(AND(BW44=""),BZ44,BX44) -> 
AL45: ekg esa 'ks"k jkf'k | BF45: =IF(AND('Att. Dairy'!C45=""),"",'Att. Dairy'!C45) -> 
AL46: ekg esa ykHkfUor fo|kFkhZ | BF46: =IF(AND('Att. Dairy'!C46=""),"",'Att. Dairy'!C46) -> 
BF47: =IF(AND('Att. Dairy'!C47=""),"",'Att. Dairy'!C47) -> 
BF48: =IF(AND('Att. Dairy'!C48=""),"",'Att. Dairy'!C48) -> 

Sheet UPS balance Sheet
B1: loZçFke vVsusUl 'khV ij fnukad okys Column dh çfof"B;ka iw.kZ djsa | D1: Presented By:- | H1: Mr. HeeraLaL Jat Sojat (PALI) | U1: =CONCATENATE('MASTER DATA'!I4, 'MASTER DATA'!J4) -> ekg %&tqykbZ&2019 | BB1: ='MASTER DATA'!C33 -> 4.60 | BC1: ='MASTER DATA'!D33 -> 6.51 | BD1: ='MASTER DATA'!I33 -> 7.00
B2: fnukad | C2: nky ds fy, Yes/No | D2: çkjfEHkd [kk|ku o nky dh ek=k fdyks xzke esa | I2: forj.k drkZ ls çkIr [kk|ku fdyks xzke esa | N2: vU;= lzksr ls m/kkj fy;k@fn;k¼fdxzk½ | S2: vU; fo|ky; ls m/kkj fy;k@fn;k¼fdxzk½ | X2: dqy [kk|ku o nky | AC2: dqy ukekadu d{kk 6 ls 8 | AF2: dqy ykHkkfUor Nk=@Nk=k d{kk 6 ls 8 | AI2: dqy nqX/k ls ykHkkfUor | AL2: ekg esa mi;ksx fy;k x;k izfrfnu [kk|ku o nky | AQ2: 'ks"k [kk|ku o nky | AV2: ekg esa izfrfnu dUotZu ij O;; jkf'k | AW2: ekg esa izfrfnu nqX/k ij O;; jkf'k | AX2: ekg esa izfrfnu dqy O;; jkf'k | AY2: feuw ds vuqlkj Hkkstu | DU2: fnukad | DV2: nky ds fy, Yes/ No | DW2: çkjfEHkd [kk|ku o nky dh ek=k fdyks xzke esa | DZ2: forj.k drkZ ls çkIr [kk|ku fdyks xzke esa | EC2: dqy [kk|ku o nky | EF2: dqy ukekadu d{kk 1 ls 5 | EH2: dqy ykHkkfUor Nk=@Nk=k d{kk 1 ls 5 | EJ2: dqy nqX/k ls ykHkkfUor | EL2: ekg esa mi;ksx fy;k x;k izfrfnu [kk|ku o nky | EO2: 'ks"k [kk|ku o nky | ER2: ekg esa izfrfnu dUotZu ij O;; jkf'k | ES2: ekg esa izfrfnu nqX/k ij O;; jkf'k | ET2: feuw ds vuqlkj Hkkstu
N4: m/kkj nsus ij¼&½fpUg yxk, | S4: m/kkj nsus ij¼&½fpUg yxk,
A5: Sr. | B5: MM-DDD-YYYY e.g.(01-Jan-1900) | D5: xsagw | E5: pkoy | F5: ewax | G5: mM+n | H5: puk | I5: xsagw | J5: pkoy | K5: ewax | L5: mM+n | M5: puk | N5: xsagw | O5: pkoy | P5: ewax | Q5: mM+n | R5: puk | S5: xsagw | T5: pkoy | U5: ewax | V5: mM+n | W5: puk | X5: xsagw | Y5: pkoy | Z5: ewax | AA5: mM+n | AB5: puk | AC5: Nk= | AD5: Nk=k | AE5: dqy | AF5: Nk= | AG5: Nk=k | AH5: dqy | AI5: Nk= | AJ5: Nk=k | AK5: dqy | AL5: xsagw | AM5: pkoy | AN5: ewax | AO5: mM+n | AP5: puk | AQ5: xsagw | AR5: pkoy | AS5: ewax | AT5: mM+n | AU5: puk | BG5: Wheat/Rice | BZ5: Wheat/Rice | CA5: Wheat/Rice | DU5: MM-DD-YYYY e.g.(01-Jan-1900) | DW5: xsagw | DX5: pkoy | DY5: nky | DZ5: xsagw | EA5: pkoy | EB5: nky | EC5: xsagw | ED5: pkoy | EE5: nky | EF5: Nk= | EG5: Nk=k | EH5: Nk= | EI5: Nk=k | EJ5: Nk= | EK5: Nk=k | EL5: xsagw | EM5: pkoy | EN5: nky | EO5: xsagw | EP5: pkoy | EQ5: ewax
A6: 1 | B6: =IF(AND('Att. Dairy'!B6=""),"",'Att. Dairy'!B6) -> 2019-07-01 | C6: YES | D6: 300.000 | E6: 200.000 | F6: 60.000 | G6: 30.000 | H6: 30.000 | X6: =IF(AND(D6=""),"",SUM(D6,I6,N6,S6)) -> 300.000 | Y6: =IF(AND(E6=""),"",SUM(E6,J6,O6,T6)) -> 200.000 | Z6: =IF(AND(F6=""),"",SUM(F6,K6,P6,U6)) -> 60.000 | AA6: =IF(AND(G6=""),"",SUM(G6,L6,Q6,V6)) -> 30.000 | AB6: =IF(AND(H6=""),"",SUM(H6,M6,R6,W6)) -> 30.000 | AC6: =IF(AND('Att. Dairy'!R6=""),"",'Att. Dairy'!R6) -> 96 | AD6: =IF(AND('Att. Dairy'!S6=""),"",'Att. Dairy'!S6) -> 111 | AE6: =SUM(AC6,AD6) -> 207 | AF6: =IF(AND('Att. Dairy'!G6=""),"",'Att. Dairy'!G6) -> 27 | AG6: =IF(AND('Att. Dairy'!H6=""),"",'Att. Dairy'!H6) -> 28 | AH6: =SUM(AF6,AG6) -> 55 | AI6: =IF(AND('Att. Dairy'!L6=""),"",'Att. Dairy'!L6) -> 30 | AJ6: =IF(AND('Att. Dairy'!M6=""),"",'Att. Dairy'!M6) -> 30 | AK6: =SUM(AI6,AJ6) -> 60 | AL6: =IF(AND(AH6=""),"0",IF(AND(CA6="w"),AH6*150/1000,"0")) -> 8.250 | AM6: =IF(AND(AH6=""),"0",IF(AND(CA6="R"),AH6*150/1000,"0")) -> 0 | AN6: =IF(AND(C6="YES",AH6>0),AH6*0.015,0) -> 0.825 | AO6: =IF(AND(C6="YES",AH6>0),AH6*0.0075,0) -> 0.413 | AP6: =IF(AND(C6="YES",AH6>0),AH6*0.0075,0) -> 0.413 | AQ6: =SUM(X6-AL6) -> 291.750 | AR6: =(Y6-AM6) -> 200.000 | AS6: =(Z6-AN6) -> 59.175 | AT6: 29.588 | AU6: 29.588 | AV6: =IF(AND('Att. Dairy'!B6=""),"",IF(AND(AH6=""),"",IF(AND(C6="YES",AH6>0),AH6*$BB$1,AH6*$BC$1))) -> 253.00 | AW6: =IF(AND('Att. Dairy'!B6=""),"",IF(AND(AK6=""),"",AK6*$BD$1)) -> 420.00 | AX6: =IF(AND('Att. Dairy'!B6=""),"",IF(AND(AV6="",AW6=""),"",SUM(AV6,AW6))) -> 673.00 | AY6: =IF(AND('Att. Dairy'!B6=""),"",IF(AND(AF6=""),"",BI6)) -> lCthjksVh | BF6: =IF(AND('Att. Dairy'!C6=""),"",'Att. Dairy'!C6) -> Wheat | BG6: =IF(AND(BF6=""),"",IF(BF6="Rice","R",IF(BF6="Wheat","W"))) -> W | BH6: =IF(AND('Att. Dairy'!D6=""),"",'Att. Dairy'!D6) -> Monday | BI6: =IF(OR(BH6=0,BH6=""),"",IF(BH6="tuesday","nkypkoy",IF(BH6="thursday","f[kpM+h",IF(OR(BH6="monday",BH6="saturday"),"lCthjksVh",IF(OR(BH6="wednesday",BH6="friday"),"nkyjksVh","vodk'k"))))) -> lCthjksVh | BJ6: =IF(AND(C6=BM$10),AV6,0) -> 253 | BZ6: =IF(OR(BH6=0,BH6=""),"",IF(BH6="tuesday","R",IF(BH6="thursday","R",IF(OR(BH6="monday",BH6="saturday"),"W",IF(OR(BH6="wednesday",BH6="friday"),"W"))))) -> W | CA6: =IF(AND(BF6=""),BZ6,BG6) -> W | DU6: =IF(AND(B6=""),"",B6) -> 2019-07-01 | DV6: =C6 -> YES | DW6: =D6 -> 300.00 | DX6: =E6 -> 200.00 | DY6: =F6+G6+H6 -> 120.00 | DZ6: =I6 -> 0.00 | EA6: =J6 -> 0.00 | EB6: =K6+L6+M6 -> 0.00 | EC6: =X6 -> 300.00 | ED6: =Y6 -> 200.00 | EE6: =Z6+AA6+AB6 -> 120.00 | EF6: =AC6 -> 96 | EG6: =AD6 -> 111 | EH6: =AF6 -> 27 | EI6: =AG6 -> 28 | EJ6: =AI6 -> 30 | EK6: =AJ6 -> 30 | EL6: =AL6 -> 8.25 | EM6: =AM6 -> 0 | EN6: =AN6+AO6+AP6 -> 1.65 | EO6: =AQ6 -> 291.75 | EP6: =AR6 -> 200.00 | EQ6: =AS6+AT6+AU6 -> 118.35 | ER6: =AV6 -> 253.00 | ES6: =AW6 -> 420.00 | ET6: =AY6 -> lCthjksVh
A7: 2 | B7: =IF(AND('Att. Dairy'!B7=""),"",'Att. Dairy'!B7) -> 2019-07-02 | C7: YES | D7: =IF(AND(AQ6=""),"",AQ6) -> 291.750 | E7: =IF(AND(AR6=""),"",AR6) -> 200.000 | F7: =IF(AND(AS6=""),"",AS6) -> 59.175 | G7: 29.588 | H7: 29.588 | X7: =IF(AND(D7=""),"",SUM(D7,I7,N7,S7)) -> 291.750 | Y7: 200.000 | Z7: 59.175 | AA7: 29.588 | AB7: 29.588 | AC7: =IF(AND('Att. Dairy'!R7=""),"",'Att. Dairy'!R7) -> 96 | AD7: =IF(AND('Att. Dairy'!S7=""),"",'Att. Dairy'!S7) -> 111 | AE7: =SUM(AC7,AD7) -> 207 | AF7: =IF(AND('Att. Dairy'!G7=""),"",'Att. Dairy'!G7) ->  | AG7: =IF(AND('Att. Dairy'!H7=""),"",'Att. Dairy'!H7) ->  | AH7: =SUM(AF7,AG7) -> 0 | AI7: =IF(AND('Att. Dairy'!L7=""),"",'Att. Dairy'!L7) -> 65 | AJ7: =IF(AND('Att. Dairy'!M7=""),"",'Att. Dairy'!M7) -> 66 | AK7: =SUM(AI7,AJ7) -> 131 | AL7: =IF(AND(AH7=""),"0",IF(AND(CA7="w"),AH7*150/1000,"0")) -> 0 | AM7: =IF(AND(AH7=""),"0",IF(AND(CA7="R"),AH7*150/1000,"0")) -> 0.000 | AN7: =IF(AND(C7="YES",AH7>0),AH7*0.015,0) -> 0.000 | AO7: =IF(AND(C7="YES",AH7>0),AH7*0.0075,0) -> 0.000 | AP7: =IF(AND(C7="YES",AH7>0),AH7*0.0075,0) -> 0.000 | AQ7: 291.750 | AR7: =(Y7-AM7) -> 200.000 | AS7: 59.175 | AT7: 29.588 | AU7: 29.588 | AV7: =IF(AND('Att. Dairy'!B7=""),"",IF(AND(AH7=""),"",IF(AND(C7="YES",AH7>0),AH7*$BB$1,AH7*$BC$1))) -> 0.00 | AW7: =IF(AND('Att. Dairy'!B7=""),"",IF(AND(AK7=""),"",AK7*$BD$1)) -> 917.00 | AX7: =IF(AND('Att. Dairy'!B7=""),"",IF(AND(AV7="",AW7=""),"",SUM(AV7,AW7))) -> 917.00 | AY7: =IF(AND('Att. Dairy'!B7=""),"",IF(AND(AF7=""),"",BI7)) ->  | BF7: =IF(AND('Att. Dairy'!C7=""),"",'Att. Dairy'!C7) ->  | BG7: =IF(AND(BF7=""),"",IF(BF7="Rice","R",IF(BF7="Wheat","W"))) ->  | BH7: =IF(AND('Att. Dairy'!D7=""),"",'Att. Dairy'!D7) -> Tuesday | BI7: =IF(OR(BH7=0,BH7=""),"",IF(BH7="tuesday","nkypkoy",IF(BH7="thursday","f[kpM+h",IF(OR(BH7="monday",BH7="saturday"),"lCthjksVh",IF(OR(BH7="wednesday",BH7="friday"),"nkyjksVh","vodk'k"))))) -> nkypkoy | BJ7: =IF(AND(C7=BM$10),AV7,0) -> 0 | BZ7: =IF(OR(BH7=0,BH7=""),"",IF(BH7="tuesday","R",IF(BH7="thursday","R",IF(OR(BH7="monday",BH7="saturday"),"W",IF(OR(BH7="wednesday",BH7="friday"),"W"))))) -> R | CA7: =IF(AND(BF7=""),BZ7,BG7) -> R | DU7: =IF(AND(B7=""),"",B7) -> 2019-07-02 | DV7: =C7 -> YES | DW7: 291.75 | DX7: 200.00 | DY7: =F7+G7+H7 -> 118.35 | DZ7: =I7 -> 0.00 | EA7: 0.00 | EB7: =K7+L7+M7 -> 0.00 | EC7: =X7 -> 291.75 | ED7: 200.00 | EE7: =Z7+AA7+AB7 -> 118.35 | EF7: =AC7 -> 96 | EG7: 111 | EH7: =AF7 ->  | EJ7: =AI7 -> 65 | EK7: 66 | EL7: =AL7 -> 0 | EM7: 0.00 | EN7: =AN7+AO7+AP7 -> 0.00 | EO7: =AQ7 -> 291.75 | EP7: 200.00 | EQ7: =AS7+AT7+AU7 -> 118.35 | ER7: =AV7 -> 0.00 | ES7: 917.00 | ET7: =AY7 -> 
A8: 3 | B8: =IF(AND('Att. Dairy'!B8=""),"",'Att. Dairy'!B8) -> 2019-07-03 | C8: YES | D8: =IF(AND(AQ7=""),"",AQ7) -> 291.750 | E8: 200.000 | F8: 59.175 | G8: 29.588 | H8: 29.588 | X8: 291.750 | Y8: 200.000 | Z8: 59.175 | AA8: 29.588 | AB8: 29.588 | AC8: =IF(AND('Att. Dairy'!R8=""),"",'Att. Dairy'!R8) -> 96 | AD8: =IF(AND('Att. Dairy'!S8=""),"",'Att. Dairy'!S8) -> 111 | AE8: 207 | AF8: =IF(AND('Att. Dairy'!G8=""),"",'Att. Dairy'!G8) ->  | AG8: =IF(AND('Att. Dairy'!H8=""),"",'Att. Dairy'!H8) ->  | AH8: 0 | AI8: =IF(AND('Att. Dairy'!L8=""),"",'Att. Dairy'!L8) -> 45 | AJ8: =IF(AND('Att. Dairy'!M8=""),"",'Att. Dairy'!M8) -> 46 | AK8: 91 | AL8: 0.000 | AM8: 0 | AN8: 0.000 | AO8: 0.000 | AP8: 0.000 | AQ8: 291.750 | AR8: 200.000 | AS8: =(Z8-AN8) -> 59.175 | AT8: =(AA8-AO8) -> 29.588 | AU8: 29.588 | AV8: =IF(AND('Att. Dairy'!B8=""),"",IF(AND(AH8=""),"",IF(AND(C8="YES",AH8>0),AH8*$BB$1,AH8*$BC$1))) -> 0.00 | AW8: =IF(AND('Att. Dairy'!B8=""),"",IF(AND(AK8=""),"",AK8*$BD$1)) -> 637.00 | AX8: =IF(AND('Att. Dairy'!B8=""),"",IF(AND(AV8="",AW8=""),"",SUM(AV8,AW8))) -> 637.00 | AY8: =IF(AND('Att. Dairy'!B8=""),"",IF(AND(AF8=""),"",BI8)) ->  | BF8: =IF(AND('Att. Dairy'!C8=""),"",'Att. Dairy'!C8) ->  | BH8: =IF(AND('Att. Dairy'!D8=""),"",'Att. Dairy'!D8) -> Wednesday | BI8: nkyjksVh | BJ8: 0 | BZ8: W | CA8: W | DU8: 2019-07-03 | DV8: YES | DW8: 291.75 | DX8: 200.00 | DY8: 118.35 | DZ8: 0.00 | EA8: 0.00 | EB8: 0.00 | EC8: 291.75 | ED8: 200.00 | EE8: 118.35 | EF8: 96 | EG8: 111 | EJ8: 45 | EK8: 46 | EL8: 0.00 | EM8: 0 | EN8: 0.00 | EO8: 291.75 | EP8: 200.00 | EQ8: 118.35 | ER8: 0.00 | ES8: 637.00
A9: 4 | B9: =IF(AND('Att. Dairy'!B9=""),"",'Att. Dairy'!B9) -> 2019-07-04 | C9: YES | D9: 291.750 | E9: 200.000 | F9: 59.175 | G9: 29.588 | H9: 29.588 | X9: 291.750 | Y9: 200.000 | Z9: 59.175 | AA9: 29.588 | AB9: 29.588 | AC9: =IF(AND('Att. Dairy'!R9=""),"",'Att. Dairy'!R9) -> 96 | AD9: =IF(AND('Att. Dairy'!S9=""),"",'Att. Dairy'!S9) -> 111 | AE9: 207 | AF9: =IF(AND('Att. Dairy'!G9=""),"",'Att. Dairy'!G9) -> 46 | AG9: =IF(AND('Att. Dairy'!H9=""),"",'Att. Dairy'!H9) -> 47 | AH9: 93 | AI9: =IF(AND('Att. Dairy'!L9=""),"",'Att. Dairy'!L9) -> 88 | AJ9: =IF(AND('Att. Dairy'!M9=""),"",'Att. Dairy'!M9) -> 96 | AK9: 184 | AL9: 0 | AM9: 13.950 | AN9: 1.395 | AO9: 0.698 | AP9: 0.698 | AQ9: 291.750 | AR9: 186.050 | AS9: 57.780 | AT9: 28.890 | AU9: 28.890 | AV9: =IF(AND('Att. Dairy'!B9=""),"",IF(AND(AH9=""),"",IF(AND(C9="YES",AH9>0),AH9*$BB$1,AH9*$BC$1))) -> 427.80 | AW9: =IF(AND('Att. Dairy'!B9=""),"",IF(AND(AK9=""),"",AK9*$BD$1)) -> 1288.00 | AX9: =IF(AND('Att. Dairy'!B9=""),"",IF(AND(AV9="",AW9=""),"",SUM(AV9,AW9))) -> 1715.80 | AY9: =IF(AND('Att. Dairy'!B9=""),"",IF(AND(AF9=""),"",BI9)) -> f[kpM+h | BF9: =IF(AND('Att. Dairy'!C9=""),"",'Att. Dairy'!C9) ->  | BH9: =IF(AND('Att. Dairy'!D9=""),"",'Att. Dairy'!D9) -> Thursday | BI9: f[kpM+h | BJ9: 427.8 | BZ9: R | CA9: R | DU9: 2019-07-04 | DV9: YES | DW9: 291.75 | DX9: 200.00 | DY9: 118.35 | DZ9: 0.00 | EA9: 0.00 | EB9: 0.00 | EC9: 291.75 | ED9: 200.00 | EE9: 118.35 | EF9: 96 | EG9: 111 | EH9: 46 | EI9: 47 | EJ9: 88 | EK9: 96 | EL9: 0 | EM9: 13.95 | EN9: 2.79 | EO9: 291.75 | EP9: 186.05 | EQ9: 115.56 | ER9: 427.80 | ES9: 1288.00 | ET9: f[kpM+h
A10: 5 | B10: =IF(AND('Att. Dairy'!B10=""),"",'Att. Dairy'!B10) -> 2019-07-05 | C10: NO | D10: 291.750 | E10: 186.050 | F10: 57.780 | G10: 28.890 | H10: 28.890 | X10: 291.750 | Y10: 186.050 | Z10: 57.780 | AA10: 28.890 | AB10: 28.890 | AC10: =IF(AND('Att. Dairy'!R10=""),"",'Att. Dairy'!R10) -> 96 | AD10: =IF(AND('Att. Dairy'!S10=""),"",'Att. Dairy'!S10) -> 111 | AE10: 207 | AF10: =IF(AND('Att. Dairy'!G10=""),"",'Att. Dairy'!G10) ->  | AG10: =IF(AND('Att. Dairy'!H10=""),"",'Att. Dairy'!H10) ->  | AH10: 0 | AI10: =IF(AND('Att. Dairy'!L10=""),"",'Att. Dairy'!L10) -> 60 | AJ10: =IF(AND('Att. Dairy'!M10=""),"",'Att. Dairy'!M10) -> 62 | AK10: 122 | AL10: 0.000 | AM10: 0 | AN10: 0.000 | AO10: 0.000 | AP10: 0.000 | AQ10: 291.750 | AR10: 186.050 | AS10: 57.780 | AT10: 28.890 | AU10: 28.890 | AV10: =IF(AND('Att. Dairy'!B10=""),"",IF(AND(AH10=""),"",IF(AND(C10="YES",AH10>0),AH10*$BB$1,AH10*$BC$1))) -> 0.00 | AW10: =IF(AND('Att. Dairy'!B10=""),"",IF(AND(AK10=""),"",AK10*$BD$1)) -> 854.00 | AX10: =IF(AND('Att. Dairy'!B10=""),"",IF(AND(AV10="",AW10=""),"",SUM(AV10,AW10))) -> 854.00 | AY10: =IF(AND('Att. Dairy'!B10=""),"",IF(AND(AF10=""),"",BI10)) ->  | BF10: =IF(AND('Att. Dairy'!C10=""),"",'Att. Dairy'!C10) ->  | BH10: =IF(AND('Att. Dairy'!D10=""),"",'Att. Dairy'!D10) -> Friday | BI10: nkyjksVh | BJ10: 0 | BM10: YES | BZ10: W | CA10: W | DU10: 2019-07-05 | DV10: NO | DW10: 291.75 | DX10: 186.05 | DY10: 115.56 | DZ10: 0.00 | EA10: 0.00 | EB10: 0.00 | EC10: 291.75 | ED10: 186.05 | EE10: 115.56 | EF10: 96 | EG10: 111 | EJ10: 60 | EK10: 62 | EL10: 0.00 | EM10: 0 | EN10: 0.00 | EO10: 291.75 | EP10: 186.05 | EQ10: 115.56 | ER10: 0.00 | ES10: 854.00
A11: 6 | B11: =IF(AND('Att. Dairy'!B11=""),"",'Att. Dairy'!B11) -> 2019-07-06 | D11: 291.750 | E11: 186.050 | F11: 57.780 | G11: 28.890 | H11: 28.890 | X11: 291.750 | Y11: 186.050 | Z11: 57.780 | AA11: 28.890 | AB11: 28.890 | AC11: =IF(AND('Att. Dairy'!R11=""),"",'Att. Dairy'!R11) -> 96 | AD11: =IF(AND('Att. Dairy'!S11=""),"",'Att. Dairy'!S11) -> 111 | AE11: 207 | AF11: =IF(AND('Att. Dairy'!G11=""),"",'Att. Dairy'!G11) -> 65 | AG11: =IF(AND('Att. Dairy'!H11=""),"",'Att. Dairy'!H11) -> 66 | AH11: 131 | AI11: =IF(AND('Att. Dairy'!L11=""),"",'Att. Dairy'!L11) ->  | AJ11: =IF(AND('Att. Dairy'!M11=""),"",'Att. Dairy'!M11) ->  | AK11: 0 | AL11: 19.650 | AM11: 0 | AN11: 0.000 | AO11: 0.000 | AP11: 0.000 | AQ11: 272.100 | AR11: 186.050 | AS11: 57.780 | AT11: 28.890 | AU11: 28.890 | AV11: =IF(AND('Att. Dairy'!B11=""),"",IF(AND(AH11=""),"",IF(AND(C11="YES",AH11>0),AH11*$BB$1,AH11*$BC$1))) -> 852.81 | AW11: =IF(AND('Att. Dairy'!B11=""),"",IF(AND(AK11=""),"",AK11*$BD$1)) -> 0.00 | AX11: =IF(AND('Att. Dairy'!B11=""),"",IF(AND(AV11="",AW11=""),"",SUM(AV11,AW11))) -> 852.81 | AY11: =IF(AND('Att. Dairy'!B11=""),"",IF(AND(AF11=""),"",BI11)) -> lCthjksVh | BF11: =IF(AND('Att. Dairy'!C11=""),"",'Att. Dairy'!C11) ->  | BH11: =IF(AND('Att. Dairy'!D11=""),"",'Att. Dairy'!D11) -> Saturday | BI11: lCthjksVh | BJ11: 0 | BM11: NO | BZ11: W | CA11: W | DU11: 2019-07-06 | DV11: 0 | DW11: 291.75 | DX11: 186.05 | DY11: 115.56 | DZ11: 0.00 | EA11: 0.00 | EB11: 0.00 | EC11: 291.75 | ED11: 186.05 | EE11: 115.56 | EF11: 96 | EG11: 111 | EH11: 65 | EI11: 66 | EL11: 19.65 | EM11: 0 | EN11: 0.00 | EO11: 272.10 | EP11: 186.05 | EQ11: 115.56 | ER11: 852.81 | ES11: 0.00 | ET11: lCthjksVh
A12: 7 | B12: =IF(AND('Att. Dairy'!B12=""),"",'Att. Dairy'!B12) -> 2019-07-07 | D12: 272.100 | E12: 186.050 | F12: 57.780 | G12: 28.890 | H12: 28.890 | X12: 272.100 | Y12: 186.050 | Z12: 57.780 | AA12: 28.890 | AB12: 28.890 | AC12: =IF(AND('Att. Dairy'!R12=""),"",'Att. Dairy'!R12) ->  | AD12: =IF(AND('Att. Dairy'!S12=""),"",'Att. Dairy'!S12) ->  | AE12: 0 | AF12: =IF(AND('Att. Dairy'!G12=""),"",'Att. Dairy'!G12) ->  | AG12: =IF(AND('Att. Dairy'!H12=""),"",'Att. Dairy'!H12) ->  | AH12: 0 | AI12: =IF(AND('Att. Dairy'!L12=""),"",'Att. Dairy'!L12) ->  | AJ12: =IF(AND('Att. Dairy'!M12=""),"",'Att. Dairy'!M12) ->  | AK12: 0 | AL12: 0 | AM12: 0 | AN12: 0.000 | AO12: 0.000 | AP12: 0.000 | AQ12: 272.100 | AR12: 186.050 | AS12: 57.780 | AT12: 28.890 | AU12: 28.890 | AV12: =IF(AND('Att. Dairy'!B12=""),"",IF(AND(AH12=""),"",IF(AND(C12="YES",AH12>0),AH12*$BB$1,AH12*$BC$1))) -> 0.00 | AW12: =IF(AND('Att. Dairy'!B12=""),"",IF(AND(AK12=""),"",AK12*$BD$1)) -> 0.00 | AX12: =IF(AND('Att. Dairy'!B12=""),"",IF(AND(AV12="",AW12=""),"",SUM(AV12,AW12))) -> 0.00 | AY12: =IF(AND('Att. Dairy'!B12=""),"",IF(AND(AF12=""),"",BI12)) ->  | BF12: =IF(AND('Att. Dairy'!C12=""),"",'Att. Dairy'!C12) ->  | BH12: =IF(AND('Att. Dairy'!D12=""),"",'Att. Dairy'!D12) -> Sunday | BI12: vodk'k | BJ12: 0 | BZ12: FALSE | CA12: FALSE | DU12: 2019-07-07 | DV12: 0 | DW12: 272.10 | DX12: 186.05 | DY12: 115.56 | DZ12: 0.00 | EA12: 0.00 | EB12: 0.00 | EC12: 272.10 | ED12: 186.05 | EE12: 115.56 | EL12: 0 | EM12: 0 | EN12: 0.00 | EO12: 272.10 | EP12: 186.05 | EQ12: 115.56 | ER12: 0.00 | ES12: 0.00
A13: 8 | B13: =IF(AND('Att. Dairy'!B13=""),"",'Att. Dairy'!B13) -> 2019-07-08 | D13: 272.100 | E13: 186.050 | F13: 57.780 | G13: 28.890 | H13: 28.890 | X13: 272.100 | Y13: 186.050 | Z13: 57.780 | AA13: 28.890 | AB13: 28.890 | AC13: =IF(AND('Att. Dairy'!R13=""),"",'Att. Dairy'!R13) -> 96 | AD13: =IF(AND('Att. Dairy'!S13=""),"",'Att. Dairy'!S13) -> 111 | AE13: 207 | AF13: =IF(AND('Att. Dairy'!G13=""),"",'Att. Dairy'!G13) -> 68 | AG13: =IF(AND('Att. Dairy'!H13=""),"",'Att. Dairy'!H13) -> 69 | AH13: 137 | AI13: =IF(AND('Att. Dairy'!L13=""),"",'Att. Dairy'!L13) ->  | AJ13: =IF(AND('Att. Dairy'!M13=""),"",'Att. Dairy'!M13) ->  | AK13: 0 | AL13: 20.550 | AM13: 0 | AN13: 0.000 | AO13: 0.000 | AP13: 0.000 | AQ13: 251.550 | AR13: 186.050 | AS13: 57.780 | AT13: 28.890 | AU13: 28.890 | AV13: =IF(AND('Att. Dairy'!B13=""),"",IF(AND(AH13=""),"",IF(AND(C13="YES",AH13>0),AH13*$BB$1,AH13*$BC$1))) -> 891.87 | AW13: =IF(AND('Att. Dairy'!B13=""),"",IF(AND(AK13=""),"",AK13*$BD$1)) -> 0.00 | AX13: =IF(AND('Att. Dairy'!B13=""),"",IF(AND(AV13="",AW13=""),"",SUM(AV13,AW13))) -> 891.87 | AY13: =IF(AND('Att. Dairy'!B13=""),"",IF(AND(AF13=""),"",BI13)) -> lCthjksVh | BF13: =IF(AND('Att. Dairy'!C13=""),"",'Att. Dairy'!C13) ->  | BH13: =IF(AND('Att. Dairy'!D13=""),"",'Att. Dairy'!D13) -> Monday | BI13: lCthjksVh | BJ13: 0 | BZ13: W | CA13: W | DU13: 2019-07-08 | DV13: 0 | DW13: 272.10 | DX13: 186.05 | DY13: 115.56 | DZ13: 0.00 | EA13: 0.00 | EB13: 0.00 | EC13: 272.10 | ED13: 186.05 | EE13: 115.56 | EF13: 96 | EG13: 111 | EH13: 68 | EI13: 69 | EL13: 20.55 | EM13: 0 | EN13: 0.00 | EO13: 251.55 | EP13: 186.05 | EQ13: 115.56 | ER13: 891.87 | ES13: 0.00 | ET13: lCthjksVh
A14: 9 | B14: =IF(AND('Att. Dairy'!B14=""),"",'Att. Dairy'!B14) -> 2019-07-09 | D14: 251.550 | E14: 186.050 | F14: 57.780 | G14: 28.890 | H14: 28.890 | X14: 251.550 | Y14: 186.050 | Z14: 57.780 | AA14: 28.890 | AB14: 28.890 | AC14: =IF(AND('Att. Dairy'!R14=""),"",'Att. Dairy'!R14) ->  | AD14: =IF(AND('Att. Dairy'!S14=""),"",'Att. Dairy'!S14) ->  | AE14: 0 | AF14: =IF(AND('Att. Dairy'!G14=""),"",'Att. Dairy'!G14) ->  | AG14: =IF(AND('Att. Dairy'!H14=""),"",'Att. Dairy'!H14) ->  | AH14: 0 | AI14: =IF(AND('Att. Dairy'!L14=""),"",'Att. Dairy'!L14) ->  | AJ14: =IF(AND('Att. Dairy'!M14=""),"",'Att. Dairy'!M14) ->  | AK14: 0 | AL14: 0 | AM14: 0.000 | AN14: 0.000 | AO14: 0.000 | AP14: 0.000 | AQ14: 251.550 | AR14: 186.050 | AS14: 57.780 | AT14: 28.890 | AU14: 28.890 | AV14: =IF(AND('Att. Dairy'!B14=""),"",IF(AND(AH14=""),"",IF(AND(C14="YES",AH14>0),AH14*$BB$1,AH14*$BC$1))) -> 0.00 | AW14: =IF(AND('Att. Dairy'!B14=""),"",IF(AND(AK14=""),"",AK14*$BD$1)) -> 0.00 | AX14: =IF(AND('Att. Dairy'!B14=""),"",IF(AND(AV14="",AW14=""),"",SUM(AV14,AW14))) -> 0.00 | AY14: =IF(AND('Att. Dairy'!B14=""),"",IF(AND(AF14=""),"",BI14)) ->  | BF14: =IF(AND('Att. Dairy'!C14=""),"",'Att. Dairy'!C14) ->  | BH14: =IF(AND('Att. Dairy'!D14=""),"",'Att. Dairy'!D14) -> Tuesday | BI14: nkypkoy | BJ14: 0 | BZ14: R | CA14: R | DU14: 2019-07-09 | DV14: 0 | DW14: 251.55 | DX14: 186.05 | DY14: 115.56 | DZ14: 0.00 | EA14: 0.00 | EB14: 0.00 | EC14: 251.55 | ED14: 186.05 | EE14: 115.56 | EL14: 0 | EM14: 0.00 | EN14: 0.00 | EO14: 251.55 | EP14: 186.05 | EQ14: 115.56 | ER14: 0.00 | ES14: 0.00
A15: 10 | B15: =IF(AND('Att. Dairy'!B15=""),"",'Att. Dairy'!B15) -> 2019-07-10 | D15: 251.550 | E15: 186.050 | F15: 57.780 | G15: 28.890 | H15: 28.890 | X15: =IF(AND(D15=""),"",SUM(D15,I15,N15,S15)) -> 251.550 | Y15: 186.050 | Z15: 57.780 | AA15: 28.890 | AB15: 28.890 | AC15: =IF(AND('Att. Dairy'!R15=""),"",'Att. Dairy'!R15) ->  | AD15: =IF(AND('Att. Dairy'!S15=""),"",'Att. Dairy'!S15) ->  | AE15: 0 | AF15: =IF(AND('Att. Dairy'!G15=""),"",'Att. Dairy'!G15) ->  | AG15: =IF(AND('Att. Dairy'!H15=""),"",'Att. Dairy'!H15) ->  | AH15: 0 | AI15: =IF(AND('Att. Dairy'!L15=""),"",'Att. Dairy'!L15) ->  | AJ15: =IF(AND('Att. Dairy'!M15=""),"",'Att. Dairy'!M15) ->  | AK15: 0 | AL15: 0.000 | AM15: 0 | AN15: 0.000 | AO15: 0.000 | AP15: 0.000 | AQ15: 251.550 | AR15: 186.050 | AS15: 57.780 | AT15: 28.890 | AU15: 28.890 | AV15: =IF(AND('Att. Dairy'!B15=""),"",IF(AND(AH15=""),"",IF(AND(C15="YES",AH15>0),AH15*$BB$1,AH15*$BC$1))) -> 0.00 | AW15: =IF(AND('Att. Dairy'!B15=""),"",IF(AND(AK15=""),"",AK15*$BD$1)) -> 0.00 | AX15: =IF(AND('Att. Dairy'!B15=""),"",IF(AND(AV15="",AW15=""),"",SUM(AV15,AW15))) -> 0.00 | AY15: =IF(AND('Att. Dairy'!B15=""),"",IF(AND(AF15=""),"",BI15)) ->  | BF15: =IF(AND('Att. Dairy'!C15=""),"",'Att. Dairy'!C15) ->  | BH15: =IF(AND('Att. Dairy'!D15=""),"",'Att. Dairy'!D15) -> Wednesday | BI15: nkyjksVh | BJ15: 0 | BZ15: W | CA15: W | DU15: 2019-07-10 | DV15: 0 | DW15: 251.55 | DX15: 186.05 | DY15: 115.56 | DZ15: 0.00 | EA15: 0.00 | EB15: 0.00 | EC15: 251.55 | ED15: 186.05 | EE15: 115.56 | EL15: 0.00 | EM15: 0 | EN15: 0.00 | EO15: 251.55 | EP15: 186.05 | EQ15: 115.56 | ER15: 0.00 | ES15: 0.00
A16: 11 | B16: =IF(AND('Att. Dairy'!B16=""),"",'Att. Dairy'!B16) -> 2019-07-11 | D16: 251.550 | E16: 186.050 | F16: 57.780 | G16: 28.890 | H16: 28.890 | X16: 251.550 | Y16: 186.050 | Z16: 57.780 | AA16: 28.890 | AB16: 28.890 | AC16: =IF(AND('Att. Dairy'!R16=""),"",'Att. Dairy'!R16) ->  | AD16: =IF(AND('Att. Dairy'!S16=""),"",'Att. Dairy'!S16) ->  | AE16: 0 | AF16: =IF(AND('Att. Dairy'!G16=""),"",'Att. Dairy'!G16) ->  | AG16: =IF(AND('Att. Dairy'!H16=""),"",'Att. Dairy'!H16) ->  | AH16: 0 | AI16: =IF(AND('Att. Dairy'!L16=""),"",'Att. Dairy'!L16) ->  | AJ16: =IF(AND('Att. Dairy'!M16=""),"",'Att. Dairy'!M16) ->  | AK16: 0 | AL16: 0 | AM16: 0.000 | AN16: 0.000 | AO16: 0.000 | AP16: 0.000 | AQ16: 251.550 | AR16: 186.050 | AS16: 57.780 | AT16: 28.890 | AU16: 28.890 | AV16: =IF(AND('Att. Dairy'!B16=""),"",IF(AND(AH16=""),"",IF(AND(C16="YES",AH16>0),AH16*$BB$1,AH16*$BC$1))) -> 0.00 | AW16: =IF(AND('Att. Dairy'!B16=""),"",IF(AND(AK16=""),"",AK16*$BD$1)) -> 0.00 | AX16: =IF(AND('Att. Dairy'!B16=""),"",IF(AND(AV16="",AW16=""),"",SUM(AV16,AW16))) -> 0.00 | AY16: =IF(AND('Att. Dairy'!B16=""),"",IF(AND(AF16=""),"",BI16)) ->  | BF16: =IF(AND('Att. Dairy'!C16=""),"",'Att. Dairy'!C16) ->  | BH16: =IF(AND('Att. Dairy'!D16=""),"",'Att. Dairy'!D16) -> Thursday | BI16: f[kpM+h | BJ16: 0 | BZ16: R | CA16: R | DU16: 2019-07-11 | DV16: 0 | DW16: 251.55 | DX16: 186.05 | DY16: 115.56 | DZ16: 0.00 | EA16: 0.00 | EB16: 0.00 | EC16: 251.55 | ED16: 186.05 | EE16: 115.56 | EL16: 0 | EM16: 0.00 | EN16: 0.00 | EO16: 251.55 | EP16: 186.05 | EQ16: 115.56 | ER16: 0.00 | ES16: 0.00
A17: 12 | B17: =IF(AND('Att. Dairy'!B17=""),"",'Att. Dairy'!B17) -> 2019-07-12 | D17: 251.550 | E17: 186.050 | F17: 57.780 | G17: 28.890 | H17: 28.890 | X17: 251.550 | Y17: 186.050 | Z17: 57.780 | AA17: 28.890 | AB17: 28.890 | AC17: =IF(AND('Att. Dairy'!R17=""),"",'Att. Dairy'!R17) ->  | AD17: =IF(AND('Att. Dairy'!S17=""),"",'Att. Dairy'!S17) ->  | AE17: 0 | AF17: =IF(AND('Att. Dairy'!G17=""),"",'Att. Dairy'!G17) ->  | AG17: =IF(AND('Att. Dairy'!H17=""),"",'Att. Dairy'!H17) ->  | AH17: 0 | AI17: =IF(AND('Att. Dairy'!L17=""),"",'Att. Dairy'!L17) ->  | AJ17: =IF(AND('Att. Dairy'!M17=""),"",'Att. Dairy'!M17) ->  | AK17: 0 | AL17: 0.000 | AM17: 0 | AN17: 0.000 | AO17: 0.000 | AP17: 0.000 | AQ17: 251.550 | AR17: 186.050 | AS17: 57.780 | AT17: 28.890 | AU17: 28.890 | AV17: =IF(AND('Att. Dairy'!B17=""),"",IF(AND(AH17=""),"",IF(AND(C17="YES",AH17>0),AH17*$BB$1,AH17*$BC$1))) -> 0.00 | AW17: =IF(AND('Att. Dairy'!B17=""),"",IF(AND(AK17=""),"",AK17*$BD$1)) -> 0.00 | AX17: =IF(AND('Att. Dairy'!B17=""),"",IF(AND(AV17="",AW17=""),"",SUM(AV17,AW17))) -> 0.00 | AY17: =IF(AND('Att. Dairy'!B17=""),"",IF(AND(AF17=""),"",BI17)) ->  | BF17: =IF(AND('Att. Dairy'!C17=""),"",'Att. Dairy'!C17) ->  | BH17: =IF(AND('Att. Dairy'!D17=""),"",'Att. Dairy'!D17) -> Friday | BI17: nkyjksVh | BJ17: 0 | BZ17: W | CA17: W | DU17: 2019-07-12 | DV17: 0 | DW17: 251.55 | DX17: 186.05 | DY17: 115.56 | DZ17: 0.00 | EA17: 0.00 | EB17: 0.00 | EC17: 251.55 | ED17: 186.05 | EE17: 115.56 | EL17: 0.00 | EM17: 0 | EN17: 0.00 | EO17: 251.55 | EP17: 186.05 | EQ17: 115.56 | ER17: 0.00 | ES17: 0.00
A18: 13 | B18: =IF(AND('Att. Dairy'!B18=""),"",'Att. Dairy'!B18) -> 2019-07-13 | D18: 251.550 | E18: 186.050 | F18: 57.780 | G18: 28.890 | H18: 28.890 | X18: 251.550 | Y18: 186.050 | Z18: 57.780 | AA18: 28.890 | AB18: 28.890 | AC18: =IF(AND('Att. Dairy'!R18=""),"",'Att. Dairy'!R18) ->  | AD18: =IF(AND('Att. Dairy'!S18=""),"",'Att. Dairy'!S18) ->  | AE18: 0 | AF18: =IF(AND('Att. Dairy'!G18=""),"",'Att. Dairy'!G18) ->  | AG18: =IF(AND('Att. Dairy'!H18=""),"",'Att. Dairy'!H18) ->  | AH18: 0 | AI18: =IF(AND('Att. Dairy'!L18=""),"",'Att. Dairy'!L18) ->  | AJ18: =IF(AND('Att. Dairy'!M18=""),"",'Att. Dairy'!M18) ->  | AK18: 0 | AL18: 0.000 | AM18: 0 | AN18: 0.000 | AO18: 0.000 | AP18: 0.000 | AQ18: 251.550 | AR18: 186.050 | AS18: 57.780 | AT18: 28.890 | AU18: 28.890 | AV18: =IF(AND('Att. Dairy'!B18=""),"",IF(AND(AH18=""),"",IF(AND(C18="YES",AH18>0),AH18*$BB$1,AH18*$BC$1))) -> 0.00 | AW18: =IF(AND('Att. Dairy'!B18=""),"",IF(AND(AK18=""),"",AK18*$BD$1)) -> 0.00 | AX18: =IF(AND('Att. Dairy'!B18=""),"",IF(AND(AV18="",AW18=""),"",SUM(AV18,AW18))) -> 0.00 | AY18: =IF(AND('Att. Dairy'!B18=""),"",IF(AND(AF18=""),"",BI18)) ->  | BF18: =IF(AND('Att. Dairy'!C18=""),"",'Att. Dairy'!C18) ->  | BH18: =IF(AND('Att. Dairy'!D18=""),"",'Att. Dairy'!D18) -> Saturday | BI18: lCthjksVh | BJ18: 0 | BZ18: W | CA18: W | DU18: 2019-07-13 | DV18: 0 | DW18: 251.55 | DX18: 186.05 | DY18: 115.56 | DZ18: 0.00 | EA18: 0.00 | EB18: 0.00 | EC18: 251.55 | ED18: 186.05 | EE18: 115.56 | EL18: 0.00 | EM18: 0 | EN18: 0.00 | EO18: 251.55 | EP18: 186.05 | EQ18: 115.56 | ER18: 0.00 | ES18: 0.00
A19: 14 | B19: =IF(AND('Att. Dairy'!B19=""),"",'Att. Dairy'!B19) -> 2019-07-14 | D19: 251.550 | E19: 186.050 | F19: 57.780 | G19: 28.890 | H19: 28.890 | X19: 251.550 | Y19: 186.050 | Z19: 57.780 | AA19: 28.890 | AB19: 28.890 | AC19: =IF(AND('Att. Dairy'!R19=""),"",'Att. Dairy'!R19) ->  | AD19: =IF(AND('Att. Dairy'!S19=""),"",'Att. Dairy'!S19) ->  | AE19: 0 | AF19: =IF(AND('Att. Dairy'!G19=""),"",'Att. Dairy'!G19) ->  | AG19: =IF(AND('Att. Dairy'!H19=""),"",'Att. Dairy'!H19) ->  | AH19: 0 | AI19: =IF(AND('Att. Dairy'!L19=""),"",'Att. Dairy'!L19) ->  | AJ19: =IF(AND('Att. Dairy'!M19=""),"",'Att. Dairy'!M19) ->  | AK19: 0 | AL19: 0 | AM19: 0 | AN19: 0.000 | AO19: 0.000 | AP19: 0.000 | AQ19: 251.550 | AR19: 186.050 | AS19: 57.780 | AT19: 28.890 | AU19: 28.890 | AV19: =IF(AND('Att. Dairy'!B19=""),"",IF(AND(AH19=""),"",IF(AND(C19="YES",AH19>0),AH19*$BB$1,AH19*$BC$1))) -> 0.00 | AW19: =IF(AND('Att. Dairy'!B19=""),"",IF(AND(AK19=""),"",AK19*$BD$1)) -> 0.00 | AX19: =IF(AND('Att. Dairy'!B19=""),"",IF(AND(AV19="",AW19=""),"",SUM(AV19,AW19))) -> 0.00 | AY19: =IF(AND('Att. Dairy'!B19=""),"",IF(AND(AF19=""),"",BI19)) ->  | BF19: =IF(AND('Att. Dairy'!C19=""),"",'Att. Dairy'!C19) ->  | BH19: =IF(AND('Att. Dairy'!D19=""),"",'Att. Dairy'!D19) -> Sunday | BI19: vodk'k | BJ19: 0 | BZ19: FALSE | CA19: FALSE | DU19: 2019-07-14 | DV19: 0 | DW19: 251.55 | DX19: 186.05 | DY19: 115.56 | DZ19: 0.00 | EA19: 0.00 | EB19: 0.00 | EC19: 251.55 | ED19: 186.05 | EE19: 115.56 | EL19: 0 | EM19: 0 | EN19: 0.00 | EO19: 251.55 | EP19: 186.05 | EQ19: 115.56 | ER19: 0.00 | ES19: 0.00
A20: 15 | B20: =IF(AND('Att. Dairy'!B20=""),"",'Att. Dairy'!B20) -> 2019-07-15 | D20: 251.550 | E20: 186.050 | F20: 57.780 | G20: 28.890 | H20: 28.890 | X20: 251.550 | Y20: 186.050 | Z20: 57.780 | AA20: 28.890 | AB20: 28.890 | AC20: =IF(AND('Att. Dairy'!R20=""),"",'Att. Dairy'!R20) ->  | AD20: =IF(AND('Att. Dairy'!S20=""),"",'Att. Dairy'!S20) ->  | AE20: 0 | AF20: =IF(AND('Att. Dairy'!G20=""),"",'Att. Dairy'!G20) ->  | AG20: =IF(AND('Att. Dairy'!H20=""),"",'Att. Dairy'!H20) ->  | AH20: 0 | AI20: =IF(AND('Att. Dairy'!L20=""),"",'Att. Dairy'!L20) ->  | AJ20: =IF(AND('Att. Dairy'!M20=""),"",'Att. Dairy'!M20) ->  | AK20: 0 | AL20: 0.000 | AM20: 0 | AN20: 0.000 | AO20: 0.000 | AP20: 0.000 | AQ20: 251.550 | AR20: 186.050 | AS20: 57.780 | AT20: 28.890 | AU20: 28.890 | AV20: =IF(AND('Att. Dairy'!B20=""),"",IF(AND(AH20=""),"",IF(AND(C20="YES",AH20>0),AH20*$BB$1,AH20*$BC$1))) -> 0.00 | AW20: =IF(AND('Att. Dairy'!B20=""),"",IF(AND(AK20=""),"",AK20*$BD$1)) -> 0.00 | AX20: =IF(AND('Att. Dairy'!B20=""),"",IF(AND(AV20="",AW20=""),"",SUM(AV20,AW20))) -> 0.00 | AY20: =IF(AND('Att. Dairy'!B20=""),"",IF(AND(AF20=""),"",BI20)) ->  | BF20: =IF(AND('Att. Dairy'!C20=""),"",'Att. Dairy'!C20) ->  | BH20: =IF(AND('Att. Dairy'!D20=""),"",'Att. Dairy'!D20) -> Monday | BI20: lCthjksVh | BJ20: 0 | BZ20: W | CA20: W | DU20: 2019-07-15 | DV20: 0 | DW20: 251.55 | DX20: 186.05 | DY20: 115.56 | DZ20: 0.00 | EA20: 0.00 | EB20: 0.00 | EC20: 251.55 | ED20: 186.05 | EE20: 115.56 | EL20: 0.00 | EM20: 0 | EN20: 0.00 | EO20: 251.55 | EP20: 186.05 | EQ20: 115.56 | ER20: 0.00 | ES20: 0.00
A21: 16 | B21: =IF(AND('Att. Dairy'!B21=""),"",'Att. Dairy'!B21) -> 2019-07-16 | D21: 251.550 | E21: 186.050 | F21: 57.780 | G21: 28.890 | H21: 28.890 | X21: 251.550 | Y21: 186.050 | Z21: 57.780 | AA21: 28.890 | AB21: 28.890 | AC21: =IF(AND('Att. Dairy'!R21=""),"",'Att. Dairy'!R21) ->  | AD21: =IF(AND('Att. Dairy'!S21=""),"",'Att. Dairy'!S21) ->  | AE21: 0 | AF21: =IF(AND('Att. Dairy'!G21=""),"",'Att. Dairy'!G21) ->  | AG21: =IF(AND('Att. Dairy'!H21=""),"",'Att. Dairy'!H21) ->  | AH21: 0 | AI21: =IF(AND('Att. Dairy'!L21=""),"",'Att. Dairy'!L21) ->  | AJ21: =IF(AND('Att. Dairy'!M21=""),"",'Att. Dairy'!M21) ->  | AK21: 0 | AL21: 0 | AM21: 0.000 | AN21: 0.000 | AO21: 0.000 | AP21: 0.000 | AQ21: 251.550 | AR21: 186.050 | AS21: 57.780 | AT21: 28.890 | AU21: 28.890 | AV21: =IF(AND('Att. Dairy'!B21=""),"",IF(AND(AH21=""),"",IF(AND(C21="YES",AH21>0),AH21*$BB$1,AH21*$BC$1))) -> 0.00 | AW21: =IF(AND('Att. Dairy'!B21=""),"",IF(AND(AK21=""),"",AK21*$BD$1)) -> 0.00 | AX21: =IF(AND('Att. Dairy'!B21=""),"",IF(AND(AV21="",AW21=""),"",SUM(AV21,AW21))) -> 0.00 | AY21: =IF(AND('Att. Dairy'!B21=""),"",IF(AND(AF21=""),"",BI21)) ->  | BF21: =IF(AND('Att. Dairy'!C21=""),"",'Att. Dairy'!C21) ->  | BH21: =IF(AND('Att. Dairy'!D21=""),"",'Att. Dairy'!D21) -> Tuesday | BI21: nkypkoy | BJ21: 0 | BZ21: R | CA21: R | DU21: 2019-07-16 | DV21: 0 | DW21: 251.55 | DX21: 186.05 | DY21: 115.56 | DZ21: 0.00 | EA21: 0.00 | EB21: 0.00 | EC21: 251.55 | ED21: 186.05 | EE21: 115.56 | EL21: 0 | EM21: 0.00 | EN21: 0.00 | EO21: 251.55 | EP21: 186.05 | EQ21: 115.56 | ER21: 0.00 | ES21: 0.00
A22: 17 | B22: =IF(AND('Att. Dairy'!B22=""),"",'Att. Dairy'!B22) -> 2019-07-17 | D22: 251.550 | E22: 186.050 | F22: 57.780 | G22: 28.890 | H22: 28.890 | X22: 251.550 | Y22: 186.050 | Z22: 57.780 | AA22: 28.890 | AB22: 28.890 | AC22: =IF(AND('Att. Dairy'!R22=""),"",'Att. Dairy'!R22) ->  | AD22: =IF(AND('Att. Dairy'!S22=""),"",'Att. Dairy'!S22) ->  | AE22: 0 | AF22: =IF(AND('Att. Dairy'!G22=""),"",'Att. Dairy'!G22) ->  | AG22: =IF(AND('Att. Dairy'!H22=""),"",'Att. Dairy'!H22) ->  | AH22: 0 | AI22: =IF(AND('Att. Dairy'!L22=""),"",'Att. Dairy'!L22) ->  | AJ22: =IF(AND('Att. Dairy'!M22=""),"",'Att. Dairy'!M22) ->  | AK22: 0 | AL22: 0.000 | AM22: 0 | AN22: 0.000 | AO22: 0.000 | AP22: 0.000 | AQ22: 251.550 | AR22: 186.050 | AS22: 57.780 | AT22: 28.890 | AU22: 28.890 | AV22: =IF(AND('Att. Dairy'!B22=""),"",IF(AND(AH22=""),"",IF(AND(C22="YES",AH22>0),AH22*$BB$1,AH22*$BC$1))) -> 0.00 | AW22: =IF(AND('Att. Dairy'!B22=""),"",IF(AND(AK22=""),"",AK22*$BD$1)) -> 0.00 | AX22: =IF(AND('Att. Dairy'!B22=""),"",IF(AND(AV22="",AW22=""),"",SUM(AV22,AW22))) -> 0.00 | AY22: =IF(AND('Att. Dairy'!B22=""),"",IF(AND(AF22=""),"",BI22)) ->  | BF22: =IF(AND('Att. Dairy'!C22=""),"",'Att. Dairy'!C22) ->  | BH22: =IF(AND('Att. Dairy'!D22=""),"",'Att. Dairy'!D22) -> Wednesday | BI22: nkyjksVh | BJ22: 0 | BZ22: W | CA22: W | DU22: 2019-07-17 | DV22: 0 | DW22: 251.55 | DX22: 186.05 | DY22: 115.56 | DZ22: 0.00 | EA22: 0.00 | EB22: 0.00 | EC22: 251.55 | ED22: 186.05 | EE22: 115.56 | EL22: 0.00 | EM22: 0 | EN22: 0.00 | EO22: 251.55 | EP22: 186.05 | EQ22: 115.56 | ER22: 0.00 | ES22: 0.00
A23: 18 | B23: =IF(AND('Att. Dairy'!B23=""),"",'Att. Dairy'!B23) -> 2019-07-18 | D23: 251.550 | E23: 186.050 | F23: 57.780 | G23: 28.890 | H23: 28.890 | X23: 251.550 | Y23: 186.050 | Z23: 57.780 | AA23: 28.890 | AB23: 28.890 | AC23: =IF(AND('Att. Dairy'!R23=""),"",'Att. Dairy'!R23) ->  | AD23: =IF(AND('Att. Dairy'!S23=""),"",'Att. Dairy'!S23) ->  | AE23: 0 | AF23: =IF(AND('Att. Dairy'!G23=""),"",'Att. Dairy'!G23) ->  | AG23: =IF(AND('Att. Dairy'!H23=""),"",'Att. Dairy'!H23) ->  | AH23: 0 | AI23: =IF(AND('Att. Dairy'!L23=""),"",'Att. Dairy'!L23) ->  | AJ23: =IF(AND('Att. Dairy'!M23=""),"",'Att. Dairy'!M23) ->  | AK23: 0 | AL23: 0 | AM23: 0.000 | AN23: 0.000 | AO23: 0.000 | AP23: 0.000 | AQ23: 251.550 | AR23: 186.050 | AS23: 57.780 | AT23: 28.890 | AU23: 28.890 | AV23: =IF(AND('Att. Dairy'!B23=""),"",IF(AND(AH23=""),"",IF(AND(C23="YES",AH23>0),AH23*$BB$1,AH23*$BC$1))) -> 0.00 | AW23: =IF(AND('Att. Dairy'!B23=""),"",IF(AND(AK23=""),"",AK23*$BD$1)) -> 0.00 | AX23: =IF(AND('Att. Dairy'!B23=""),"",IF(AND(AV23="",AW23=""),"",SUM(AV23,AW23))) -> 0.00 | AY23: =IF(AND('Att. Dairy'!B23=""),"",IF(AND(AF23=""),"",BI23)) ->  | BF23: =IF(AND('Att. Dairy'!C23=""),"",'Att. Dairy'!C23) ->  | BH23: =IF(AND('Att. Dairy'!D23=""),"",'Att. Dairy'!D23) -> Thursday | BI23: f[kpM+h | BJ23: 0 | BZ23: R | CA23: R | DU23: 2019-07-18 | DV23: 0 | DW23: 251.55 | DX23: 186.05 | DY23: 115.56 | DZ23: 0.00 | EA23: 0.00 | EB23: 0.00 | EC23: 251.55 | ED23: 186.05 | EE23: 115.56 | EL23: 0 | EM23: 0.00 | EN23: 0.00 | EO23: 251.55 | EP23: 186.05 | EQ23: 115.56 | ER23: 0.00 | ES23: 0.00
A24: 19 | B24: =IF(AND('Att. Dairy'!B24=""),"",'Att. Dairy'!B24) -> 2019-07-19 | D24: 251.550 | E24: 186.050 | F24: 57.780 | G24: 28.890 | H24: 28.890 | X24: 251.550 | Y24: 186.050 | Z24: 57.780 | AA24: 28.890 | AB24: 28.890 | AC24: =IF(AND('Att. Dairy'!R24=""),"",'Att. Dairy'!R24) ->  | AD24: =IF(AND('Att. Dairy'!S24=""),"",'Att. Dairy'!S24) ->  | AE24: 0 | AF24: =IF(AND('Att. Dairy'!G24=""),"",'Att. Dairy'!G24) ->  | AG24: =IF(AND('Att. Dairy'!H24=""),"",'Att. Dairy'!H24) ->  | AH24: 0 | AI24: =IF(AND('Att. Dairy'!L24=""),"",'Att. Dairy'!L24) ->  | AJ24: =IF(AND('Att. Dairy'!M24=""),"",'Att. Dairy'!M24) ->  | AK24: 0 | AL24: 0.000 | AM24: 0 | AN24: 0.000 | AO24: 0.000 | AP24: 0.000 | AQ24: 251.550 | AR24: 186.050 | AS24: 57.780 | AT24: 28.890 | AU24: 28.890 | AV24: =IF(AND('Att. Dairy'!B24=""),"",IF(AND(AH24=""),"",IF(AND(C24="YES",AH24>0),AH24*$BB$1,AH24*$BC$1))) -> 0.00 | AW24: =IF(AND('Att. Dairy'!B24=""),"",IF(AND(AK24=""),"",AK24*$BD$1)) -> 0.00 | AX24: =IF(AND('Att. Dairy'!B24=""),"",IF(AND(AV24="",AW24=""),"",SUM(AV24,AW24))) -> 0.00 | AY24: =IF(AND('Att. Dairy'!B24=""),"",IF(AND(AF24=""),"",BI24)) ->  | BF24: =IF(AND('Att. Dairy'!C24=""),"",'Att. Dairy'!C24) ->  | BH24: =IF(AND('Att. Dairy'!D24=""),"",'Att. Dairy'!D24) -> Friday | BI24: nkyjksVh | BJ24: 0 | BZ24: W | CA24: W | DU24: 2019-07-19 | DV24: 0 | DW24: 251.55 | DX24: 186.05 | DY24: 115.56 | DZ24: 0.00 | EA24: 0.00 | EB24: 0.00 | EC24: 251.55 | ED24: 186.05 | EE24: 115.56 | EL24: 0.00 | EM24: 0 | EN24: 0.00 | EO24: 251.55 | EP24: 186.05 | EQ24: 115.56 | ER24: 0.00 | ES24: 0.00
A25: 20 | B25: =IF(AND('Att. Dairy'!B25=""),"",'Att. Dairy'!B25) -> 2019-07-20 | D25: 251.550 | E25: 186.050 | F25: 57.780 | G25: 28.890 | H25: 28.890 | X25: 251.550 | Y25: 186.050 | Z25: 57.780 | AA25: 28.890 | AB25: 28.890 | AC25: =IF(AND('Att. Dairy'!R25=""),"",'Att. Dairy'!R25) ->  | AD25: =IF(AND('Att. Dairy'!S25=""),"",'Att. Dairy'!S25) ->  | AE25: 0 | AF25: =IF(AND('Att. Dairy'!G25=""),"",'Att. Dairy'!G25) ->  | AG25: =IF(AND('Att. Dairy'!H25=""),"",'Att. Dairy'!H25) ->  | AH25: 0 | AI25: =IF(AND('Att. Dairy'!L25=""),"",'Att. Dairy'!L25) ->  | AJ25: =IF(AND('Att. Dairy'!M25=""),"",'Att. Dairy'!M25) ->  | AK25: 0 | AL25: 0.000 | AM25: 0 | AN25: 0.000 | AO25: 0.000 | AP25: 0.000 | AQ25: 251.550 | AR25: 186.050 | AS25: 57.780 | AT25: 28.890 | AU25: 28.890 | AV25: =IF(AND('Att. Dairy'!B25=""),"",IF(AND(AH25=""),"",IF(AND(C25="YES",AH25>0),AH25*$BB$1,AH25*$BC$1))) -> 0.00 | AW25: =IF(AND('Att. Dairy'!B25=""),"",IF(AND(AK25=""),"",AK25*$BD$1)) -> 0.00 | AX25: =IF(AND('Att. Dairy'!B25=""),"",IF(AND(AV25="",AW25=""),"",SUM(AV25,AW25))) -> 0.00 | AY25: =IF(AND('Att. Dairy'!B25=""),"",IF(AND(AF25=""),"",BI25)) ->  | BF25: =IF(AND('Att. Dairy'!C25=""),"",'Att. Dairy'!C25) ->  | BH25: =IF(AND('Att. Dairy'!D25=""),"",'Att. Dairy'!D25) -> Saturday | BI25: lCthjksVh | BJ25: 0 | BZ25: W | CA25: W | DU25: 2019-07-20 | DV25: 0 | DW25: 251.55 | DX25: 186.05 | DY25: 115.56 | DZ25: 0.00 | EA25: 0.00 | EB25: 0.00 | EC25: 251.55 | ED25: 186.05 | EE25: 115.56 | EL25: 0.00 | EM25: 0 | EN25: 0.00 | EO25: 251.55 | EP25: 186.05 | EQ25: 115.56 | ER25: 0.00 | ES25: 0.00
A26: 21 | B26: =IF(AND('Att. Dairy'!B26=""),"",'Att. Dairy'!B26) -> 2019-07-21 | D26: 251.550 | E26: 186.050 | F26: 57.780 | G26: 28.890 | H26: 28.890 | X26: 251.550 | Y26: 186.050 | Z26: 57.780 | AA26: 28.890 | AB26: 28.890 | AC26: =IF(AND('Att. Dairy'!R26=""),"",'Att. Dairy'!R26) ->  | AD26: =IF(AND('Att. Dairy'!S26=""),"",'Att. Dairy'!S26) ->  | AE26: 0 | AF26: =IF(AND('Att. Dairy'!G26=""),"",'Att. Dairy'!G26) ->  | AG26: =IF(AND('Att. Dairy'!H26=""),"",'Att. Dairy'!H26) ->  | AH26: 0 | AI26: =IF(AND('Att. Dairy'!L26=""),"",'Att. Dairy'!L26) ->  | AJ26: =IF(AND('Att. Dairy'!M26=""),"",'Att. Dairy'!M26) ->  | AK26: 0 | AL26: 0 | AM26: 0 | AN26: 0.000 | AO26: 0.000 | AP26: 0.000 | AQ26: 251.550 | AR26: 186.050 | AS26: 57.780 | AT26: 28.890 | AU26: 28.890 | AV26: =IF(AND('Att. Dairy'!B26=""),"",IF(AND(AH26=""),"",IF(AND(C26="YES",AH26>0),AH26*$BB$1,AH26*$BC$1))) -> 0.00 | AW26: =IF(AND('Att. Dairy'!B26=""),"",IF(AND(AK26=""),"",AK26*$BD$1)) -> 0.00 | AX26: =IF(AND('Att. Dairy'!B26=""),"",IF(AND(AV26="",AW26=""),"",SUM(AV26,AW26))) -> 0.00 | AY26: =IF(AND('Att. Dairy'!B26=""),"",IF(AND(AF26=""),"",BI26)) ->  | BF26: =IF(AND('Att. Dairy'!C26=""),"",'Att. Dairy'!C26) ->  | BH26: =IF(AND('Att. Dairy'!D26=""),"",'Att. Dairy'!D26) -> Sunday | BI26: vodk'k | BJ26: 0 | BZ26: FALSE | CA26: FALSE | DU26: 2019-07-21 | DV26: 0 | DW26: 251.55 | DX26: 186.05 | DY26: 115.56 | DZ26: 0.00 | EA26: 0.00 | EB26: 0.00 | EC26: 251.55 | ED26: 186.05 | EE26: 115.56 | EL26: 0 | EM26: 0 | EN26: 0.00 | EO26: 251.55 | EP26: 186.05 | EQ26: 115.56 | ER26: 0.00 | ES26: 0.00
A27: 22 | B27: =IF(AND('Att. Dairy'!B27=""),"",'Att. Dairy'!B27) -> 2019-07-22 | D27: 251.550 | E27: 186.050 | F27: 57.780 | G27: 28.890 | H27: 28.890 | X27: 251.550 | Y27: 186.050 | Z27: 57.780 | AA27: 28.890 | AB27: 28.890 | AC27: =IF(AND('Att. Dairy'!R27=""),"",'Att. Dairy'!R27) ->  | AD27: =IF(AND('Att. Dairy'!S27=""),"",'Att. Dairy'!S27) ->  | AE27: 0 | AF27: =IF(AND('Att. Dairy'!G27=""),"",'Att. Dairy'!G27) ->  | AG27: =IF(AND('Att. Dairy'!H27=""),"",'Att. Dairy'!H27) ->  | AH27: 0 | AI27: =IF(AND('Att. Dairy'!L27=""),"",'Att. Dairy'!L27) ->  | AJ27: =IF(AND('Att. Dairy'!M27=""),"",'Att. Dairy'!M27) ->  | AK27: 0 | AL27: 0.000 | AM27: 0 | AN27: 0.000 | AO27: 0.000 | AP27: 0.000 | AQ27: 251.550 | AR27: 186.050 | AS27: 57.780 | AT27: 28.890 | AU27: 28.890 | AV27: =IF(AND('Att. Dairy'!B27=""),"",IF(AND(AH27=""),"",IF(AND(C27="YES",AH27>0),AH27*$BB$1,AH27*$BC$1))) -> 0.00 | AW27: =IF(AND('Att. Dairy'!B27=""),"",IF(AND(AK27=""),"",AK27*$BD$1)) -> 0.00 | AX27: =IF(AND('Att. Dairy'!B27=""),"",IF(AND(AV27="",AW27=""),"",SUM(AV27,AW27))) -> 0.00 | AY27: =IF(AND('Att. Dairy'!B27=""),"",IF(AND(AF27=""),"",BI27)) ->  | BF27: =IF(AND('Att. Dairy'!C27=""),"",'Att. Dairy'!C27) ->  | BH27: =IF(AND('Att. Dairy'!D27=""),"",'Att. Dairy'!D27) -> Monday | BI27: lCthjksVh | BJ27: 0 | BZ27: W | CA27: W | DU27: 2019-07-22 | DV27: 0 | DW27: 251.55 | DX27: 186.05 | DY27: 115.56 | DZ27: 0.00 | EA27: 0.00 | EB27: 0.00 | EC27: 251.55 | ED27: 186.05 | EE27: 115.56 | EL27: 0.00 | EM27: 0 | EN27: 0.00 | EO27: 251.55 | EP27: 186.05 | EQ27: 115.56 | ER27: 0.00 | ES27: 0.00
A28: 23 | B28: =IF(AND('Att. Dairy'!B28=""),"",'Att. Dairy'!B28) -> 2019-07-23 | D28: =IF(AND(AQ27=""),"",AQ27) -> 251.550 | E28: 186.050 | F28: 57.780 | G28: 28.890 | H28: 28.890 | X28: 251.550 | Y28: 186.050 | Z28: 57.780 | AA28: 28.890 | AB28: 28.890 | AC28: =IF(AND('Att. Dairy'!R28=""),"",'Att. Dairy'!R28) ->  | AD28: =IF(AND('Att. Dairy'!S28=""),"",'Att. Dairy'!S28) ->  | AE28: 0 | AF28: =IF(AND('Att. Dairy'!G28=""),"",'Att. Dairy'!G28) ->  | AG28: =IF(AND('Att. Dairy'!H28=""),"",'Att. Dairy'!H28) ->  | AH28: 0 | AI28: =IF(AND('Att. Dairy'!L28=""),"",'Att. Dairy'!L28) ->  | AJ28: =IF(AND('Att. Dairy'!M28=""),"",'Att. Dairy'!M28) ->  | AK28: 0 | AL28: 0 | AM28: 0.000 | AN28: 0.000 | AO28: 0.000 | AP28: 0.000 | AQ28: 251.550 | AR28: 186.050 | AS28: 57.780 | AT28: 28.890 | AU28: 28.890 | AV28: =IF(AND('Att. Dairy'!B28=""),"",IF(AND(AH28=""),"",IF(AND(C28="YES",AH28>0),AH28*$BB$1,AH28*$BC$1))) -> 0.00 | AW28: =IF(AND('Att. Dairy'!B28=""),"",IF(AND(AK28=""),"",AK28*$BD$1)) -> 0.00 | AX28: =IF(AND('Att. Dairy'!B28=""),"",IF(AND(AV28="",AW28=""),"",SUM(AV28,AW28))) -> 0.00 | AY28: =IF(AND('Att. Dairy'!B28=""),"",IF(AND(AF28=""),"",BI28)) ->  | BF28: =IF(AND('Att. Dairy'!C28=""),"",'Att. Dairy'!C28) ->  | BH28: =IF(AND('Att. Dairy'!D28=""),"",'Att. Dairy'!D28) -> Tuesday | BI28: nkypkoy | BJ28: 0 | BZ28: R | CA28: R | DU28: 2019-07-23 | DV28: 0 | DW28: 251.55 | DX28: 186.05 | DY28: 115.56 | DZ28: 0.00 | EA28: 0.00 | EB28: 0.00 | EC28: 251.55 | ED28: 186.05 | EE28: 115.56 | EL28: 0 | EM28: 0.00 | EN28: 0.00 | EO28: 251.55 | EP28: 186.05 | EQ28: 115.56 | ER28: 0.00 | ES28: 0.00
A29: 24 | B29: =IF(AND('Att. Dairy'!B29=""),"",'Att. Dairy'!B29) -> 2019-07-24 | D29: 251.550 | E29: 186.050 | F29: 57.780 | G29: 28.890 | H29: 28.890 | X29: 251.550 | Y29: 186.050 | Z29: 57.780 | AA29: 28.890 | AB29: 28.890 | AC29: =IF(AND('Att. Dairy'!R29=""),"",'Att. Dairy'!R29) ->  | AD29: =IF(AND('Att. Dairy'!S29=""),"",'Att. Dairy'!S29) ->  | AE29: 0 | AF29: =IF(AND('Att. Dairy'!G29=""),"",'Att. Dairy'!G29) ->  | AG29: =IF(AND('Att. Dairy'!H29=""),"",'Att. Dairy'!H29) ->  | AH29: 0 | AI29: =IF(AND('Att. Dairy'!L29=""),"",'Att. Dairy'!L29) ->  | AJ29: =IF(AND('Att. Dairy'!M29=""),"",'Att. Dairy'!M29) ->  | AK29: 0 | AL29: 0.000 | AM29: 0 | AN29: 0.000 | AO29: 0.000 | AP29: 0.000 | AQ29: 251.550 | AR29: 186.050 | AS29: 57.780 | AT29: 28.890 | AU29: 28.890 | AV29: =IF(AND('Att. Dairy'!B29=""),"",IF(AND(AH29=""),"",IF(AND(C29="YES",AH29>0),AH29*$BB$1,AH29*$BC$1))) -> 0.00 | AW29: =IF(AND('Att. Dairy'!B29=""),"",IF(AND(AK29=""),"",AK29*$BD$1)) -> 0.00 | AX29: =IF(AND('Att. Dairy'!B29=""),"",IF(AND(AV29="",AW29=""),"",SUM(AV29,AW29))) -> 0.00 | AY29: =IF(AND('Att. Dairy'!B29=""),"",IF(AND(AF29=""),"",BI29)) ->  | BF29: =IF(AND('Att. Dairy'!C29=""),"",'Att. Dairy'!C29) ->  | BH29: =IF(AND('Att. Dairy'!D29=""),"",'Att. Dairy'!D29) -> Wednesday | BI29: nkyjksVh | BJ29: 0 | BZ29: W | CA29: W | DU29: 2019-07-24 | DV29: 0 | DW29: 251.55 | DX29: 186.05 | DY29: 115.56 | DZ29: 0.00 | EA29: 0.00 | EB29: 0.00 | EC29: 251.55 | ED29: 186.05 | EE29: 115.56 | EL29: 0.00 | EM29: 0 | EN29: 0.00 | EO29: 251.55 | EP29: 186.05 | EQ29: 115.56 | ER29: 0.00 | ES29: 0.00
A30: 25 | B30: =IF(AND('Att. Dairy'!B30=""),"",'Att. Dairy'!B30) -> 2019-07-25 | D30: 251.550 | E30: 186.050 | F30: 57.780 | G30: 28.890 | H30: 28.890 | X30: 251.550 | Y30: 186.050 | Z30: 57.780 | AA30: 28.890 | AB30: 28.890 | AC30: =IF(AND('Att. Dairy'!R30=""),"",'Att. Dairy'!R30) ->  | AD30: =IF(AND('Att. Dairy'!S30=""),"",'Att. Dairy'!S30) ->  | AE30: 0 | AF30: =IF(AND('Att. Dairy'!G30=""),"",'Att. Dairy'!G30) ->  | AG30: =IF(AND('Att. Dairy'!H30=""),"",'Att. Dairy'!H30) ->  | AH30: 0 | AI30: =IF(AND('Att. Dairy'!L30=""),"",'Att. Dairy'!L30) ->  | AJ30: =IF(AND('Att. Dairy'!M30=""),"",'Att. Dairy'!M30) ->  | AK30: 0 | AL30: 0 | AM30: 0.000 | AN30: 0.000 | AO30: 0.000 | AP30: 0.000 | AQ30: 251.550 | AR30: 186.050 | AS30: 57.780 | AT30: 28.890 | AU30: 28.890 | AV30: =IF(AND('Att. Dairy'!B30=""),"",IF(AND(AH30=""),"",IF(AND(C30="YES",AH30>0),AH30*$BB$1,AH30*$BC$1))) -> 0.00 | AW30: =IF(AND('Att. Dairy'!B30=""),"",IF(AND(AK30=""),"",AK30*$BD$1)) -> 0.00 | AX30: =IF(AND('Att. Dairy'!B30=""),"",IF(AND(AV30="",AW30=""),"",SUM(AV30,AW30))) -> 0.00 | AY30: =IF(AND('Att. Dairy'!B30=""),"",IF(AND(AF30=""),"",BI30)) ->  | BF30: =IF(AND('Att. Dairy'!C30=""),"",'Att. Dairy'!C30) ->  | BH30: =IF(AND('Att. Dairy'!D30=""),"",'Att. Dairy'!D30) -> Thursday | BI30: f[kpM+h | BJ30: 0 | BZ30: R | CA30: R | DU30: 2019-07-25 | DV30: 0 | DW30: 251.55 | DX30: 186.05 | DY30: 115.56 | DZ30: 0.00 | EA30: 0.00 | EB30: 0.00 | EC30: 251.55 | ED30: 186.05 | EE30: 115.56 | EL30: 0 | EM30: 0.00 | EN30: 0.00 | EO30: 251.55 | EP30: 186.05 | EQ30: 115.56 | ER30: 0.00 | ES30: 0.00
A31: 26 | B31: =IF(AND('Att. Dairy'!B31=""),"",'Att. Dairy'!B31) -> 2019-07-26 | D31: 251.550 | E31: 186.050 | F31: 57.780 | G31: 28.890 | H31: 28.890 | X31: 251.550 | Y31: 186.050 | Z31: 57.780 | AA31: 28.890 | AB31: 28.890 | AC31: =IF(AND('Att. Dairy'!R31=""),"",'Att. Dairy'!R31) ->  | AD31: =IF(AND('Att. Dairy'!S31=""),"",'Att. Dairy'!S31) ->  | AE31: 0 | AF31: =IF(AND('Att. Dairy'!G31=""),"",'Att. Dairy'!G31) ->  | AG31: =IF(AND('Att. Dairy'!H31=""),"",'Att. Dairy'!H31) ->  | AH31: 0 | AI31: =IF(AND('Att. Dairy'!L31=""),"",'Att. Dairy'!L31) ->  | AJ31: =IF(AND('Att. Dairy'!M31=""),"",'Att. Dairy'!M31) ->  | AK31: 0 | AL31: 0.000 | AM31: 0 | AN31: 0.000 | AO31: 0.000 | AP31: 0.000 | AQ31: 251.550 | AR31: 186.050 | AS31: 57.780 | AT31: 28.890 | AU31: 28.890 | AV31: =IF(AND('Att. Dairy'!B31=""),"",IF(AND(AH31=""),"",IF(AND(C31="YES",AH31>0),AH31*$BB$1,AH31*$BC$1))) -> 0.00 | AW31: =IF(AND('Att. Dairy'!B31=""),"",IF(AND(AK31=""),"",AK31*$BD$1)) -> 0.00 | AX31: =IF(AND('Att. Dairy'!B31=""),"",IF(AND(AV31="",AW31=""),"",SUM(AV31,AW31))) -> 0.00 | AY31: =IF(AND('Att. Dairy'!B31=""),"",IF(AND(AF31=""),"",BI31)) ->  | BF31: =IF(AND('Att. Dairy'!C31=""),"",'Att. Dairy'!C31) ->  | BH31: =IF(AND('Att. Dairy'!D31=""),"",'Att. Dairy'!D31) -> Friday | BI31: nkyjksVh | BJ31: 0 | BZ31: W | CA31: W | DU31: 2019-07-26 | DV31: 0 | DW31: 251.55 | DX31: 186.05 | DY31: 115.56 | DZ31: 0.00 | EA31: 0.00 | EB31: 0.00 | EC31: 251.55 | ED31: 186.05 | EE31: 115.56 | EL31: 0.00 | EM31: 0 | EN31: 0.00 | EO31: 251.55 | EP31: 186.05 | EQ31: 115.56 | ER31: 0.00 | ES31: 0.00
A32: 27 | B32: =IF(AND('Att. Dairy'!B32=""),"",'Att. Dairy'!B32) -> 2019-07-27 | D32: 251.550 | E32: 186.050 | F32: 57.780 | G32: 28.890 | H32: 28.890 | X32: 251.550 | Y32: 186.050 | Z32: 57.780 | AA32: 28.890 | AB32: 28.890 | AC32: =IF(AND('Att. Dairy'!R32=""),"",'Att. Dairy'!R32) ->  | AD32: =IF(AND('Att. Dairy'!S32=""),"",'Att. Dairy'!S32) ->  | AE32: 0 | AF32: =IF(AND('Att. Dairy'!G32=""),"",'Att. Dairy'!G32) ->  | AG32: =IF(AND('Att. Dairy'!H32=""),"",'Att. Dairy'!H32) ->  | AH32: 0 | AI32: =IF(AND('Att. Dairy'!L32=""),"",'Att. Dairy'!L32) ->  | AJ32: =IF(AND('Att. Dairy'!M32=""),"",'Att. Dairy'!M32) ->  | AK32: 0 | AL32: 0.000 | AM32: 0 | AN32: 0.000 | AO32: 0.000 | AP32: 0.000 | AQ32: 251.550 | AR32: 186.050 | AS32: 57.780 | AT32: 28.890 | AU32: 28.890 | AV32: =IF(AND('Att. Dairy'!B32=""),"",IF(AND(AH32=""),"",IF(AND(C32="YES",AH32>0),AH32*$BB$1,AH32*$BC$1))) -> 0.00 | AW32: =IF(AND('Att. Dairy'!B32=""),"",IF(AND(AK32=""),"",AK32*$BD$1)) -> 0.00 | AX32: =IF(AND('Att. Dairy'!B32=""),"",IF(AND(AV32="",AW32=""),"",SUM(AV32,AW32))) -> 0.00 | AY32: =IF(AND('Att. Dairy'!B32=""),"",IF(AND(AF32=""),"",BI32)) ->  | BF32: =IF(AND('Att. Dairy'!C32=""),"",'Att. Dairy'!C32) ->  | BH32: =IF(AND('Att. Dairy'!D32=""),"",'Att. Dairy'!D32) -> Saturday | BI32: lCthjksVh | BJ32: 0 | BZ32: W | CA32: W | DU32: 2019-07-27 | DV32: 0 | DW32: 251.55 | DX32: 186.05 | DY32: 115.56 | DZ32: 0.00 | EA32: 0.00 | EB32: 0.00 | EC32: 251.55 | ED32: 186.05 | EE32: 115.56 | EL32: 0.00 | EM32: 0 | EN32: 0.00 | EO32: 251.55 | EP32: 186.05 | EQ32: 115.56 | ER32: 0.00 | ES32: 0.00
A33: 28 | B33: =IF(AND('Att. Dairy'!B33=""),"",'Att. Dairy'!B33) -> 2019-07-28 | D33: 251.550 | E33: 186.050 | F33: 57.780 | G33: 28.890 | H33: 28.890 | X33: 251.550 | Y33: 186.050 | Z33: 57.780 | AA33: 28.890 | AB33: 28.890 | AC33: =IF(AND('Att. Dairy'!R33=""),"",'Att. Dairy'!R33) ->  | AD33: =IF(AND('Att. Dairy'!S33=""),"",'Att. Dairy'!S33) ->  | AE33: 0 | AF33: =IF(AND('Att. Dairy'!G33=""),"",'Att. Dairy'!G33) ->  | AG33: =IF(AND('Att. Dairy'!H33=""),"",'Att. Dairy'!H33) ->  | AH33: 0 | AI33: =IF(AND('Att. Dairy'!L33=""),"",'Att. Dairy'!L33) ->  | AJ33: =IF(AND('Att. Dairy'!M33=""),"",'Att. Dairy'!M33) ->  | AK33: 0 | AL33: 0 | AM33: 0 | AN33: 0.000 | AO33: 0.000 | AP33: 0.000 | AQ33: 251.550 | AR33: 186.050 | AS33: 57.780 | AT33: 28.890 | AU33: 28.890 | AV33: =IF(AND('Att. Dairy'!B33=""),"",IF(AND(AH33=""),"",IF(AND(C33="YES",AH33>0),AH33*$BB$1,AH33*$BC$1))) -> 0.00 | AW33: =IF(AND('Att. Dairy'!B33=""),"",IF(AND(AK33=""),"",AK33*$BD$1)) -> 0.00 | AX33: =IF(AND('Att. Dairy'!B33=""),"",IF(AND(AV33="",AW33=""),"",SUM(AV33,AW33))) -> 0.00 | AY33: =IF(AND('Att. Dairy'!B33=""),"",IF(AND(AF33=""),"",BI33)) ->  | BF33: =IF(AND('Att. Dairy'!C33=""),"",'Att. Dairy'!C33) ->  | BH33: =IF(AND('Att. Dairy'!D33=""),"",'Att. Dairy'!D33) -> Sunday | BI33: vodk'k | BJ33: 0 | BZ33: FALSE | CA33: FALSE | DU33: 2019-07-28 | DV33: 0 | DW33: 251.55 | DX33: 186.05 | DY33: 115.56 | DZ33: 0.00 | EA33: 0.00 | EB33: 0.00 | EC33: 251.55 | ED33: 186.05 | EE33: 115.56 | EL33: 0 | EM33: 0 | EN33: 0.00 | EO33: 251.55 | EP33: 186.05 | EQ33: 115.56 | ER33: 0.00 | ES33: 0.00
A34: 29 | B34: =IF(AND('Att. Dairy'!B34=""),"",'Att. Dairy'!B34) -> 2019-07-29 | D34: 251.550 | E34: 186.050 | F34: 57.780 | G34: 28.890 | H34: 28.890 | X34: 251.550 | Y34: 186.050 | Z34: 57.780 | AA34: 28.890 | AB34: 28.890 | AC34: =IF(AND('Att. Dairy'!R34=""),"",'Att. Dairy'!R34) ->  | AD34: =IF(AND('Att. Dairy'!S34=""),"",'Att. Dairy'!S34) ->  | AE34: 0 | AF34: =IF(AND('Att. Dairy'!G34=""),"",'Att. Dairy'!G34) ->  | AG34: =IF(AND('Att. Dairy'!H34=""),"",'Att. Dairy'!H34) ->  | AH34: 0 | AI34: =IF(AND('Att. Dairy'!L34=""),"",'Att. Dairy'!L34) ->  | AJ34: =IF(AND('Att. Dairy'!M34=""),"",'Att. Dairy'!M34) ->  | AK34: 0 | AL34: 0.000 | AM34: 0 | AN34: 0.000 | AO34: 0.000 | AP34: 0.000 | AQ34: 251.550 | AR34: 186.050 | AS34: 57.780 | AT34: 28.890 | AU34: 28.890 | AV34: =IF(AND('Att. Dairy'!B34=""),"",IF(AND(AH34=""),"",IF(AND(C34="YES",AH34>0),AH34*$BB$1,AH34*$BC$1))) -> 0.00 | AW34: =IF(AND('Att. Dairy'!B34=""),"",IF(AND(AK34=""),"",AK34*$BD$1)) -> 0.00 | AX34: =IF(AND('Att. Dairy'!B34=""),"",IF(AND(AV34="",AW34=""),"",SUM(AV34,AW34))) -> 0.00 | AY34: =IF(AND('Att. Dairy'!B34=""),"",IF(AND(AF34=""),"",BI34)) ->  | BF34: =IF(AND('Att. Dairy'!C34=""),"",'Att. Dairy'!C34) ->  | BH34: =IF(AND('Att. Dairy'!D34=""),"",'Att. Dairy'!D34) -> Monday | BI34: lCthjksVh | BJ34: 0 | BZ34: W | CA34: W | DU34: 2019-07-29 | DV34: 0 | DW34: 251.55 | DX34: 186.05 | DY34: 115.56 | DZ34: 0.00 | EA34: 0.00 | EB34: 0.00 | EC34: 251.55 | ED34: 186.05 | EE34: 115.56 | EL34: 0.00 | EM34: 0 | EN34: 0.00 | EO34: 251.55 | EP34: 186.05 | EQ34: 115.56 | ER34: 0.00 | ES34: 0.00
A35: 30 | B35: =IF(AND('Att. Dairy'!B35=""),"",'Att. Dairy'!B35) -> 2019-07-30 | D35: 251.550 | E35: 186.050 | F35: 57.780 | G35: 28.890 | H35: 28.890 | X35: 251.550 | Y35: 186.050 | Z35: 57.780 | AA35: 28.890 | AB35: 28.890 | AC35: =IF(AND('Att. Dairy'!R35=""),"",'Att. Dairy'!R35) ->  | AD35: =IF(AND('Att. Dairy'!S35=""),"",'Att. Dairy'!S35) ->  | AE35: 0 | AF35: =IF(AND('Att. Dairy'!G35=""),"",'Att. Dairy'!G35) ->  | AG35: =IF(AND('Att. Dairy'!H35=""),"",'Att. Dairy'!H35) ->  | AH35: 0 | AI35: =IF(AND('Att. Dairy'!L35=""),"",'Att. Dairy'!L35) ->  | AJ35: =IF(AND('Att. Dairy'!M35=""),"",'Att. Dairy'!M35) ->  | AK35: 0 | AL35: 0 | AM35: 0.000 | AN35: 0.000 | AO35: 0.000 | AP35: 0.000 | AQ35: 251.550 | AR35: 186.050 | AS35: 57.780 | AT35: 28.890 | AU35: 28.890 | AV35: =IF(AND('Att. Dairy'!B35=""),"",IF(AND(AH35=""),"",IF(AND(C35="YES",AH35>0),AH35*$BB$1,AH35*$BC$1))) -> 0.00 | AW35: =IF(AND('Att. Dairy'!B35=""),"",IF(AND(AK35=""),"",AK35*$BD$1)) -> 0.00 | AX35: =IF(AND('Att. Dairy'!B35=""),"",IF(AND(AV35="",AW35=""),"",SUM(AV35,AW35))) -> 0.00 | AY35: =IF(AND('Att. Dairy'!B35=""),"",IF(AND(AF35=""),"",BI35)) ->  | BF35: =IF(AND('Att. Dairy'!C35=""),"",'Att. Dairy'!C35) ->  | BH35: =IF(AND('Att. Dairy'!D35=""),"",'Att. Dairy'!D35) -> Tuesday | BI35: nkypkoy | BJ35: 0 | BZ35: R | CA35: R | DU35: 2019-07-30 | DV35: 0 | DW35: 251.55 | DX35: 186.05 | DY35: 115.56 | DZ35: 0.00 | EA35: 0.00 | EB35: 0.00 | EC35: 251.55 | ED35: 186.05 | EE35: 115.56 | EL35: 0 | EM35: 0.00 | EN35: 0.00 | EO35: 251.55 | EP35: 186.05 | EQ35: 115.56 | ER35: 0.00 | ES35: 0.00
A36: 31 | B36: =IF(AND('Att. Dairy'!B36=""),"",'Att. Dairy'!B36) -> 2019-07-31 | D36: 251.550 | E36: 186.050 | F36: 57.780 | G36: 28.890 | H36: 28.890 | X36: 251.550 | Y36: 186.050 | Z36: 57.780 | AA36: 28.890 | AB36: 28.890 | AC36: =IF(AND('Att. Dairy'!R36=""),"",'Att. Dairy'!R36) ->  | AD36: =IF(AND('Att. Dairy'!S36=""),"",'Att. Dairy'!S36) ->  | AE36: 0 | AF36: =IF(AND('Att. Dairy'!G36=""),"",'Att. Dairy'!G36) ->  | AG36: =IF(AND('Att. Dairy'!H36=""),"",'Att. Dairy'!H36) ->  | AH36: 0 | AI36: =IF(AND('Att. Dairy'!L36=""),"",'Att. Dairy'!L36) ->  | AJ36: =IF(AND('Att. Dairy'!M36=""),"",'Att. Dairy'!M36) ->  | AK36: 0 | AL36: 0.000 | AM36: 0 | AN36: 0.000 | AO36: 0.000 | AP36: 0.000 | AQ36: 251.550 | AR36: 186.050 | AS36: 57.780 | AT36: 28.890 | AU36: 28.890 | AV36: =IF(AND('Att. Dairy'!B36=""),"",IF(AND(AH36=""),"",IF(AND(C36="YES",AH36>0),AH36*$BB$1,AH36*$BC$1))) -> 0.00 | AW36: =IF(AND('Att. Dairy'!B36=""),"",IF(AND(AK36=""),"",AK36*$BD$1)) -> 0.00 | AX36: =IF(AND('Att. Dairy'!B36=""),"",IF(AND(AV36="",AW36=""),"",SUM(AV36,AW36))) -> 0.00 | AY36: =IF(AND('Att. Dairy'!B36=""),"",IF(AND(AF36=""),"",BI36)) ->  | BF36: =IF(AND('Att. Dairy'!C36=""),"",'Att. Dairy'!C36) ->  | BH36: =IF(AND('Att. Dairy'!D36=""),"",'Att. Dairy'!D36) -> Wednesday | BI36: nkyjksVh | BJ36: 0 | BZ36: W | CA36: W | DU36: 2019-07-31 | DV36: 0 | DW36: 251.55 | DX36: 186.05 | DY36: 115.56 | DZ36: 0.00 | EA36: 0.00 | EB36: 0.00 | EC36: 251.55 | ED36: 186.05 | EE36: 115.56 | EL36: 0.00 | EM36: 0 | EN36: 0.00 | EO36: 251.55 | EP36: 186.05 | EQ36: 115.56 | ER36: 0.00 | ES36: 0.00
D37: dqy | I37: =SUM(I6:I36) -> 0.000 | J37: 0.000 | K37: 0.000 | L37: 0.000 | M37: 0.000 | N37: 0.000 | O37: 0.000 | P37: 0.000 | Q37: 0.000 | R37: 0.000 | S37: 0.000 | T37: 0.000 | U37: 0.000 | V37: 0.000 | W37: =SUM(W6:W36) -> 0.000 | AC37: =SUM(AC6:AC36) -> 672 | AD37: =SUM(AD6:AD36) -> 777 | AE37: 1449 | AF37: 206 | AG37: 210 | AH37: 416 | AI37: 288 | AJ37: 300 | AK37: 588 | AL37: =SUM(AL6:AL36) -> 48.450 | AM37: =SUM(AM6:AM36) -> 13.950 | AN37: =SUM(AN6:AN36) -> 2.220 | AO37: =SUM(AO6:AO36) -> 1.110 | AP37: 1.110 | AV37: =SUM(AV6:AV36) -> 2425.48 | AW37: =SUM(AW6:AW36) -> 4116.00 | AX37: =SUM(AX6:AX36) -> 6541.48 | BF37: =IF(AND('Att. Dairy'!C37=""),"",'Att. Dairy'!C37) ->  | BH37: =IF(AND('Att. Dairy'!D37=""),"",'Att. Dairy'!D37) ->  | BJ37: =SUM(BJ6:BJ36) -> 680.8 | DV37: dqy | DZ37: =SUM(DZ6:DZ36) -> 0.00 | EA37: =SUM(EA6:EA36) -> 0.00 | EB37: 0.00 | EF37: =SUM(EF6:EF36) -> 672 | EG37: =SUM(EG6:EG36) -> 777 | EH37: 206 | EI37: 210 | EJ37: 288 | EK37: 300 | EL37: =SUM(EL6:EL36) -> 48.45 | EM37: =SUM(EM6:EM36) -> 13.95 | EN37: =SUM(EN6:EN36) -> 4.44 | ER37: =SUM(ER6:ER36) -> 2425.48 | ES37: =SUM(ES6:ES36) -> 4116.00
AK38: 31 | AM38: =AL37+AM37 -> 62.400 | AV38: =SUM(C6:C36) -> 0.00 | BF38: =IF(AND('[1]Attendance dairy'!C38=""),"",'[1]Attendance dairy'!C38) ->  | BY38: 0.000
S39: =N37+S37 -> 0.000 | T39: =O37+T37 -> 0.000 | AK39: 0 | AV39: =#REF! ->  | BF39: =IF(AND('[1]Attendance dairy'!C39=""),"",'[1]Attendance dairy'!C39) ->  | BY39: 0
S40: 0.000 | T40: 0.000 | AV40: =SUM(AV39-AV37+AV38) ->  | BF40: =IF(AND('[1]Attendance dairy'!C40=""),"",'[1]Attendance dairy'!C40) ->  | BY40: 0.00
BF41: =IF(AND('[1]Attendance dairy'!C41=""),"",'[1]Attendance dairy'!C41) -> 
BF42: =IF(AND('[1]Attendance dairy'!C42=""),"",'[1]Attendance dairy'!C42) -> 
AL43: ekg esa çkIr dqy jkf'k | BF43: =IF(AND('[1]Attendance dairy'!C43=""),"",'[1]Attendance dairy'!C43) -> 
AL44: ekg esa O;; dqy jkf'k | CA44: =IF(AND(BW44=""),BZ44,BX44) -> 
AL45: ekg esa 'ks"k jkf'k
AL46: ekg esa ykHkfUor fo|kFkhZ

Sheet Praptra-1
A1: feM&Ms&ehy dk;ZØe ¼jktLFkku ljdkj½ fo|ky; ekfld lwpuk izi=
A2: fo|ky; dk uke %& | C2: =IF(AND('MASTER DATA'!C4=""),"",'MASTER DATA'!C4) -> jk-m-ek-fo- bUnjokM+k | E2: MkbZl dksM ua- %& | F2: =IF(AND('MASTER DATA'!C12=""),"",'MASTER DATA'!C12) -> 8200303101
A3: xzke iapk;r dk uke %& | C3: =IF(AND('MASTER DATA'!C15=""),"",'MASTER DATA'!C15) -> bUnjokM+k | E3: ekg@o"kZ %& | F3: =IF(AND('MASTER DATA'!J4=""),"",'MASTER DATA'!J4) -> tqykbZ&2019
A4: Ø-l- | B4: fooj.k | E4: d{kk 1 ls 5 rd | F4: d{kk 6 ls 8 rd | G4: ;ksx
A5: 1 | B5: ekg ds dqy dk;Z fnol | E5: ='Att. Dairy'!I39 -> 4 | F5: ='Att. Dairy'!L39 -> 4 | G5: =SUM(E5,F5) -> 8
A6: 2 | B6: fo|ky; dk dqy ukekadu | E6: ='Att. Dairy'!Q37 -> 2023 | F6: ='Att. Dairy'!T37 -> 1449 | G6: =SUM(E6,F6) -> 3472
A7: 3 | B7: iks"kkgkj ls ykHkkfUor dqy fo|kFkhZ | E7: ='PS Balance Sheet'!AH37 -> 400 | F7: ='UPS balance Sheet'!AH37 -> 416 | G7: 816
A8: 4 | B8: izkjfEHkd 'ks"k [kk|kUu ¼fdyksaxzke esa½ | D8: xsgqa | E8: ='Dal & Khadhiyan master'!E7 -> 250.000 | F8: ='Dal & Khadhiyan master'!G7 -> 300.000 | G8: 550.000
D9: pkoy | E9: ='Dal & Khadhiyan master'!E8 -> 150.000 | F9: ='Dal & Khadhiyan master'!G8 -> 200.000 | G9: =SUM(E9,F9) -> 350.000
A10: 5 | B10: izkjfEHkd 'ks"k nky ¼fdyksaxzke esa½ | D10: ewax | E10: ='Dal & Khadhiyan master'!E9 -> 40.000 | F10: ='Dal & Khadhiyan master'!G9 -> 60.000 | G10: 100.000
D11: mMn | E11: ='Dal & Khadhiyan master'!E10 -> 20.000 | F11: ='Dal & Khadhiyan master'!G10 -> 30.000 | G11: 50.000
D12: puk | E12: ='Dal & Khadhiyan master'!E11 -> 20.000 | F12: ='Dal & Khadhiyan master'!G11 -> 30.000 | G12: 50.000
A13: 6 | B13: lIyk;j ls izkIr [kk|kUu ¼fdyksaxzke esa½ | D13: xsgqa | E13: ='Dal & Khadhiyan master'!E12 -> 0.000 | F13: ='Dal & Khadhiyan master'!G12 -> 0.000 | G13: 0.000
D14: pkoy | E14: ='Dal & Khadhiyan master'!E13 -> 0.000 | F14: ='Dal & Khadhiyan master'!G13 -> 0.000 | G14: 0.000
A15: 7 | B15: lIyk;j ls izkIr nky ¼fdyksaxzke esa½ | D15: ewax | E15: ='Dal & Khadhiyan master'!E14 -> 0.000 | F15: ='Dal & Khadhiyan master'!G14 -> 0.000 | G15: 0.000
D16: mMn | E16: ='Dal & Khadhiyan master'!E15 -> 0.000 | F16: ='Dal & Khadhiyan master'!G15 -> 0.000 | G16: 0.000
D17: puk | E17: ='Dal & Khadhiyan master'!E16 -> 0.000 | F17: ='Dal & Khadhiyan master'!G16 -> 0.000 | G17: 0.000
A18: 8 | B18: vU;= ls izkIr [kk|kUu ¼tulg;ksx@m/kkj½ ¼fdyksaxzke esa½ | D18: xsgqa | E18: ='Dal & Khadhiyan master'!E17 -> 0.000 | F18: ='Dal & Khadhiyan master'!G17 -> 0.000 | G18: 0.000
D19: pkoy | E19: ='Dal & Khadhiyan master'!E18 -> 0.000 | F19: ='Dal & Khadhiyan master'!G18 -> 0.000 | G19: 0.000
A20: 9 | B20: vU;= ls izkIr nky ¼tulg;ksx@m/kkj½ ¼fdyksxzke esa½ | D20: ewax | E20: ='Dal & Khadhiyan master'!E19 -> 0.000 | F20: ='Dal & Khadhiyan master'!G19 -> 0.000 | G20: 0.000
D21: mMn | E21: ='Dal & Khadhiyan master'!E20 -> 0.000 | F21: ='Dal & Khadhiyan master'!G20 -> 0.000 | G21: 0.000
D22: puk | E22: ='Dal & Khadhiyan master'!E21 -> 0.000 | F22: ='Dal & Khadhiyan master'!G21 -> 0.000 | G22: 0.000
A23: 10 | B23: miyC/k dqy [kk|kUu ¼4+6+8½ ¼fdyksxzke esa½ | D23: xsgqa | E23: ='Dal & Khadhiyan master'!E22 -> 250.000 | F23: ='Dal & Khadhiyan master'!G22 -> 300.000 | G23: 550.000
D24: pkoy | E24: ='Dal & Khadhiyan master'!E23 -> 150.000 | F24: ='Dal & Khadhiyan master'!G23 -> 200.000 | G24: 350.000
A25: 11 | B25: miyC/k dqy nky ¼5+7+9½ ¼fdyksxzke esa½ | D25: ewax | E25: ='Dal & Khadhiyan master'!E24 -> 40.000 | F25: ='Dal & Khadhiyan master'!G24 -> 60.000 | G25: 100.000
D26: mMn | E26: ='Dal & Khadhiyan master'!E25 -> 20.000 | F26: ='Dal & Khadhiyan master'!G25 -> 30.000 | G26: 50.000
D27: puk | E27: ='Dal & Khadhiyan master'!E26 -> 20.000 | F27: ='Dal & Khadhiyan master'!G26 -> 30.000 | G27: 50.000
A28: 12 | B28: Hkkstu cukus esa [kpZ [kk|kUu ¼fdyksxzke esa½ | D28: xsgqa | E28: ='Dal & Khadhiyan master'!E27 -> 31.100 | F28: ='Dal & Khadhiyan master'!G27 -> 48.450 | G28: 79.550
D29: pkoy | E29: ='Dal & Khadhiyan master'!E28 -> 8.900 | F29: ='Dal & Khadhiyan master'!G28 -> 13.950 | G29: 22.850
A30: 13 | B30: Hkkstu cukus esa [kpZ nky ¼fdyksxzke esa½ | D30: ewax | E30: ='Dal & Khadhiyan master'!E29 -> 1.400 | F30: ='Dal & Khadhiyan master'!G29 -> 2.220 | G30: =SUM(E30,F30) -> 3.620
D31: mMn | E31: ='Dal & Khadhiyan master'!E30 -> 0.700 | F31: ='Dal & Khadhiyan master'!G30 -> 1.110 | G31: 1.810
D32: puk | E32: ='Dal & Khadhiyan master'!E31 -> 0.700 | F32: ='Dal & Khadhiyan master'!G31 -> 1.110 | G32: 1.810
A33: 14 | B33: 'ks"k [kk|kUu ¼10-12½ ¼fdyksxzke esa½ | D33: xsgqa | E33: ='Dal & Khadhiyan master'!E32 -> 218.900 | F33: ='Dal & Khadhiyan master'!G32 -> 251.550 | G33: 470.450
D34: pkoy | E34: ='Dal & Khadhiyan master'!E33 -> 141.100 | F34: ='Dal & Khadhiyan master'!G33 -> 186.050 | G34: 327.150
A35: 15 | B35: 'ks"k nky ¼11-13½ ¼fdyksxzke esa½ | D35: ewax | E35: ='Dal & Khadhiyan master'!E34 -> 38.600 | F35: ='Dal & Khadhiyan master'!G34 -> 57.780 | G35: 96.380
D36: mMn | E36: ='Dal & Khadhiyan master'!E35 -> 19.3 | F36: ='Dal & Khadhiyan master'!G35 -> 28.89 | G36: 48.19
D37: puk | E37: ='Dal & Khadhiyan master'!E36 -> 19.3 | F37: ='Dal & Khadhiyan master'!G36 -> 28.89 | G37: 48.19
A38: 16 | B38: dqfdax dUotZu foÙkh; fLFkfr ¼:i;ksaa es½ | D38: izkjfEHkd 'ks"k | E38: ='Dal & Khadhiyan master'!E37 -> 10000.00 | F38: ='Dal & Khadhiyan master'!G37 -> 15000.00 | G38: 25000.00
D39: izkIRk jkf'k | E39: ='Dal & Khadhiyan master'!E38 -> 15000.00 | F39: ='Dal & Khadhiyan master'!G38 -> 20000.00 | G39: 35000.00
D40: dqy jkf'k | E40: ='Dal & Khadhiyan master'!E39 -> 25000.00 | F40: ='Dal & Khadhiyan master'!G39 -> 35000.00 | G40: 60000.00
D41: O;; jkf'k | E41: ='Dal & Khadhiyan master'!E40 -> 1562.2 | F41: ='Dal & Khadhiyan master'!G40 -> 2425.48 | G41: 3987.68
D42: 'ks"k jkf'k | E42: ='Dal & Khadhiyan master'!E41 -> 23437.8 | F42: ='Dal & Khadhiyan master'!G41 -> 32574.52 | G42: 56012.32
A43: 17 | B43: dqd&de&gsYij foÙkh; fLFkfr ¼:i;ksa esa½ | D43: izkjfEHkd 'ks"k | E43: ='Dal & Khadhiyan master'!E42 -> 2000 | F43: ='Dal & Khadhiyan master'!G42 -> 2000 | G43: =SUM(E43,F43) -> 4000
B44: 1- dqdgsYij | C44: =IF(AND('MASTER DATA'!C37=""),"",'MASTER DATA'!C37) -> Dhagalai Devi | D44: izkIRk jkf'k | E44: ='Dal & Khadhiyan master'!E43 -> 6000 | F44: ='Dal & Khadhiyan master'!G43 -> 6000 | G44: 12000
B45: 2 uke %& | C45: =IF(AND('MASTER DATA'!C38=""),"",'MASTER DATA'!C38) -> Geeta Devi | D45: dqy jkf'k | E45: ='Dal & Khadhiyan master'!E44 -> 8000 | F45: ='Dal & Khadhiyan master'!G44 -> 8000 | G45: 16000
B46: 3 uke %& | C46: =IF(AND('MASTER DATA'!C39=""),"",'MASTER DATA'!C39) ->  | D46: O;; jkf'k | E46: ='Dal & Khadhiyan master'!E45 -> 0 | F46: ='Dal & Khadhiyan master'!G45 -> 0 | G46: 0
B47: 4 uke %& | C47: =IF(AND('MASTER DATA'!C40=""),"",'MASTER DATA'!C40) ->  | D47: 'ks"k jkf'k | E47: ='Dal & Khadhiyan master'!E46 -> 8000 | F47: ='Dal & Khadhiyan master'!G46 -> 8000 | G47: 16000
A48: 18 | B48: vUuiw.kkZ nqX/k ;kstuk lEcfU/kr lwpuk | D48: nw/k ls ykHkkfUor la[;k | E48: ='Milk master'!E7 -> 431 | F48: ='Milk master'!G7 -> 588 | G48: 1019
D49: nw/k dk mi;ksx yhVj esa | E49: ='Milk master'!E8 -> 64.65 | F49: ='Milk master'!G8 -> 117.6 | G49: =SUM(E49,F49) -> 182.25
D50: izkj- 'ks"k jkf'k | E50: ='Milk master'!E9 -> 5000.00 | F50: ='Milk master'!G9 -> 7000.00 | G50: 12000.00
D51: izkIr jkf'k | E51: ='Milk master'!E10 -> 1500.00 | F51: ='Milk master'!G10 -> 2000.00 | G51: 3500.00
D52: dqy jkf'k | E52: ='Milk master'!E11 -> 6500.00 | F52: ='Milk master'!G11 -> 9000.00 | G52: 15500.00
D53: O;; jkf'k | E53: ='Milk master'!E12 -> 2262.75 | F53: ='Milk master'!G12 -> 4116.00 | G53: 6378.75
D54: 'ks"k jkf'k | E54: ='Milk master'!E13 -> 4237.25 | F54: ='Milk master'!G13 -> 4884.00 | G54: 9121.25
B56: uksV %& lHkh dkWye dks lgh ,oa iw.kZ :i ls HkjsaA bldh leLr ftEesnkjh gLrk{kjdrkZ dh gksxhA
B58: =IF(AND('MASTER DATA'!C9=""),"",'MASTER DATA'!C9) -> vtqZuflag | E58: =IF(AND('MASTER DATA'!C7=""),"",'MASTER DATA'!C7) -> feJhyky
A59: iks"kkgkj izHkkjh gLrk{kj e; lhy | E59: laLFkk iz/kku gLrk{kj e; lhy
A60: iks"kkgkj izHkkjh eks-u- %& | C60: =IF(AND('MASTER DATA'!C11=""),"",'MASTER DATA'!C11) -> 9929247228 | D60: laLFkk iz/kku eksckbZy uEcj %& | F60: =IF(AND('MASTER DATA'!C10=""),"",'MASTER DATA'!C10) -> 9929247227

Sheet UC Food
I1: feM&Ms&ehy dk;ZØe
I2: [kk|kUu dk mi;ksfxrk izek.k&i= ¼lesfdr½ ¼fdyksxzke esa½
B3: fo|ky; dk uke %& | D3: =IF(AND('MASTER DATA'!C4=""),"",'MASTER DATA'!C4) -> jk-m-ek-fo- bUnjokM+k | O3: uksMy dsUnz dk uke %& | T3: =IF(AND('MASTER DATA'!C6=""),"",'MASTER DATA'!C6) -> jkmekfo ua- 02 jkuh
K4: izi=&1 | AA4: ekg %& | AC4: =IF(AND('MASTER DATA'!J4=""),"",'MASTER DATA'!J4) -> tqykbZ&2019
A5: Øl | B5: fo|ky; dk uke | C5: ukekadu | E5: ykHkkfoUr Nk=@Nk=k | G5: iwoZ dk 'ks"k [kk|kUu | K5: lIyk;j ls izkIr | O5: tu lg;ksx ;k vU; ls izkIr | S5: dqy miyC/k [kk|kUu | W5: ekg esa mi;ksx | AA5: vU;= O;ofLFkr fd;k x;k [kk|kUu | AE5: 'ks"k [kk|kUu | AI5: dk;Z fnol | AJ5: dqd de gsYij dh la[;k
C6: d{kk 1 ls 5 | D6: d{kk 6 ls 8 | E6: d{kk 1 ls 5 | F6: d{kk 6 ls 8 | G6: d{kk 1 ls 5 | I6: d{kk 6 ls 8 | K6: d{kk 1 ls 5 | M6: d{kk 6 ls 8 | O6: d{kk 1 ls 5 | Q6: d{kk 6 ls 8 | S6: d{kk 1 ls 5 | U6: d{kk 6 ls 8 | W6: d{kk 1 ls 5 | Y6: d{kk 6 ls 8 | AA6: d{kk 1 ls 5 | AC6: d{kk 6 ls 8 | AE6: d{kk 1 ls 5 | AG6: d{kk 6 ls 8
G7: xsagqW | H7: pkoy | I7: xsagqW | J7: pkoy | K7: xsagqW | L7: pkoy | M7: xsagqW | N7: pkoy | O7: xsagqW | P7: pkoy | Q7: xsagqW | R7: pkoy | S7: xsagqW | T7: pkoy | U7: xsagqW | V7: pkoy | W7: xsagqW | X7: pkoy | Y7: xsagqW | Z7: pkoy | AA7: xsagqW | AB7: pkoy | AC7: xsagqW | AD7: pkoy | AE7: xsagqW | AF7: pkoy | AG7: xsagqW | AH7: pkoy
A8: 1 | B8: 2 | C8: 3 | D8: 4 | E8: 5 | F8: 6 | G8: 7 | H8: 8 | I8: 9 | J8: 10 | K8: 11 | L8: 12 | M8: 13 | N8: 14 | O8: 15 | P8: 16 | Q8: 17 | R8: 18 | S8: 19 | T8: 20 | U8: 21 | V8: 22 | W8: 23 | X8: 24 | Y8: 25 | Z8: 26 | AA8: 27 | AB8: 28 | AC8: 29 | AD8: 30 | AE8: 31 | AF8: 32 | AG8: 33 | AH8: 34 | AI8: 35 | AJ8: 36
A9: 1 | B9: ='MASTER DATA'!C4 -> jk-m-ek-fo- bUnjokM+k | C9: ='Praptra-1'!E6 -> 2023 | D9: ='Praptra-1'!F6 -> 1449 | E9: ='Praptra-1'!E7 -> 400 | F9: ='Praptra-1'!F7 -> 416 | G9: ='Praptra-1'!E8 -> 250.000 | H9: ='Praptra-1'!E9 -> 150.000 | I9: ='Praptra-1'!F8 -> 300.000 | J9: ='Praptra-1'!F9 -> 200.000 | K9: ='Praptra-1'!E13 -> 0.000 | L9: ='Praptra-1'!E14 -> 0.000 | M9: ='Praptra-1'!F13 -> 0.000 | N9: ='Praptra-1'!F14 -> 0.000 | O9: ='PS Balance Sheet'!N37 -> 0.000 | P9: ='PS Balance Sheet'!O37 -> 0.000 | Q9: ='UPS balance Sheet'!N37 -> 0.000 | R9: ='UPS balance Sheet'!O37 -> 0.000 | S9: =G9+K9+O9 -> 250.000 | T9: =H9+L9+P9 -> 150.000 | U9: =I9+M9+Q9 -> 300.000 | V9: =J9+N9+R9 -> 200.000 | W9: ='Praptra-1'!E28 -> 31.100 | X9: ='Praptra-1'!E29 -> 8.900 | Y9: ='Praptra-1'!F28 -> 48.450 | Z9: ='Praptra-1'!F29 -> 13.950 | AA9: ='PS Balance Sheet'!S37 -> 0 | AB9: ='PS Balance Sheet'!T37 -> 0 | AC9: ='UPS balance Sheet'!S37 -> 0 | AD9: ='UPS balance Sheet'!T37 -> 0 | AE9: =S9-W9-AA9 -> 218.900 | AF9: =T9-X9-AB9 -> 141.100 | AG9: 251.550 | AH9: 186.050 | AI9: ='Att. Dairy'!I39 -> 4 | AJ9: =COUNTA('MASTER DATA'!C37:D40)-COUNTIF('MASTER DATA'!C37:D40,"0")-COUNTIF('MASTER DATA'!C37:D40,"blank") -> 2
I11: jkf'k dk mi;ksfxrk izek.k&i= ¼lesfdr½ ¼:i;ksa esa½
K12: izi=&2
A13: Øl | B13: fo|ky; dk uke | D13: izkjfEHkd 'ks"k | M13: izkIr jkf'k | S13: dqy izkIr jkf'k | Y13: ekg esa mi;ksx jkf'k | AE13: Hkqxrku i'pkr 'ks"k jkf'k
D14: d{kk 1 ls 5 ¼ $ ;k & ½ | G14: d{kk 6 ls 8 ¼ $ ;k & ½ | J14: d{kk 1 ls 8 ¼ $ ;k & ½ | M14: d{kk 1 ls 5 | O14: d{kk 6 ls 8 | Q14: d{kk 1 ls 8 | S14: d{kk 1 ls 5 | U14: d{kk 6 ls 8 | W14: d{kk 1 ls 8 | Y14: d{kk 1 ls 5 | AA14: d{kk 6 ls 8 | AC14: d{kk 1 ls 8 | AE14: d{kk 1 ls 5 | AG14: d{kk 6 ls 8 | AI14: d{kk 1 ls 8
A16: 1 | B16: 2 | D16: 3 | G16: 4 | J16: 5 | M16: 6 | O16: 7 | Q16: 8 | S16: 9 | U16: 10 | W16: 11 | Y16: 12 | AA16: 13 | AC16: 14 | AE16: 15 | AG16: 16 | AI16: 17
A17: 1 | B17: ='MASTER DATA'!C4 -> jk-m-ek-fo- bUnjokM+k | D17: ='Dal & Khadhiyan master'!E37 -> 10000.00 | G17: ='Dal & Khadhiyan master'!G37 -> 15000.00 | J17: =D17+G17 -> 25000.00 | M17: ='Dal & Khadhiyan master'!E38 -> 15000.00 | O17: ='Dal & Khadhiyan master'!G38 -> 20000.00 | Q17: =M17+O17 -> 35000.00 | S17: =D17+M17 -> 25000.00 | U17: =G17+O17 -> 35000.00 | W17: =J17+Q17 -> 60000.00 | Y17: ='Dal & Khadhiyan master'!E40 -> 1562.20 | AA17: ='Dal & Khadhiyan master'!G40 -> 2425.48 | AC17: =Y17+AA17 -> 3987.68 | AE17: =S17-Y17 -> 23437.80 | AG17: =U17-AA17 -> 32574.52 | AI17: =W17-AC17 -> 56012.32
I19: HkkSfrd izxfr fjiksVZ ¼lesfdr½
K20: izi=&3
A21: Øl | B21: fo|ky; dk uke | D21: fujh{k.k dk fooj.k la[;k | H21: fdpu 'ksM dh fLFkfr | P21: is;ty lqfo/kk ¼gs.MiEi½ | T21: 'kkSpky; gS ;k ugh | X21: vk;ksftr cSBd ,l-,elh- ¼fnuakd ½ | Z21: rjktq gS ;k ugh | AB21: [kk|kUu lqjf{kr j[kus ds crZu la[;k | AD21: jsEi gS ;k ugh | AF21: ekg ds vUr rd dqy [kkyh cksfj;kW dh la[;k | AI21: pkj fnokjh gS ;k ugh
D22: tuizfrfuf/k }kjk | F22: vf/kdkfj;ksa }kjk | H22: Mh-ih-bZ-ih- }kjk | J22: ,l-th-vkj-okbZ }kjk | L22: vkn'kZ jlksbZ?kj | N22: ,e-Mh-,e- ;kstuk }kjk | P22: pkyw | Q22: [kjkc | R22: udkjk | T22: Nk= | V22: Nk=k
H23: iw.kZ | I23: viw.kZ | J23: iw.kZ | K23: viw.kZ | L23: iw.kZ | M23: viw.kZ | N23: iw.kZ | O23: viw.kZ
A24: 1 | B24: 2 | D24: 3 | F24: 4 | H24: 5 | I24: 6 | J24: 7 | K24: 8 | L24: 9 | M24: 10 | N24: 11 | O24: 12 | P24: 13 | Q24: 14 | R24: 15 | T24: 16 | V24: 17 | X24: 18 | Z24: 19 | AB24: 20 | AD24: 21 | AF24: 22 | AI24: 23
A25: 1 | B25: ='MASTER DATA'!C4 -> jk-m-ek-fo- bUnjokM+k | D25: ='MASTER DATA'!C24 -> 0 | F25: ='MASTER DATA'!E24 -> 0 | H25: =IF(AND('MASTER DATA'!AF38='MASTER DATA'!AF28),"ü","") ->  | I25: =IF(AND('MASTER DATA'!AG38='MASTER DATA'!AG28),"ü","") ->  | J25: =IF(AND('MASTER DATA'!AH38='MASTER DATA'!AH28),"ü","") ->  | K25: =IF(AND('MASTER DATA'!AI38='MASTER DATA'!AI28),"ü","") ->  | L25: =IF(AND('MASTER DATA'!AJ38='MASTER DATA'!AJ28),"ü","") -> ü | M25: =IF(AND('MASTER DATA'!AK38='MASTER DATA'!AK28),"ü","") ->  | N25: =IF(AND('MASTER DATA'!AL38='MASTER DATA'!AL28),"ü","") -> ü | O25: =IF(AND('MASTER DATA'!AM38='MASTER DATA'!AM28),"ü","") ->  | P25: =IF(AND('MASTER DATA'!AN38='MASTER DATA'!AN28),"ü","") -> ü | Q25: =IF(AND('MASTER DATA'!AO38='MASTER DATA'!AO28),"ü","") ->  | R25: =IF(AND('MASTER DATA'!AP38='MASTER DATA'!AP28),"ü","") ->  | T25: =IF(AND('MASTER DATA'!AH40='MASTER DATA'!AP28),"ü","") -> ü | V25: =IF(AND('MASTER DATA'!AJ40='MASTER DATA'!AR28),"ü","") -> ü | X25: =IF(AND('MASTER DATA'!D27=""),"",'MASTER DATA'!D27) -> 2019-01-22 | Z25: =IF(AND('MASTER DATA'!AF39='MASTER DATA'!AP28),"YES","NO") -> YES | AB25: =IF(AND('MASTER DATA'!I27=""),"",'MASTER DATA'!I27) -> 5 | AD25: =IF(AND('MASTER DATA'!AH39='MASTER DATA'!AP28),"YES","NO") -> YES | AF25: =IF(AND('MASTER DATA'!P27=""),"",'MASTER DATA'!P27) -> 10 | AI25: =IF(AND('MASTER DATA'!AJ39='MASTER DATA'!AP28),"YES","NO") -> YES
B26: uksV %& lHkh dkWye dks lgh ,oa iw.kZ :i ls HkjsaA bldh leLr ftEesnkjh gLrk{kjdrkZ dh gksxhA
Y27: gLrk{kj iz/kkuk/;kid @ iz/kkukpk;Z @ uksMy izHkkjh

Sheet Milk Report
J1: feM&Ms&ehy ;kstukUrxZr ^^vUuiw.kkZ nw/k ;kstuk^^
J2: nqX/k iks"kkgkj ;kstukUrxZr fiyk;s x;s nw/k ls ykHkkfUorksa dk mi;ksfxrk izek.k&i= ¼lesfdr½
B3: fo|ky; dk uke %& | E3: =IF(AND('MASTER DATA'!C4=""),"",'MASTER DATA'!C4) -> jk-m-ek-fo- bUnjokM+k | Q3: uksMy dsUnz dk uke %& | U3: =IF(AND('MASTER DATA'!C6=""),"",'MASTER DATA'!C6) -> jkmekfo ua- 02 jkuh
L4: izi=&1 | AB4: ekg %& | AD4: =IF(AND('MASTER DATA'!J4=""),"",'MASTER DATA'!J4) -> tqykbZ&2019
A5: Øl | B5: fo|ky; dk uke | D5: nq/k ds dk;Z fnolksa dh la[;k | E5: ukekadu d{kk 1 ls 5 ,oa d{kk 6 ls 8 | N5: nw/k ls ykHkkfoUr fo|kfFkZ;ksa dh la[;k d{kk 1 ls 5 ,oa d{kk 6 ls 8 | T5: Nk=ksa dks fiyk;s x;s nw/k dh ek=k ¼yhVj esa½ d{kk 1 ls 5 ,oa d{kk 6 ls 8 | Z5: fo|ky; ftues ;kstuk dk lapkyu fd;k tk jgk gS esa nw/k Ø; djus ds L=ksr ¼lEcfU/kr fodYi dj fDyd djsa½ | AF5: nw/k miyC/k djkus okyh laLFkk@lewg dk uke ,oa eksckbZy ua- | AJ5: fo- fo
E6: d{kk 1 ls 5 | H6: d{kk 6 ls 8 | K6: d{kk 1 ls 8 | N6: d{kk 1 ls 5 | P6: d{kk 6 ls 8 | R6: d{kk 1 ls 8 | T6: d{kk 1 ls 5 | V6: d{kk 6 ls 8 | X6: d{kk 1 ls 8 | Z6: ljl Ms;jh ¼'kgjh {ks=½ | AA6: iathd`r efgyk nw/k mRiknd lgdkjh lfefr | AB6: vU; iathd`r nw/k mRiknd lg0 lfefr | AC6: efgyk Lo;a lgk;rk lewg | AD6: vU; Lo;a lgk;d lewg | AE6: vU; L=ksr | AF6: laLFkk@ lewg dk uke | AH6: eksckbZy ua-
A8: 1 | B8: 2 | D8: 3 | E8: 4 | H8: 5 | K8: 6 | N8: 7 | P8: 8 | R8: 9 | T8: 10 | V8: 11 | X8: 12 | Z8: 13 | AA8: 14 | AB8: 15 | AC8: 16 | AD8: 17 | AE8: 18 | AF8: 19 | AH8: 20 | AJ8: 21
A9: 1 | B9: =IF(AND('MASTER DATA'!C4=""),"",'MASTER DATA'!C4) -> jk-m-ek-fo- bUnjokM+k | D9: =IF(AND('Att. Dairy'!I42=""),"",'Att. Dairy'!I42) -> 5 | E9: ='PS Balance Sheet'!AE37 -> 2023 | H9: ='UPS balance Sheet'!AE37 -> 1449 | K9: =E9+H9 -> 3472 | N9: ='PS Balance Sheet'!AK37 -> 431 | P9: ='UPS balance Sheet'!AK37 -> 588 | R9: =N9+P9 -> 1019 | T9: ='Milk master'!E8 -> 64.650 | V9: ='Milk master'!G8 -> 117.600 | X9: =T9+V9 -> 182.250 | Z9: =IF(AND('MASTER DATA'!AF42='MASTER DATA'!AP28),"ü","") -> ü | AA9: =IF(AND('MASTER DATA'!AF43='MASTER DATA'!AP28),"ü","") ->  | AB9: =IF(AND('MASTER DATA'!AF44='MASTER DATA'!AP28),"ü","") ->  | AC9: =IF(AND('MASTER DATA'!AG42='MASTER DATA'!AP28),"ü","") ->  | AD9: =IF(AND('MASTER DATA'!AG43='MASTER DATA'!AP28),"ü","") ->  | AE9: =IF(AND('MASTER DATA'!AG44='MASTER DATA'!AP28),"ü","") -> ü | AF9: =IF(AND('Milk master'!E19=""),"",'Milk master'!E19) -> ljl Ms;jh bUnjokM+k | AH9: =IF(AND('Milk master'!E20=""),"",'Milk master'!E20) -> 9922334455
H11: nqX/k iks"kkgkj ;kstukUrxZr izkIr nw/k ,oa jkf'k rFkk mi;ksx dh xbZ jkf'k dk mi;ksfxrk izek.k&i= ¼lesfdr½
L12: izi=&2
A13: Øl | B13: fo|ky; dk uke | D13: nq/k ds dk;Z fnolksa dh la[;k | E13: ukekadu | G13: ykHkkfUor Nk=&Nk=k | I13: 1 ls 8 ds Nk=&Nk=ksa dks nw/k fiykus gsrq Ø;&fd;s x;s nw/k dk fooj.k ¼yhVj esa½ | O13: Nk=&Nk=ksa dks forj.k fd;s x;s nw/k dh izkIr o forj.k jkf'k dk fooj.k | AD13: nw/k miyC/krk okyh laLFkk@lewg dks Hkqxrku dh xbZ | AG13: laLFkk iz/kku dk uke ,o aeksckbZy ua- | AK13: fo- fo-
E14: d{kk 1 ls 5 | F14: d{kk 6 ls 8 | G14: d{kk 1 ls 5 | H14: d{kk 6 ls 8 | I14: Ø; fd;s x;s nw/k dk ewY; | K14: Ø; fd;s x;s nw/k dh ek=k | M14: mi;ksx fy;s x;s nw/k dh ek=k | O14: iwoZ dh 'ks"k jkf'k | R14: ekg esa dqy izkIr jkf'k | U14: dqy miyC/k izkIr jkf'k | X14: ekg esa mi;ksx yh xbZ jkf'k | AA14: 'ks"k jkf'k | AD14: Hkqxrku dh xbZ jkf'k | AE14: pSd @ vkjVhth,l la[;k ,oa fnukad | AG14: laLFkk iz/kku dk uke | AI14: eksckbZy ua-
O15: PS | P15: UPS | Q15: Total | R15: PS | S15: UPS | T15: Total | U15: PS | V15: UPS | W15: Total | X15: PS | Y15: UPS | Z15: Total | AA15: PS | AB15: UPS | AC15: Total
A16: 1 | B16: 2 | D16: 3 | E16: 4 | F16: 5 | G16: 6 | H16: 7 | I16: 8 | K16: 9 | M16: 10 | O16: 11 | P16: 12 | Q16: 13 | R16: 14 | S16: 15 | T16: 16 | U16: 17 | V16: 18 | W16: 19 | X16: 20 | Y16: 21 | Z16: 22 | AA16: 23 | AB16: 24 | AC16: 25 | AD16: 26 | AE16: 27 | AG16: 28 | AI16: 29 | AK16: 30
A17: 1 | B17: =IF(AND('MASTER DATA'!C4=""),"",'MASTER DATA'!C4) -> jk-m-ek-fo- bUnjokM+k | D17: =IF(AND('Att. Dairy'!I42=""),"",'Att. Dairy'!I42) -> 5 | E17: ='PS Balance Sheet'!AE37 -> 2023 | F17: ='UPS balance Sheet'!AE37 -> 1449 | G17: ='PS Balance Sheet'!AH37 -> 400 | H17: ='UPS balance Sheet'!AH37 -> 416 | I17: ='Milk master'!E12+'Milk master'!G12 -> 6378.75 | K17: ='Milk master'!E8+'Milk master'!G8 -> 182.25 | M17: =K17 -> 182.25 | O17: ='Milk master'!E9 -> 5000 | P17: ='Milk master'!G9 -> 7000 | Q17: =O17+P17 -> 12000 | R17: ='Milk master'!E10 -> 1500 | S17: ='Milk master'!G10 -> 2000 | T17: =R17+S17 -> 3500 | U17: =O17+R17 -> 6500 | V17: =P17+S17 -> 9000 | W17: =Q17+T17 -> 15500 | X17: ='Milk master'!E12 -> 2262.75 | Y17: ='Milk master'!G12 -> 4116.00 | Z17: =X17+Y17 -> 6378.75 | AA17: ='Milk master'!E13 -> 4237.25 | AB17: ='Milk master'!G13 -> 4884.00 | AC17: =AA17+AB17 -> 9121.25 | AD17: =IF(AND('Milk master'!E21=""),"",'Milk master'!E21) -> 20000 | AE17: =IF(AND('Milk master'!E22=""),"",'Milk master'!E22) -> RMGB123456 | AF17: =IF(AND('Milk master'!E23=""),"",'Milk master'!E23) -> 2019-02-03 | AG17: =IF(AND('MASTER DATA'!C7=""),"",'MASTER DATA'!C7) -> feJhyky | AI17: =IF(AND('MASTER DATA'!C10=""),"",'MASTER DATA'!C10) -> 9929247227
B18: uksV %& lHkh dkWye dks lgh ,oa iw.kZ :i ls HkjsaA bldh leLr ftEesnkjh gLrk{kjdrkZ dh gksxhA
B19: 'kgjh {ks= ds fo|ky;ksa esa mPp xq.koRrkiw.kZ ik'P;wjhd`r VkasM feYd ^^ljl Ms;jh cwFk^^ ls gh nw/k Ø; fd;k tk jgk gSA | Y19: gLrk{kj e; lhy iz/kkuk/;kid@iz/kkukpk;Z@uksMy izHkkjh@ikbZbZvks

Sheet Dal Report
C1: feM&Ms&ehy dk;ZØe
C2: nky dk mi;ksfxrk izek.k&i= ¼lesfdr½
B3: fo|ky; dk uke %& | D3: =IF(AND('MASTER DATA'!C4=""),"",'MASTER DATA'!C4) -> jk-m-ek-fo- bUnjokM+k | U3: uksMy dsUnz dk uke %& | AA3: =IF(AND('MASTER DATA'!C6=""),"",'MASTER DATA'!C6) -> jkmekfo ua- 02 jkuh
M4: izi=&4 | AH4: ekg %& | AK4: =IF(AND('MASTER DATA'!J4=""),"",'MASTER DATA'!J4) -> tqykbZ&2019
A5: Øl | B5: fo|ky; dk uke | C5: ukekadu | E5: ykHkkfoUr Nk=@Nk=k | G5: izkjfEHkd 'ks"k nky | M5: lIyk;j ls izkIr nky | S5: LFkkuh; Lrj ij ¼m/kkj@tulg;ksx½ $ ;k & | Y5: dqy miyC/k nky | AE5: ekg esa nky mi;ksx | AK5: 'ks"k nky
C6: d{kk 1 ls 5 | D6: d{kk 6 ls 8 | E6: d{kk 1 ls 5 | F6: d{kk 6 ls 8 | G6: d{kk 1 ls 5 | J6: d{kk 6 ls 8 | M6: d{kk 1 ls 5 | P6: d{kk 6 ls 8 | S6: d{kk 1 ls 5 | V6: d{kk 6 ls 8 | Y6: d{kk 1 ls 5 | AB6: d{kk 6 ls 8 | AE6: d{kk 1 ls 5 | AH6: d{kk 6 ls 8 | AK6: d{kk 1 ls 5 | AN6: d{kk 6 ls 8
G7: ewax | H7: mMn | I7: puk | J7: ewax | K7: mMn | L7: puk | M7: ewax | N7: mMn | O7: puk | P7: ewax | Q7: mMn | R7: puk | S7: ewax | T7: mMn | U7: puk | V7: ewax | W7: mMn | X7: puk | Y7: ewax | Z7: mMn | AA7: puk | AB7: ewax | AC7: mMn | AD7: puk | AE7: ewax | AF7: mMn | AG7: puk | AH7: ewax | AI7: mMn | AJ7: puk | AK7: ewax | AL7: mMn | AM7: puk | AN7: ewax | AO7: mMn | AP7: puk
A8: 1 | B8: 2 | C8: 3 | D8: 4 | E8: 5 | F8: 6 | G8: 7 | H8: 8 | I8: 9 | J8: 10 | K8: 11 | L8: 12 | M8: 13 | N8: 14 | O8: 15 | P8: 16 | Q8: 17 | R8: 18 | S8: 19 | T8: 20 | U8: 21 | V8: 22 | W8: 23 | X8: 24 | Y8: 25 | Z8: 26 | AA8: 27 | AB8: 28 | AC8: 29 | AD8: 30 | AE8: 31 | AF8: 32 | AG8: 33 | AH8: 34 | AI8: 35 | AJ8: 36 | AK8: 37 | AL8: 38 | AM8: 39 | AN8: 40 | AO8: 41 | AP8: 42
A9: 1 | B9: =IF(AND('MASTER DATA'!C4=""),"",'MASTER DATA'!C4) -> jk-m-ek-fo- bUnjokM+k | C9: ='PS Balance Sheet'!AE37 -> 2023 | D9: ='UPS balance Sheet'!AE37 -> 1449 | E9: ='PS Balance Sheet'!AH37 -> 400 | F9: ='UPS balance Sheet'!AH37 -> 416 | G9: ='Dal & Khadhiyan master'!E9 -> 40.000 | H9: ='Dal & Khadhiyan master'!E10 -> 20.000 | I9: ='Dal & Khadhiyan master'!E11 -> 20.000 | J9: ='Dal & Khadhiyan master'!G9 -> 60.000 | K9: ='Dal & Khadhiyan master'!G10 -> 30.000 | L9: ='Dal & Khadhiyan master'!G11 -> 30.000 | M9: ='Dal & Khadhiyan master'!E14 -> 0.000 | N9: ='Dal & Khadhiyan master'!E15 -> 0.000 | O9: ='Dal & Khadhiyan master'!E16 -> 0.000 | P9: ='Dal & Khadhiyan master'!G14 -> 0.000 | Q9: ='Dal & Khadhiyan master'!G15 -> 0.000 | R9: ='Dal & Khadhiyan master'!G16 -> 0.000 | S9: ='Dal & Khadhiyan master'!E19 -> 0.000 | T9: ='Dal & Khadhiyan master'!E20 -> 0.000 | U9: ='Dal & Khadhiyan master'!E21 -> 0.000 | V9: ='Dal & Khadhiyan master'!G19 -> 0.000 | W9: ='Dal & Khadhiyan master'!G20 -> 0.000 | X9: ='Dal & Khadhiyan master'!G21 -> 0.000 | Y9: =G9+M9+S9 -> 40.000 | Z9: =H9+N9+T9 -> 20.000 | AA9: 20.000 | AB9: 60.000 | AC9: 30.000 | AD9: =L9+R9+X9 -> 30.000 | AE9: ='Dal & Khadhiyan master'!E29 -> 1.400 | AF9: ='Dal & Khadhiyan master'!E30 -> 0.700 | AG9: ='Dal & Khadhiyan master'!E31 -> 0.700 | AH9: ='Dal & Khadhiyan master'!G29 -> 2.220 | AI9: ='Dal & Khadhiyan master'!G30 -> 1.110 | AJ9: ='Dal & Khadhiyan master'!G31 -> 1.110 | AK9: =Y9-AE9 -> 38.600 | AL9: =Z9-AF9 -> 19.300 | AM9: 19.300 | AN9: 57.780 | AO9: 28.890 | AP9: 28.890
B11: uksV %& lHkh dkWye dks lgh ,oa iw.kZ :i ls HkjsaA bldh leLr ftEesnkjh gLrk{kjdrkZ dh gksxhA
AH12: gLrk{kj iz/kkuk/;kid @ iz/kkukpk;Z @ uksMy izHkkjh

Sheet New UC Dak
A1: jk"Vªh; iks"kkgkj lgk;rk dk;ZØe (Mid Day Meal)
I2: fo|ky; ekfld lwpuk l=%& | O2: =CONCATENATE('MASTER DATA'!F4,"-",'MASTER DATA'!H4) -> 2019-20
H3: izi= & 1
A4: fo|ky; dk uke %& | F4: =IF(AND('MASTER DATA'!C4=""),"",'MASTER DATA'!C4) -> jk-m-ek-fo- bUnjokM+k | P4: MkbZl dksM ua- %& | S4: =IF(AND('MASTER DATA'!C12=""),"",'MASTER DATA'!C12) -> 8200303101
A5: ihbZbZvks@uksMy dk uke %& | F5: =IF(AND('MASTER DATA'!C6=""),"",'MASTER DATA'!C6) -> jkmekfo ua- 02 jkuh | P5: CykWd dk uke %& | S5: =IF(AND('MASTER DATA'!C16=""),"",'MASTER DATA'!C16) -> jkuh
A6: xzke iapk;r dk uke %& | F6: =IF(AND('MASTER DATA'!C15=""),"",'MASTER DATA'!C15) -> bUnjokM+k | P6: ekg@o"kZ %& | S6: =IF(AND('MASTER DATA'!J4=""),"",'MASTER DATA'!J4) -> tqykbZ&2019
A7: tkod Øekad la[;k %& | P7: fnukad %& | S7: =TODAY() -> 2019-07-28
H8: 1- fo|ky; fooj.k
A9: fo|ky; dk izdkj %& | F9: =IF(AND('MASTER DATA'!C17=""),"",'MASTER DATA'!C17) -> Government | P9: {ks= %& | S9: =IF(AND('MASTER DATA'!C18=""),"",'MASTER DATA'!C18) -> Rural
A10: ukekadu | B10: izkFkfed | L10: Grant Total | M10: mPp izkFkfed | W10: Grant Total | AI10: TRUE
B11: SC | D11: ST | F11: OBC | H11: GEN | J11: TOTAL | M11: SC | O11: ST | Q11: OBC | S11: GEN | U11: TOTAL
B12: B | C12: G | D12: B | E12: G | F12: B | G12: G | H12: B | I12: G | J12: B | K12: G | M12: B | N12: G | O12: B | P12: G | Q12: B | R12: G | S12: B | T12: G | U12: B | V12: G
B13: ='MASTER DATA'!F15 -> 33 | C13: ='MASTER DATA'!G15 -> 40 | D13: ='MASTER DATA'!H15 -> 33 | E13: ='MASTER DATA'!I15 -> 31 | F13: ='MASTER DATA'!J15 -> 44 | G13: ='MASTER DATA'!K15 -> 46 | H13: ='MASTER DATA'!L15 -> 34 | I13: ='MASTER DATA'!M15 -> 28 | J13: ='MASTER DATA'!N15 -> 144 | K13: ='MASTER DATA'!O15 -> 145 | L13: ='MASTER DATA'!P15 -> 289 | M13: ='MASTER DATA'!F19 -> 28 | N13: ='MASTER DATA'!G19 -> 27 | O13: ='MASTER DATA'!H19 -> 24 | P13: ='MASTER DATA'!I19 -> 33 | Q13: ='MASTER DATA'!J19 -> 22 | R13: ='MASTER DATA'!K19 -> 22 | S13: ='MASTER DATA'!L19 -> 22 | T13: ='MASTER DATA'!M19 -> 29 | U13: ='MASTER DATA'!N19 -> 96 | V13: ='MASTER DATA'!O19 -> 111 | W13: ='MASTER DATA'!P19 -> 207
H14: 2- cSad [kkrk fooj.k
A15: cSad dk uke e; 'kk[kk | K15: vkbZ,Q,llh dksM ua- | R15: [kkrk la[;k
A16: SBI SOMESAR | K16: SBIN0033382 | R16: 51022334455
H17: 3- dqd de gsYij fooj.k
A18: Ø-l- | C18: dqd de gsYij dk uke | M18: fyax | P18: oxZ | S18: ns; jkf'k dk izdkj | V18: jkf'k
A19: 1 | C19: =IF(AND('MASTER DATA'!C37=""),"",'MASTER DATA'!C37) -> Dhagalai Devi | M19: =IF(AND(C19=""),"",IF(AND('MASTER DATA'!AF32="TRUE"),"MALE","FEMALE")) -> FEMALE | P19: =IF(AND(C19=""),"",IF(AND('MASTER DATA'!AH32=AI$10),"GEN",IF(AND('MASTER DATA'!AI32=AI$10),"OBC",IF(AND('MASTER DATA'!AJ32=AI$10),"SC",IF(AND('MASTER DATA'!AK32=AI$10),"ST"))))) -> OBC | S19: =IF(AND(C19=""),"",IF(AND('MASTER DATA'!AL32=AI$10),"By Cheque","By Cash")) -> By Cheque | V19: =IF(AND(C19=""),"",IF(AND('MASTER DATA'!P37=""),"",'MASTER DATA'!P37)) -> 1320
A20: 2 | C20: =IF(AND('MASTER DATA'!C38=""),"",'MASTER DATA'!C38) -> Geeta Devi | M20: =IF(AND(C20=""),"",IF(AND('MASTER DATA'!AF33="TRUE"),"MALE","FEMALE")) -> FEMALE | P20: =IF(AND(C20=""),"",IF(AND('MASTER DATA'!AH33=AI$10),"GEN",IF(AND('MASTER DATA'!AI33=AI$10),"OBC",IF(AND('MASTER DATA'!AJ33=AI$10),"SC",IF(AND('MASTER DATA'!AK33=AI$10),"ST"))))) -> GEN | S20: =IF(AND(C20=""),"",IF(AND('MASTER DATA'!AL33=AI$10),"By Cheque","By Cash")) -> By Cheque | V20: =IF(AND(C20=""),"",IF(AND('MASTER DATA'!P38=""),"",'MASTER DATA'!P38)) -> 1320
A21: 3 | C21: =IF(AND('MASTER DATA'!C39=""),"",'MASTER DATA'!C39) ->  | M21: =IF(AND(C21=""),"",IF(AND('MASTER DATA'!AF34="TRUE"),"MALE","FEMALE")) ->  | P21: =IF(AND(C21=""),"",IF(AND('MASTER DATA'!AH34=AI$10),"GEN",IF(AND('MASTER DATA'!AI34=AI$10),"OBC",IF(AND('MASTER DATA'!AJ34=AI$10),"SC",IF(AND('MASTER DATA'!AK34=AI$10),"ST"))))) ->  | S21: =IF(AND(C21=""),"",IF(AND('MASTER DATA'!AL34=AI$10),"By Cheque","By Cash")) ->  | V21: =IF(AND(C21=""),"",IF(AND('MASTER DATA'!P39=""),"",'MASTER DATA'!P39)) -> 
A22: 4 | C22: =IF(AND('MASTER DATA'!C40=""),"",'MASTER DATA'!C40) ->  | M22: =IF(AND(C22=""),"",IF(AND('MASTER DATA'!AF35="TRUE"),"MALE","FEMALE")) ->  | P22: =IF(AND(C22=""),"",IF(AND('MASTER DATA'!AH35=AI$10),"GEN",IF(AND('MASTER DATA'!AI35=AI$10),"OBC",IF(AND('MASTER DATA'!AJ35=AI$10),"SC",IF(AND('MASTER DATA'!AK35=AI$10),"ST"))))) ->  | S22: =IF(AND(C22=""),"",IF(AND('MASTER DATA'!AL35=AI$10),"By Cheque","By Cash")) ->  | V22: =IF(AND(C22=""),"",IF(AND('MASTER DATA'!P40=""),"",'MASTER DATA'!P40)) -> 
H23: 4- bl ekg esa fo|ky; dk fujh{k.k
A24: Ø-l- | C24: vf/kdkjh dk fooj.k | M24: gkW ;k ugh | P24: fnukad | S24: vf/kdkjh dk uke
A25: 1 | C25: l?ku fujh{k.k Vhe }kjk
A26: 2 | C26: ftyk Lrjh; Lrjh; vf/kdkjh }kjk
A27: 3 | C27: CykWd@rgfly Lrjh; Lrjh; vf/kdkjh }kjk
A28: 4 | C28: ihbZbZvks@iapk;r Lrjh; Lrjh; vf/kdkjh }kjk
A29: 5 | C29: ,l-Mh-,e-lh-@,l-,e-lh- ds lnL; }kjk
D30: 5- bl ekg esa ?kfVr dksbZ feM Ms fey lEcfU/kr ?kVuk ;k f'kdk;r dk fooj.k ¼;fn dksbZ gks½
A31: Ø-l- | C31: f'kdk;r la[;k | H31: ?kVuk dk fooj.k
A32: 1
H33: 6- [kk|kUu dh tkudkjh ¼fdyksxzke esa½
A34: [kk|kUu dk izdkj | C34: izkFkfed Lrj ij 100 xzke izfr fo|kFkhZ | M34: mPp izkFkfed Lrj ij 150 xzke izfr fo|kFkhZ
C35: izkjfEHkd 'ks"k | E35: bl ekg esa izkIr | G35: dqy | I35: bl ekg esa [kpZ | K35: vfUre 'ks"k [kk|kUu | M35: izkjfEHkd 'ks"k | O35: bl ekg esa izkIr | Q35: dqy | S35: bl ekg esa [kpZ | U35: vfUre 'ks"k [kk|kUu
A36: xsgwW | C36: ='Dal & Khadhiyan master'!E7 -> 250.00 | E36: ='Praptra-1'!E13+'Praptra-1'!E18 -> 0.00 | G36: =C36+E36 -> 250.00 | I36: ='PS Balance Sheet'!AL37 -> 31.10 | K36: =G36-I36 -> 218.90 | M36: ='Praptra-1'!F8 -> 300.00 | O36: ='Praptra-1'!F13+'Praptra-1'!F18 -> 0.00 | Q36: =M36+O36 -> 300.00 | S36: ='UPS balance Sheet'!AL37 -> 48.45 | U36: =Q36-S36 -> 251.55
A37: pkoy | C37: ='Dal & Khadhiyan master'!E8 -> 150.00 | E37: ='Praptra-1'!E14+'Praptra-1'!E19 -> 0.00 | G37: =C37+E37 -> 150.00 | I37: ='PS Balance Sheet'!AM37 -> 8.90 | K37: =G37-I37 -> 141.10 | M37: ='Praptra-1'!F9 -> 200.00 | O37: ='Praptra-1'!G14+'Praptra-1'!F19 -> 0.00 | Q37: =M37+O37 -> 200.00 | S37: ='UPS balance Sheet'!AM37 -> 13.95 | U37: =Q37-S37 -> 186.05
A38: ;ksx | C38: =C36+C37 -> 400.00 | E38: =E36+E37 -> 0.00 | G38: =G36+G37 -> 400.00 | I38: =I36+I37 -> 40.00 | K38: =K36+K37 -> 360.00 | M38: =M36+M37 -> 500.00 | O38: =O36+O37 -> 0.00 | Q38: =Q36+Q37 -> 500.00 | S38: =S36+S37 -> 62.40 | U38: =U36+U37 -> 437.60
H39: 7- nkyksa dh tkudkjh ¼fdyksxzke esa½
A40: nky dk izdkj | C40: izkFkfed Lrj ij 20 xzke izfr fo|kFkhZ | M40: mPp izkFkfed Lrj ij 30 xzke izfr fo|kFkhZ
C41: izkjfEHkd 'ks"k | E41: bl ekg esa izkIr | G41: dqy | I41: bl ekg esa [kpZ | K41: vfUre 'ks"k | M41: izkjfEHkd 'ks"k | O41: bl ekg esa izkIr | Q41: dqy | S41: bl ekg esa [kpZ | U41: vfUre 'ks"k
A42: ewax | C42: ='Praptra-1'!E10 -> 40.000 | E42: ='Praptra-1'!E15+'Praptra-1'!E20 -> 0.000 | G42: =C42+E42 -> 40.000 | I42: ='PS Balance Sheet'!AN37 -> 1.400 | K42: =G42-I42 -> 38.600 | M42: ='Praptra-1'!F10 -> 60.000 | O42: ='Praptra-1'!F15+'Praptra-1'!F20 -> 0.000 | Q42: =M42+O42 -> 60.000 | S42: ='UPS balance Sheet'!AN37 -> 2.220 | U42: =Q42-S42 -> 57.780
A43: mM+n | C43: ='Praptra-1'!E11 -> 20.000 | E43: ='Praptra-1'!E16+'Praptra-1'!E21 -> 0.000 | G43: =C43+E43 -> 20.000 | I43: ='PS Balance Sheet'!AO37 -> 0.7 | K43: =G43-I43 -> 19.300 | M43: ='Praptra-1'!F11 -> 30.000 | O43: ='Praptra-1'!F16+'Praptra-1'!F21 -> 0.000 | Q43: =M43+O43 -> 30.000 | S43: ='UPS balance Sheet'!AO37 -> 1.110 | U43: =Q43-S43 -> 28.890
A44: puk | C44: ='Praptra-1'!E12 -> 20.000 | E44: ='Praptra-1'!E17+'Praptra-1'!E22 -> 0.000 | G44: 20.000 | I44: ='PS Balance Sheet'!AP37 -> 0.7 | K44: 19.300 | M44: ='Praptra-1'!F12 -> 30.000 | O44: ='Praptra-1'!F17+'Praptra-1'!F22 -> 0.000 | Q44: 30.000 | S44: ='UPS balance Sheet'!AP37 -> 1.110 | U44: 28.890
A45: ;ksx | C45: =C42+C43+C44 -> 80.000 | E45: =E42+E43+E44 -> 0.000 | G45: =G42+G43+G44 -> 80.000 | I45: =I42+I43+I44 -> 2.800 | K45: =K42+K43+K44 -> 77.200 | M45: =M42+M43+M44 -> 120.000 | O45: =O42+O43+O44 -> 0.000 | Q45: =Q42+Q43+Q44 -> 120.000 | S45: =S42+S43+S44 -> 4.440 | U45: =U42+U43+U44 -> 115.560
G46: 8- Hkkstu idkusa esa O;; dh jkf'k dh tkudkjh ¼:Ik;ksa esa½
A47: dqfdax dUotZu jkf'k | C47: nky ds fnu Hkkstu cukusa esa O;; jkf'k | M47: fcuk nky ds fnu Hkkstu cukusa esa O;; jkf'k
C48: izkFkfed | G48: mPp izkFkfrd | J48: dqy jkf'k | M48: izkFkfed | Q48: mPp izkFkfrd | T48: dqy jkf'k
C49: =CONCATENATE("RS","-"," ",'MASTER DATA'!$C$32," ","@ Unit") -> RS- 3.08 @ Unit | G49: =CONCATENATE("RS","-"," ",'MASTER DATA'!$C$33," ","@ Unit") -> RS- 4.6 @ Unit | M49: =CONCATENATE("RS","-"," ",'MASTER DATA'!D32," ","@ Unit") -> RS- 4.35 @ Unit | Q49: =CONCATENATE("RS","-"," ",'MASTER DATA'!$D$33," ","@ Unit") -> RS- 6.51 @ Unit
C50: ='PS Balance Sheet'!BK37 -> 431.20 | G50: ='PS Balance Sheet'!AV37-'New UC Dak'!C50 -> 1131.00 | J50: =C50+G50 -> 1562.20 | M50: ='UPS balance Sheet'!BJ37 -> 680.8 | Q50: ='UPS balance Sheet'!AV37-'New UC Dak'!M50 -> 1744.68 | T50: =M50+Q50 -> 2425.48
C51: izkFkfed | M51: mPp izkFkfed
C52: izkjfEHkd 'ks"k | E52: bl ekg esa izkIr jkf'k | G52: dqy jkf'k | I52: bl ekg esa [kpZ jkf'k | K52: vfUre 'ks"k | M52: izkjfEHkd 'ks"k | O52: bl ekg esa izkIr jkf'k | Q52: dqy jkf'k | S52: bl ekg esa [kpZ jkf'k | U52: vfUre 'ks"k
C53: ='Praptra-1'!E38 -> 10000.00 | E53: ='Praptra-1'!E39 -> 15000.00 | G53: ='Praptra-1'!E40 -> 25000.00 | I53: ='PS Balance Sheet'!AV37 -> 1562.20 | K53: =G53-I53 -> 23437.80 | M53: ='Praptra-1'!F38 -> 15000.00 | O53: ='Praptra-1'!F39 -> 20000.00 | Q53: ='Praptra-1'!F40 -> 35000.00 | S53: ='UPS balance Sheet'!AV37 -> 2425.48 | U53: =Q53-S53 -> 32574.52
F55: 9- vUuiw.kkZ nwX/k ;kstuk dh tkudkjh ¼ek=k o jkf'k :Ik;ksa esa½
A56: nwX/k dh jkf'k o ek=k | C56: izkFkfed Lrj ¼ek=k 150 xzke izfr fo|kFkhZ½ | M56: mPp izkFkfed Lrj ¼ek=k 200 xzke izfr fo|kFkhZ½
C57: dqy ykHkkfUor fo|kFkhZ | G57: dqy nwX/k dh ek=k | J57: nwX/k dh nj izfr fo|kFkhZ | M57: dqy ykHkkfUor fo|kFkhZ | Q57: dqy nwX/k dh ek=k | T57: nwX/k dh nj izfr fo|kFkhZ
C60: izkjfEHkd 'ks"k | E60: bl ekg esa izkIr jkf'k | G60: dqy jkf'k | I60: bl ekg esa [kpZ jkf'k | K60: vfUre 'ks"k | M60: izkjfEHkd 'ks"k | O60: bl ekg esa izkIr jkf'k | Q60: dqy jkf'k | S60: bl ekg esa [kpZ jkf'k | U60: vfUre 'ks"k
C61: ='Praptra-1'!E50 -> 5000.00 | E61: ='Praptra-1'!E51 -> 1500.00 | G61: ='Praptra-1'!E52 -> 6500.00 | I61: ='PS Balance Sheet'!AW37 -> 2262.75 | K61: =G61-I61 -> 4237.25 | M61: ='Praptra-1'!F50 -> 7000.00 | O61: ='Praptra-1'!F51 -> 2000.00 | Q61: ='Praptra-1'!F52 -> 9000.00 | S61: ='UPS balance Sheet'!AW37 -> 4116.00 | U61: =Q61-S61 -> 4884.00
H62: 10- dqd de gsYij dh jkf'k dk fooj.k
A63: izkjfEHkd 'ks"k | F63: bl ekg esa izkIr jkf'k | K63: bl ekg esa [kpZ jkf'k | R63: vfUre 'ks"k
A64: ='Praptra-1'!G43 -> 4000 | F64: ='Praptra-1'!G44 -> 12000 | K64: ='Praptra-1'!G46 -> 0 | R64: =A64+F64-K64 -> 16000
H65: 11- ,e-,e-bZ jkf'k dk fooj.k
A66: izkjfEHkd 'ks"k | F66: bl ekg esa izkIr jkf'k | K66: bl ekg esa [kpZ jkf'k | R66: vfUre 'ks"k
R67: =A67+F67-K67 -> 0
B70: =IF(AND('MASTER DATA'!C9=""),"",'MASTER DATA'!C9) -> vtqZuflag | O70: =IF(AND('MASTER DATA'!C7=""),"",'MASTER DATA'!C7) -> feJhyky
A71: iks"kkgkj izHkkjh gLrk{kj e; lhy | O71: laLFkk iz/kku gLrk{kj e; lhy
A72: iks"kkgkj izHkkjh eks-u- %& | F72: =IF(AND('MASTER DATA'!C11=""),"",'MASTER DATA'!C11) -> 9929247228 | N72: laLFkk iz/kku eksckbZy uEcj %& | T72: =IF(AND('MASTER DATA'!C10=""),"",'MASTER DATA'!C10) -> 9929247227

Sheet Stock
C2: QqzV~l ds fy, fuf'pr okj dks forfjr djds otu fdyksxzke esa fu;r~ rkjh[k ds lkeusa fy[ksa ;g dkWye vuykWd ¼lQsn dyj esa½ gSa H ↓
C5: izfrfnu jk'ku lQykbZ dh ek=k | M5: izkFkfed d{kk gsrq
A7: fnukad | B7: okj | C7: dqy ykHkkfUor | D7: xsagq | E7: pkoy | F7: nky | G7: lCth | H7: rsy | I7: fephZ | J7: /kfu;k | K7: gYnh | L7: thjk | M7: ued | N7: ÝqV | O7: Gas
A8: izkjfEHkd 'ks"k | D8: ='Dal & Khadhiyan master'!E7 -> 250.000 | E8: ='Dal & Khadhiyan master'!E8 -> 150.000 | F8: ='Dal & Khadhiyan master'!E9+'Dal & Khadhiyan master'!E10+'Dal & Khadhiyan master'!E11 -> 80.000 | G8: 45.000 | H8: 15.000 | I8: 3.000 | J8: 2.000 | K8: 2.000 | L8: 1.000 | M8: 3.000 | O8: 30 | P8: KG
A9: ='Att. Dairy'!B6 -> 2019-07-01 | B9: ='Att. Dairy'!D6 -> Monday | C9: ='PS Balance Sheet'!AH6 -> 51 | D9: =D8-'PS Balance Sheet'!AL6 -> 244.900 | E9: =E8-'PS Balance Sheet'!AM6 -> 150.000 | F9: =F8-('PS Balance Sheet'!AN6+'PS Balance Sheet'!AO6+'PS Balance Sheet'!AP6) -> 78.980 | G9: =G8-IF(AND($B9="monday"),C9*0.05,IF(AND($B9="thursday"),C9*0.025,IF(AND($B9="saturday"),C9*0.05,"0"))) -> 42.450 | H9: =H8-IF(AND(C9=""),"",C9*0.005) -> 14.745 | I9: =I8-IF(AND(C9=""),"",C9*0.0015) -> 2.9235 | J9: =J8-IF(AND(C9=""),"",C9*0.0015) -> 1.9235 | K9: =K8-IF(AND(C9=""),"",C9*0.0005) -> 1.9745 | L9: =L8-IF(AND(C9=""),"",C9*0.0005) -> 0.9745 | M9: =M8-IF(AND(C9=""),"",C9*0.0015) -> 2.9235 | O9: =O8-IF(AND($O$7="Fire Woods"),C9*0.2,IF(AND($O$7="Gas"),C9*0.02,"")) -> 28.980
A10: ='Att. Dairy'!B7 -> 2019-07-02 | B10: ='Att. Dairy'!D7 -> Tuesday | C10: ='PS Balance Sheet'!AH7 -> 0 | D10: =D9-'PS Balance Sheet'!AL7 -> 244.900 | E10: =E9-'PS Balance Sheet'!AM7 -> 150.000 | F10: =F9-('PS Balance Sheet'!AN7+'PS Balance Sheet'!AO7+'PS Balance Sheet'!AP7) -> 78.980 | G10: =G9-IF(AND($B10="monday"),C10*0.05,IF(AND($B10="thursday"),C10*0.025,IF(AND($B10="saturday"),C10*0.05,"0"))) -> 42.450 | H10: =H9-IF(AND(C10=""),"",C10*0.005) -> 14.745 | I10: =I9-IF(AND(C10=""),"",C10*0.0015) -> 2.9235 | J10: =J9-IF(AND(C10=""),"",C10*0.0015) -> 1.9235 | K10: =K9-IF(AND(C10=""),"",C10*0.0005) -> 1.9745 | L10: =L9-IF(AND(C10=""),"",C10*0.0005) -> 0.9745 | M10: =M9-IF(AND(C10=""),"",C10*0.0015) -> 2.9235 | O10: =O9-IF(AND($O$7="Fire Woods"),C10*0.2,IF(AND($O$7="Gas"),C10*0.02,"")) -> 28.980
A11: ='Att. Dairy'!B8 -> 2019-07-03 | B11: ='Att. Dairy'!D8 -> Wednesday | C11: ='PS Balance Sheet'!AH8 -> 0 | D11: =D10-'PS Balance Sheet'!AL8 -> 244.900 | E11: =E10-'PS Balance Sheet'!AM8 -> 150.000 | F11: =F10-('PS Balance Sheet'!AN8+'PS Balance Sheet'!AO8+'PS Balance Sheet'!AP8) -> 78.980 | G11: 42.450 | H11: 14.745 | I11: 2.9235 | J11: 1.9235 | K11: 1.9745 | L11: 0.9745 | M11: 2.9235 | O11: 28.980 | BX11: Fire Woods
A12: ='Att. Dairy'!B9 -> 2019-07-04 | B12: ='Att. Dairy'!D9 -> Thursday | C12: ='PS Balance Sheet'!AH9 -> 89 | D12: =D11-'PS Balance Sheet'!AL9 -> 244.900 | E12: =E11-'PS Balance Sheet'!AM9 -> 141.100 | F12: =F11-('PS Balance Sheet'!AN9+'PS Balance Sheet'!AO9+'PS Balance Sheet'!AP9) -> 77.200 | G12: 40.225 | H12: 14.300 | I12: 2.79 | J12: 1.79 | K12: 1.93 | L12: 0.93 | M12: 2.79 | O12: 27.200 | BX12: Gas
A13: ='Att. Dairy'!B10 -> 2019-07-05 | B13: ='Att. Dairy'!D10 -> Friday | C13: ='PS Balance Sheet'!AH10 -> 0 | D13: =D12-'PS Balance Sheet'!AL10 -> 244.900 | E13: =E12-'PS Balance Sheet'!AM10 -> 141.100 | F13: =F12-('PS Balance Sheet'!AN10+'PS Balance Sheet'!AO10+'PS Balance Sheet'!AP10) -> 77.200 | G13: 40.225 | H13: 14.300 | I13: 2.79 | J13: 1.79 | K13: 1.93 | L13: 0.93 | M13: 2.79 | O13: 27.200
A14: ='Att. Dairy'!B11 -> 2019-07-06 | B14: ='Att. Dairy'!D11 -> Saturday | C14: ='PS Balance Sheet'!AH11 -> 127 | D14: =D13-'PS Balance Sheet'!AL11 -> 232.200 | E14: =E13-'PS Balance Sheet'!AM11 -> 141.100 | F14: =F13-('PS Balance Sheet'!AN11+'PS Balance Sheet'!AO11+'PS Balance Sheet'!AP11) -> 77.200 | G14: 33.875 | H14: 13.665 | I14: 2.5995 | J14: 1.5995 | K14: 1.8665 | L14: 0.8665 | M14: 2.5995 | O14: 24.660
A15: ='Att. Dairy'!B12 -> 2019-07-07 | B15: ='Att. Dairy'!D12 -> Sunday | C15: ='PS Balance Sheet'!AH12 -> 0 | D15: =D14-'PS Balance Sheet'!AL12 -> 232.200 | E15: =E14-'PS Balance Sheet'!AM12 -> 141.100 | F15: =F14-('PS Balance Sheet'!AN12+'PS Balance Sheet'!AO12+'PS Balance Sheet'!AP12) -> 77.200 | G15: 33.875 | H15: 13.665 | I15: 2.5995 | J15: 1.5995 | K15: 1.8665 | L15: 0.8665 | M15: 2.5995 | O15: 24.660
A16: ='Att. Dairy'!B13 -> 2019-07-08 | B16: ='Att. Dairy'!D13 -> Monday | C16: ='PS Balance Sheet'!AH13 -> 133 | D16: =D15-'PS Balance Sheet'!AL13 -> 218.900 | E16: =E15-'PS Balance Sheet'!AM13 -> 141.100 | F16: =F15-('PS Balance Sheet'!AN13+'PS Balance Sheet'!AO13+'PS Balance Sheet'!AP13) -> 77.200 | G16: 27.225 | H16: 13.000 | I16: 2.4 | J16: 1.4 | K16: 1.8 | L16: 0.8 | M16: 2.4 | O16: 22.000
A17: ='Att. Dairy'!B14 -> 2019-07-09 | B17: ='Att. Dairy'!D14 -> Tuesday | C17: ='PS Balance Sheet'!AH14 -> 0 | D17: =D16-'PS Balance Sheet'!AL14 -> 218.900 | E17: =E16-'PS Balance Sheet'!AM14 -> 141.100 | F17: =F16-('PS Balance Sheet'!AN14+'PS Balance Sheet'!AO14+'PS Balance Sheet'!AP14) -> 77.200 | G17: 27.225 | H17: 13.000 | I17: 2.4 | J17: 1.4 | K17: 1.8 | L17: 0.8 | M17: 2.4 | O17: 22.000
A18: ='Att. Dairy'!B15 -> 2019-07-10 | B18: ='Att. Dairy'!D15 -> Wednesday | C18: ='PS Balance Sheet'!AH15 -> 0 | D18: =D17-'PS Balance Sheet'!AL15 -> 218.900 | E18: =E17-'PS Balance Sheet'!AM15 -> 141.100 | F18: =F17-('PS Balance Sheet'!AN15+'PS Balance Sheet'!AO15+'PS Balance Sheet'!AP15) -> 77.200 | G18: 27.225 | H18: 13.000 | I18: 2.4 | J18: 1.4 | K18: 1.8 | L18: 0.8 | M18: 2.4 | O18: 22.000
A19: ='Att. Dairy'!B16 -> 2019-07-11 | B19: ='Att. Dairy'!D16 -> Thursday | C19: ='PS Balance Sheet'!AH16 -> 0 | D19: =D18-'PS Balance Sheet'!AL16 -> 218.900 | E19: =E18-'PS Balance Sheet'!AM16 -> 141.100 | F19: =F18-('PS Balance Sheet'!AN16+'PS Balance Sheet'!AO16+'PS Balance Sheet'!AP16) -> 77.200 | G19: 27.225 | H19: 13.000 | I19: 2.4 | J19: 1.4 | K19: 1.8 | L19: 0.8 | M19: 2.4 | O19: 22.000
A20: ='Att. Dairy'!B17 -> 2019-07-12 | B20: ='Att. Dairy'!D17 -> Friday | C20: ='PS Balance Sheet'!AH17 -> 0 | D20: =D19-'PS Balance Sheet'!AL17 -> 218.900 | E20: =E19-'PS Balance Sheet'!AM17 -> 141.100 | F20: =F19-('PS Balance Sheet'!AN17+'PS Balance Sheet'!AO17+'PS Balance Sheet'!AP17) -> 77.200 | G20: 27.225 | H20: 13.000 | I20: 2.4 | J20: 1.4 | K20: 1.8 | L20: 0.8 | M20: 2.4 | O20: 22.000
A21: ='Att. Dairy'!B18 -> 2019-07-13 | B21: ='Att. Dairy'!D18 -> Saturday | C21: ='PS Balance Sheet'!AH18 -> 0 | D21: =D20-'PS Balance Sheet'!AL18 -> 218.900 | E21: =E20-'PS Balance Sheet'!AM18 -> 141.100 | F21: =F20-('PS Balance Sheet'!AN18+'PS Balance Sheet'!AO18+'PS Balance Sheet'!AP18) -> 77.200 | G21: 27.225 | H21: 13.000 | I21: 2.4 | J21: 1.4 | K21: 1.8 | L21: 0.8 | M21: 2.4 | O21: 22.000
A22: ='Att. Dairy'!B19 -> 2019-07-14 | B22: ='Att. Dairy'!D19 -> Sunday | C22: ='PS Balance Sheet'!AH19 -> 0 | D22: =D21-'PS Balance Sheet'!AL19 -> 218.900 | E22: =E21-'PS Balance Sheet'!AM19 -> 141.100 | F22: =F21-('PS Balance Sheet'!AN19+'PS Balance Sheet'!AO19+'PS Balance Sheet'!AP19) -> 77.200 | G22: 27.225 | H22: 13.000 | I22: 2.4 | J22: 1.4 | K22: 1.8 | L22: 0.8 | M22: 2.4 | O22: 22.000
A23: ='Att. Dairy'!B20 -> 2019-07-15 | B23: ='Att. Dairy'!D20 -> Monday | C23: ='PS Balance Sheet'!AH20 -> 0 | D23: =D22-'PS Balance Sheet'!AL20 -> 218.900 | E23: =E22-'PS Balance Sheet'!AM20 -> 141.100 | F23: =F22-('PS Balance Sheet'!AN20+'PS Balance Sheet'!AO20+'PS Balance Sheet'!AP20) -> 77.200 | G23: 27.225 | H23: 13.000 | I23: 2.4 | J23: 1.4 | K23: 1.8 | L23: 0.8 | M23: 2.4 | O23: 22.000
A24: ='Att. Dairy'!B21 -> 2019-07-16 | B24: ='Att. Dairy'!D21 -> Tuesday | C24: ='PS Balance Sheet'!AH21 -> 0 | D24: =D23-'PS Balance Sheet'!AL21 -> 218.900 | E24: =E23-'PS Balance Sheet'!AM21 -> 141.100 | F24: =F23-('PS Balance Sheet'!AN21+'PS Balance Sheet'!AO21+'PS Balance Sheet'!AP21) -> 77.200 | G24: 27.225 | H24: 13.000 | I24: 2.4 | J24: 1.4 | K24: 1.8 | L24: 0.8 | M24: 2.4 | O24: 22.000
A25: ='Att. Dairy'!B22 -> 2019-07-17 | B25: ='Att. Dairy'!D22 -> Wednesday | C25: ='PS Balance Sheet'!AH22 -> 0 | D25: =D24-'PS Balance Sheet'!AL22 -> 218.900 | E25: =E24-'PS Balance Sheet'!AM22 -> 141.100 | F25: =F24-('PS Balance Sheet'!AN22+'PS Balance Sheet'!AO22+'PS Balance Sheet'!AP22) -> 77.200 | G25: 27.225 | H25: 13.000 | I25: 2.4 | J25: 1.4 | K25: 1.8 | L25: 0.8 | M25: 2.4 | O25: 22.000
A26: ='Att. Dairy'!B23 -> 2019-07-18 | B26: ='Att. Dairy'!D23 -> Thursday | C26: ='PS Balance Sheet'!AH23 -> 0 | D26: =D25-'PS Balance Sheet'!AL23 -> 218.900 | E26: =E25-'PS Balance Sheet'!AM23 -> 141.100 | F26: =F25-('PS Balance Sheet'!AN23+'PS Balance Sheet'!AO23+'PS Balance Sheet'!AP23) -> 77.200 | G26: 27.225 | H26: 13.000 | I26: 2.4 | J26: 1.4 | K26: 1.8 | L26: 0.8 | M26: 2.4 | O26: 22.000
A27: ='Att. Dairy'!B24 -> 2019-07-19 | B27: ='Att. Dairy'!D24 -> Friday | C27: ='PS Balance Sheet'!AH24 -> 0 | D27: =D26-'PS Balance Sheet'!AL24 -> 218.900 | E27: =E26-'PS Balance Sheet'!AM24 -> 141.100 | F27: =F26-('PS Balance Sheet'!AN24+'PS Balance Sheet'!AO24+'PS Balance Sheet'!AP24) -> 77.200 | G27: 27.225 | H27: 13.000 | I27: 2.4 | J27: 1.4 | K27: 1.8 | L27: 0.8 | M27: 2.4 | O27: 22.000
A28: ='Att. Dairy'!B25 -> 2019-07-20 | B28: ='Att. Dairy'!D25 -> Saturday | C28: ='PS Balance Sheet'!AH25 -> 0 | D28: =D27-'PS Balance Sheet'!AL25 -> 218.900 | E28: =E27-'PS Balance Sheet'!AM25 -> 141.100 | F28: =F27-('PS Balance Sheet'!AN25+'PS Balance Sheet'!AO25+'PS Balance Sheet'!AP25) -> 77.200 | G28: 27.225 | H28: 13.000 | I28: 2.4 | J28: 1.4 | K28: 1.8 | L28: 0.8 | M28: 2.4 | O28: 22.000
A29: ='Att. Dairy'!B26 -> 2019-07-21 | B29: ='Att. Dairy'!D26 -> Sunday | C29: ='PS Balance Sheet'!AH26 -> 0 | D29: =D28-'PS Balance Sheet'!AL26 -> 218.900 | E29: =E28-'PS Balance Sheet'!AM26 -> 141.100 | F29: =F28-('PS Balance Sheet'!AN26+'PS Balance Sheet'!AO26+'PS Balance Sheet'!AP26) -> 77.200 | G29: 27.225 | H29: 13.000 | I29: 2.4 | J29: 1.4 | K29: 1.8 | L29: 0.8 | M29: 2.4 | O29: 22.000
A30: ='Att. Dairy'!B27 -> 2019-07-22 | B30: ='Att. Dairy'!D27 -> Monday | C30: ='PS Balance Sheet'!AH27 -> 0 | D30: =D29-'PS Balance Sheet'!AL27 -> 218.900 | E30: =E29-'PS Balance Sheet'!AM27 -> 141.100 | F30: =F29-('PS Balance Sheet'!AN27+'PS Balance Sheet'!AO27+'PS Balance Sheet'!AP27) -> 77.200 | G30: 27.225 | H30: 13.000 | I30: 2.4 | J30: 1.4 | K30: 1.8 | L30: 0.8 | M30: 2.4 | O30: 22.000
A31: ='Att. Dairy'!B28 -> 2019-07-23 | B31: ='Att. Dairy'!D28 -> Tuesday | C31: ='PS Balance Sheet'!AH28 -> 0 | D31: =D30-'PS Balance Sheet'!AL28 -> 218.900 | E31: =E30-'PS Balance Sheet'!AM28 -> 141.100 | F31: =F30-('PS Balance Sheet'!AN28+'PS Balance Sheet'!AO28+'PS Balance Sheet'!AP28) -> 77.200 | G31: 27.225 | H31: 13.000 | I31: 2.4 | J31: 1.4 | K31: 1.8 | L31: 0.8 | M31: 2.4 | O31: 22.000
A32: ='Att. Dairy'!B29 -> 2019-07-24 | B32: ='Att. Dairy'!D29 -> Wednesday | C32: ='PS Balance Sheet'!AH29 -> 0 | D32: =D31-'PS Balance Sheet'!AL29 -> 218.900 | E32: =E31-'PS Balance Sheet'!AM29 -> 141.100 | F32: =F31-('PS Balance Sheet'!AN29+'PS Balance Sheet'!AO29+'PS Balance Sheet'!AP29) -> 77.200 | G32: 27.225 | H32: 13.000 | I32: 2.4 | J32: 1.4 | K32: 1.8 | L32: 0.8 | M32: 2.4 | O32: 22.000
A33: ='Att. Dairy'!B30 -> 2019-07-25 | B33: ='Att. Dairy'!D30 -> Thursday | C33: ='PS Balance Sheet'!AH30 -> 0 | D33: =D32-'PS Balance Sheet'!AL30 -> 218.900 | E33: =E32-'PS Balance Sheet'!AM30 -> 141.100 | F33: =F32-('PS Balance Sheet'!AN30+'PS Balance Sheet'!AO30+'PS Balance Sheet'!AP30) -> 77.200 | G33: 27.225 | H33: 13.000 | I33: 2.4 | J33: 1.4 | K33: 1.8 | L33: 0.8 | M33: 2.4 | O33: 22.000
A34: ='Att. Dairy'!B31 -> 2019-07-26 | B34: ='Att. Dairy'!D31 -> Friday | C34: ='PS Balance Sheet'!AH31 -> 0 | D34: =D33-'PS Balance Sheet'!AL31 -> 218.900 | E34: =E33-'PS Balance Sheet'!AM31 -> 141.100 | F34: =F33-('PS Balance Sheet'!AN31+'PS Balance Sheet'!AO31+'PS Balance Sheet'!AP31) -> 77.200 | G34: 27.225 | H34: 13.000 | I34: 2.4 | J34: 1.4 | K34: 1.8 | L34: 0.8 | M34: 2.4 | O34: 22.000
A35: ='Att. Dairy'!B32 -> 2019-07-27 | B35: ='Att. Dairy'!D32 -> Saturday | C35: ='PS Balance Sheet'!AH32 -> 0 | D35: =D34-'PS Balance Sheet'!AL32 -> 218.900 | E35: =E34-'PS Balance Sheet'!AM32 -> 141.100 | F35: =F34-('PS Balance Sheet'!AN32+'PS Balance Sheet'!AO32+'PS Balance Sheet'!AP32) -> 77.200 | G35: 27.225 | H35: 13.000 | I35: 2.4 | J35: 1.4 | K35: 1.8 | L35: 0.8 | M35: 2.4 | O35: 22.000
A36: ='Att. Dairy'!B33 -> 2019-07-28 | B36: ='Att. Dairy'!D33 -> Sunday | C36: ='PS Balance Sheet'!AH33 -> 0 | D36: =D35-'PS Balance Sheet'!AL33 -> 218.900 | E36: =E35-'PS Balance Sheet'!AM33 -> 141.100 | F36: =F35-('PS Balance Sheet'!AN33+'PS Balance Sheet'!AO33+'PS Balance Sheet'!AP33) -> 77.200 | G36: 27.225 | H36: 13.000 | I36: 2.4 | J36: 1.4 | K36: 1.8 | L36: 0.8 | M36: 2.4 | O36: 22.000
A37: ='Att. Dairy'!B34 -> 2019-07-29 | B37: ='Att. Dairy'!D34 -> Monday | C37: ='PS Balance Sheet'!AH34 -> 0 | D37: =D36-'PS Balance Sheet'!AL34 -> 218.900 | E37: =E36-'PS Balance Sheet'!AM34 -> 141.100 | F37: =F36-('PS Balance Sheet'!AN34+'PS Balance Sheet'!AO34+'PS Balance Sheet'!AP34) -> 77.200 | G37: 27.225 | H37: 13.000 | I37: 2.4 | J37: 1.4 | K37: 1.8 | L37: 0.8 | M37: 2.4 | O37: 22.000
A38: ='Att. Dairy'!B35 -> 2019-07-30 | B38: ='Att. Dairy'!D35 -> Tuesday | C38: ='PS Balance Sheet'!AH35 -> 0 | D38: =D37-'PS Balance Sheet'!AL35 -> 218.900 | E38: =E37-'PS Balance Sheet'!AM35 -> 141.100 | F38: =F37-('PS Balance Sheet'!AN35+'PS Balance Sheet'!AO35+'PS Balance Sheet'!AP35) -> 77.200 | G38: 27.225 | H38: 13.000 | I38: 2.4 | J38: 1.4 | K38: 1.8 | L38: 0.8 | M38: 2.4 | O38: 22.000
A39: ='Att. Dairy'!B36 -> 2019-07-31 | B39: ='Att. Dairy'!D36 -> Wednesday | C39: ='PS Balance Sheet'!AH36 -> 0 | D39: =D38-'PS Balance Sheet'!AL36 -> 218.900 | E39: =E38-'PS Balance Sheet'!AM36 -> 141.100 | F39: =F38-('PS Balance Sheet'!AN36+'PS Balance Sheet'!AO36+'PS Balance Sheet'!AP36) -> 77.200 | G39: =G38-IF(AND($B39="monday"),C39*BP$13/1000,IF(AND($B39="thursday"),C39*BP$13/2000,IF(AND($B39="saturday"),C39*BP$13/1000,"0"))) -> 27.225 | H39: =H38-IF(AND(C39=""),"",C39*BP$14/1000) -> 13.000 | I39: 2.4 | J39: 1.4 | K39: 1.8 | L39: 0.8 | M39: 2.4 | N39: =SUM(N9:N38) -> 0 | O39: 22.000
C43: izfrfnu jk'ku lQykbZ dh ek=k | L43: mPp izkFkfed d{kk gsrq
A45: fnukad | B45: okj | C45: dqy ykHkkfUor | D45: xsagq | E45: pkoy | F45: nky | G45: lCth | H45: rsy | I45: fephZ | J45: /kfu;k | K45: gYnh | L45: thjk | M45: ued | N45: ÝqV | O45: Gas
A46: izkjfEHkd 'ks"k | D46: ='Dal & Khadhiyan master'!G7 -> 300.000 | E46: ='Dal & Khadhiyan master'!G8 -> 200.000 | F46: ='Dal & Khadhiyan master'!G9+'Dal & Khadhiyan master'!G10+'Dal & Khadhiyan master'!G11 -> 120.000 | G46: 45.000 | H46: 15.000 | I46: 3.000 | J46: 2.000 | K46: 2.000 | L46: 1.000 | M46: 3.000 | O46: 30 | P46: KG
A47: ='Att. Dairy'!B6 -> 2019-07-01 | B47: ='Att. Dairy'!D6 -> Monday | C47: ='UPS balance Sheet'!AH6 -> 55 | D47: =D46-'UPS balance Sheet'!AL6 -> 291.750 | E47: =E46-'UPS balance Sheet'!AM6 -> 200.000 | F47: =F46-('UPS balance Sheet'!AN6+'UPS balance Sheet'!AO6+'UPS balance Sheet'!AP6) -> 118.350 | G47: =G46-IF(AND($B47="monday"),C47*0.075,IF(AND($B47="thursday"),C47*0.038,IF(AND($B47="saturday"),C47*0.075,"0"))) -> 40.875 | H47: =H46-IF(AND(C47=""),"",C47*0.0075) -> 14.588 | I47: =I46-IF(AND(C47=""),"",C47*0.0015) -> 2.918 | J47: =J46-IF(AND(C47=""),"",C47*0.0015) -> 1.918 | K47: =K46-IF(AND(C47=""),"",C47*0.0005) -> 1.973 | L47: =L46-IF(AND(C47=""),"",C47*0.0005) -> 0.973 | M47: =M46-IF(AND(C47=""),"",C47*0.0015) -> 2.918 | O47: =O46-IF(AND($O$45="Fire Woods"),C47*0.2,IF(AND($O$45="Gas"),C47*0.02,"")) -> 28.900
A48: ='Att. Dairy'!B7 -> 2019-07-02 | B48: ='Att. Dairy'!D7 -> Tuesday | C48: ='UPS balance Sheet'!AH7 -> 0 | D48: =D47-'UPS balance Sheet'!AL7 -> 291.750 | E48: =E47-'UPS balance Sheet'!AM7 -> 200.000 | F48: =F47-('UPS balance Sheet'!AN7+'UPS balance Sheet'!AO7+'UPS balance Sheet'!AP7) -> 118.350 | G48: =G47-IF(AND($B48="monday"),C48*0.075,IF(AND($B48="thursday"),C48*0.038,IF(AND($B48="saturday"),C48*0.075,"0"))) -> 40.875 | H48: =H47-IF(AND(C48=""),"",C48*0.0075) -> 14.588 | I48: =I47-IF(AND(C48=""),"",C48*0.0015) -> 2.918 | J48: =J47-IF(AND(C48=""),"",C48*0.0015) -> 1.918 | K48: =K47-IF(AND(C48=""),"",C48*0.0005) -> 1.973 | L48: =L47-IF(AND(C48=""),"",C48*0.0005) -> 0.973 | M48: =M47-IF(AND(C48=""),"",C48*0.0015) -> 2.918 | O48: =O47-IF(AND($O$45="Fire Woods"),C48*0.2,IF(AND($O$45="Gas"),C48*0.02,"")) -> 28.900
A49: ='Att. Dairy'!B8 -> 2019-07-03 | B49: ='Att. Dairy'!D8 -> Wednesday | C49: ='UPS balance Sheet'!AH8 -> 0 | D49: =D48-'UPS balance Sheet'!AL8 -> 291.750 | E49: =E48-'UPS balance Sheet'!AM8 -> 200.000 | F49: =F48-('UPS balance Sheet'!AN8+'UPS balance Sheet'!AO8+'UPS balance Sheet'!AP8) -> 118.350 | G49: 40.875 | H49: 14.588 | I49: 2.918 | J49: 1.918 | K49: 1.973 | L49: 0.973 | M49: 2.918 | O49: 28.900
A50: ='Att. Dairy'!B9 -> 2019-07-04 | B50: ='Att. Dairy'!D9 -> Thursday | C50: ='UPS balance Sheet'!AH9 -> 93 | D50: =D49-'UPS balance Sheet'!AL9 -> 291.750 | E50: =E49-'UPS balance Sheet'!AM9 -> 186.050 | F50: =F49-('UPS balance Sheet'!AN9+'UPS balance Sheet'!AO9+'UPS balance Sheet'!AP9) -> 115.560 | G50: 37.341 | H50: 13.890 | I50: 2.778 | J50: 1.778 | K50: 1.926 | L50: 0.926 | M50: 2.778 | O50: 27.040
A51: ='Att. Dairy'!B10 -> 2019-07-05 | B51: ='Att. Dairy'!D10 -> Friday | C51: ='UPS balance Sheet'!AH10 -> 0 | D51: =D50-'UPS balance Sheet'!AL10 -> 291.750 | E51: =E50-'UPS balance Sheet'!AM10 -> 186.050 | F51: =F50-('UPS balance Sheet'!AN10+'UPS balance Sheet'!AO10+'UPS balance Sheet'!AP10) -> 115.560 | G51: 37.341 | H51: 13.890 | I51: 2.778 | J51: 1.778 | K51: 1.926 | L51: 0.926 | M51: 2.778 | O51: 27.040
A52: ='Att. Dairy'!B11 -> 2019-07-06 | B52: ='Att. Dairy'!D11 -> Saturday | C52: ='UPS balance Sheet'!AH11 -> 131 | D52: =D51-'UPS balance Sheet'!AL11 -> 272.100 | E52: =E51-'UPS balance Sheet'!AM11 -> 186.050 | F52: =F51-('UPS balance Sheet'!AN11+'UPS balance Sheet'!AO11+'UPS balance Sheet'!AP11) -> 115.560 | G52: 27.516 | H52: 12.908 | I52: 2.582 | J52: 1.582 | K52: 1.861 | L52: 0.861 | M52: 2.582 | O52: 24.420
A53: ='Att. Dairy'!B12 -> 2019-07-07 | B53: ='Att. Dairy'!D12 -> Sunday | C53: ='UPS balance Sheet'!AH12 -> 0 | D53: =D52-'UPS balance Sheet'!AL12 -> 272.100 | E53: =E52-'UPS balance Sheet'!AM12 -> 186.050 | F53: =F52-('UPS balance Sheet'!AN12+'UPS balance Sheet'!AO12+'UPS balance Sheet'!AP12) -> 115.560 | G53: 27.516 | H53: 12.908 | I53: 2.582 | J53: 1.582 | K53: 1.861 | L53: 0.861 | M53: 2.582 | O53: 24.420
A54: ='Att. Dairy'!B13 -> 2019-07-08 | B54: ='Att. Dairy'!D13 -> Monday | C54: ='UPS balance Sheet'!AH13 -> 137 | D54: =D53-'UPS balance Sheet'!AL13 -> 251.550 | E54: =E53-'UPS balance Sheet'!AM13 -> 186.050 | F54: =F53-('UPS balance Sheet'!AN13+'UPS balance Sheet'!AO13+'UPS balance Sheet'!AP13) -> 115.560 | G54: 17.241 | H54: 11.880 | I54: 2.376 | J54: 1.376 | K54: 1.792 | L54: 0.792 | M54: 2.376 | O54: 21.680
A55: ='Att. Dairy'!B14 -> 2019-07-09 | B55: ='Att. Dairy'!D14 -> Tuesday | C55: ='UPS balance Sheet'!AH14 -> 0 | D55: =D54-'UPS balance Sheet'!AL14 -> 251.550 | E55: =E54-'UPS balance Sheet'!AM14 -> 186.050 | F55: =F54-('UPS balance Sheet'!AN14+'UPS balance Sheet'!AO14+'UPS balance Sheet'!AP14) -> 115.560 | G55: 17.241 | H55: 11.880 | I55: 2.376 | J55: 1.376 | K55: 1.792 | L55: 0.792 | M55: 2.376 | O55: 21.680
A56: ='Att. Dairy'!B15 -> 2019-07-10 | B56: ='Att. Dairy'!D15 -> Wednesday | C56: ='UPS balance Sheet'!AH15 -> 0 | D56: =D55-'UPS balance Sheet'!AL15 -> 251.550 | E56: =E55-'UPS balance Sheet'!AM15 -> 186.050 | F56: =F55-('UPS balance Sheet'!AN15+'UPS balance Sheet'!AO15+'UPS balance Sheet'!AP15) -> 115.560 | G56: 17.241 | H56: 11.880 | I56: 2.376 | J56: 1.376 | K56: 1.792 | L56: 0.792 | M56: 2.376 | O56: 21.680
A57: ='Att. Dairy'!B16 -> 2019-07-11 | B57: ='Att. Dairy'!D16 -> Thursday | C57: ='UPS balance Sheet'!AH16 -> 0 | D57: =D56-'UPS balance Sheet'!AL16 -> 251.550 | E57: =E56-'UPS balance Sheet'!AM16 -> 186.050 | F57: =F56-('UPS balance Sheet'!AN16+'UPS balance Sheet'!AO16+'UPS balance Sheet'!AP16) -> 115.560 | G57: 17.241 | H57: 11.880 | I57: 2.376 | J57: 1.376 | K57: 1.792 | L57: 0.792 | M57: 2.376 | O57: 21.680
A58: ='Att. Dairy'!B17 -> 2019-07-12 | B58: ='Att. Dairy'!D17 -> Friday | C58: ='UPS balance Sheet'!AH17 -> 0 | D58: =D57-'UPS balance Sheet'!AL17 -> 251.550 | E58: =E57-'UPS balance Sheet'!AM17 -> 186.050 | F58: =F57-('UPS balance Sheet'!AN17+'UPS balance Sheet'!AO17+'UPS balance Sheet'!AP17) -> 115.560 | G58: 17.241 | H58: 11.880 | I58: 2.376 | J58: 1.376 | K58: 1.792 | L58: 0.792 | M58: 2.376 | O58: 21.680
A59: ='Att. Dairy'!B18 -> 2019-07-13 | B59: ='Att. Dairy'!D18 -> Saturday | C59: ='UPS balance Sheet'!AH18 -> 0 | D59: =D58-'UPS balance Sheet'!AL18 -> 251.550 | E59: =E58-'UPS balance Sheet'!AM18 -> 186.050 | F59: =F58-('UPS balance Sheet'!AN18+'UPS balance Sheet'!AO18+'UPS balance Sheet'!AP18) -> 115.560 | G59: 17.241 | H59: 11.880 | I59: 2.376 | J59: 1.376 | K59: 1.792 | L59: 0.792 | M59: 2.376 | O59: 21.680
A60: ='Att. Dairy'!B19 -> 2019-07-14 | B60: ='Att. Dairy'!D19 -> Sunday | C60: ='UPS balance Sheet'!AH19 -> 0 | D60: =D59-'UPS balance Sheet'!AL19 -> 251.550 | E60: =E59-'UPS balance Sheet'!AM19 -> 186.050 | F60: =F59-('UPS balance Sheet'!AN19+'UPS balance Sheet'!AO19+'UPS balance Sheet'!AP19) -> 115.560 | G60: 17.241 | H60: 11.880 | I60: 2.376 | J60: 1.376 | K60: 1.792 | L60: 0.792 | M60: 2.376 | O60: 21.680
A61: ='Att. Dairy'!B20 -> 2019-07-15 | B61: ='Att. Dairy'!D20 -> Monday | C61: ='UPS balance Sheet'!AH20 -> 0 | D61: =D60-'UPS balance Sheet'!AL20 -> 251.550 | E61: =E60-'UPS balance Sheet'!AM20 -> 186.050 | F61: =F60-('UPS balance Sheet'!AN20+'UPS balance Sheet'!AO20+'UPS balance Sheet'!AP20) -> 115.560 | G61: 17.241 | H61: 11.880 | I61: 2.376 | J61: 1.376 | K61: 1.792 | L61: 0.792 | M61: 2.376 | O61: 21.680
A62: ='Att. Dairy'!B21 -> 2019-07-16 | B62: ='Att. Dairy'!D21 -> Tuesday | C62: ='UPS balance Sheet'!AH21 -> 0 | D62: =D61-'UPS balance Sheet'!AL21 -> 251.550 | E62: =E61-'UPS balance Sheet'!AM21 -> 186.050 | F62: =F61-('UPS balance Sheet'!AN21+'UPS balance Sheet'!AO21+'UPS balance Sheet'!AP21) -> 115.560 | G62: 17.241 | H62: 11.880 | I62: 2.376 | J62: 1.376 | K62: 1.792 | L62: 0.792 | M62: 2.376 | O62: 21.680
A63: ='Att. Dairy'!B22 -> 2019-07-17 | B63: ='Att. Dairy'!D22 -> Wednesday | C63: ='UPS balance Sheet'!AH22 -> 0 | D63: =D62-'UPS balance Sheet'!AL22 -> 251.550 | E63: =E62-'UPS balance Sheet'!AM22 -> 186.050 | F63: =F62-('UPS balance Sheet'!AN22+'UPS balance Sheet'!AO22+'UPS balance Sheet'!AP22) -> 115.560 | G63: 17.241 | H63: 11.880 | I63: 2.376 | J63: 1.376 | K63: 1.792 | L63: 0.792 | M63: 2.376 | O63: 21.680
A64: ='Att. Dairy'!B23 -> 2019-07-18 | B64: ='Att. Dairy'!D23 -> Thursday | C64: ='UPS balance Sheet'!AH23 -> 0 | D64: =D63-'UPS balance Sheet'!AL23 -> 251.550 | E64: =E63-'UPS balance Sheet'!AM23 -> 186.050 | F64: =F63-('UPS balance Sheet'!AN23+'UPS balance Sheet'!AO23+'UPS balance Sheet'!AP23) -> 115.560 | G64: 17.241 | H64: 11.880 | I64: 2.376 | J64: 1.376 | K64: 1.792 | L64: 0.792 | M64: 2.376 | O64: 21.680
A65: ='Att. Dairy'!B24 -> 2019-07-19 | B65: ='Att. Dairy'!D24 -> Friday | C65: ='UPS balance Sheet'!AH24 -> 0 | D65: =D64-'UPS balance Sheet'!AL24 -> 251.550 | E65: =E64-'UPS balance Sheet'!AM24 -> 186.050 | F65: =F64-('UPS balance Sheet'!AN24+'UPS balance Sheet'!AO24+'UPS balance Sheet'!AP24) -> 115.560 | G65: 17.241 | H65: 11.880 | I65: 2.376 | J65: 1.376 | K65: 1.792 | L65: 0.792 | M65: 2.376 | O65: 21.680
A66: ='Att. Dairy'!B25 -> 2019-07-20 | B66: ='Att. Dairy'!D25 -> Saturday | C66: ='UPS balance Sheet'!AH25 -> 0 | D66: =D65-'UPS balance Sheet'!AL25 -> 251.550 | E66: =E65-'UPS balance Sheet'!AM25 -> 186.050 | F66: =F65-('UPS balance Sheet'!AN25+'UPS balance Sheet'!AO25+'UPS balance Sheet'!AP25) -> 115.560 | G66: 17.241 | H66: 11.880 | I66: 2.376 | J66: 1.376 | K66: 1.792 | L66: 0.792 | M66: 2.376 | O66: 21.680
A67: ='Att. Dairy'!B26 -> 2019-07-21 | B67: ='Att. Dairy'!D26 -> Sunday | C67: ='UPS balance Sheet'!AH26 -> 0 | D67: =D66-'UPS balance Sheet'!AL26 -> 251.550 | E67: =E66-'UPS balance Sheet'!AM26 -> 186.050 | F67: =F66-('UPS balance Sheet'!AN26+'UPS balance Sheet'!AO26+'UPS balance Sheet'!AP26) -> 115.560 | G67: 17.241 | H67: 11.880 | I67: 2.376 | J67: 1.376 | K67: 1.792 | L67: 0.792 | M67: 2.376 | O67: 21.680
A68: ='Att. Dairy'!B27 -> 2019-07-22 | B68: ='Att. Dairy'!D27 -> Monday | C68: ='UPS balance Sheet'!AH27 -> 0 | D68: =D67-'UPS balance Sheet'!AL27 -> 251.550 | E68: =E67-'UPS balance Sheet'!AM27 -> 186.050 | F68: =F67-('UPS balance Sheet'!AN27+'UPS balance Sheet'!AO27+'UPS balance Sheet'!AP27) -> 115.560 | G68: 17.241 | H68: 11.880 | I68: 2.376 | J68: 1.376 | K68: 1.792 | L68: 0.792 | M68: 2.376 | O68: 21.680
A69: ='Att. Dairy'!B28 -> 2019-07-23 | B69: ='Att. Dairy'!D28 -> Tuesday | C69: ='UPS balance Sheet'!AH28 -> 0 | D69: =D68-'UPS balance Sheet'!AL28 -> 251.550 | E69: =E68-'UPS balance Sheet'!AM28 -> 186.050 | F69: =F68-('UPS balance Sheet'!AN28+'UPS balance Sheet'!AO28+'UPS balance Sheet'!AP28) -> 115.560 | G69: 17.241 | H69: 11.880 | I69: 2.376 | J69: 1.376 | K69: 1.792 | L69: 0.792 | M69: 2.376 | O69: 21.680
A70: ='Att. Dairy'!B29 -> 2019-07-24 | B70: ='Att. Dairy'!D29 -> Wednesday | C70: ='UPS balance Sheet'!AH29 -> 0 | D70: =D69-'UPS balance Sheet'!AL29 -> 251.550 | E70: =E69-'UPS balance Sheet'!AM29 -> 186.050 | F70: =F69-('UPS balance Sheet'!AN29+'UPS balance Sheet'!AO29+'UPS balance Sheet'!AP29) -> 115.560 | G70: 17.241 | H70: 11.880 | I70: 2.376 | J70: 1.376 | K70: 1.792 | L70: 0.792 | M70: 2.376 | O70: 21.680
A71: ='Att. Dairy'!B30 -> 2019-07-25 | B71: ='Att. Dairy'!D30 -> Thursday | C71: ='UPS balance Sheet'!AH30 -> 0 | D71: =D70-'UPS balance Sheet'!AL30 -> 251.550 | E71: =E70-'UPS balance Sheet'!AM30 -> 186.050 | F71: =F70-('UPS balance Sheet'!AN30+'UPS balance Sheet'!AO30+'UPS balance Sheet'!AP30) -> 115.560 | G71: 17.241 | H71: 11.880 | I71: 2.376 | J71: 1.376 | K71: 1.792 | L71: 0.792 | M71: 2.376 | O71: 21.680
A72: ='Att. Dairy'!B31 -> 2019-07-26 | B72: ='Att. Dairy'!D31 -> Friday | C72: ='UPS balance Sheet'!AH31 -> 0 | D72: =D71-'UPS balance Sheet'!AL31 -> 251.550 | E72: =E71-'UPS balance Sheet'!AM31 -> 186.050 | F72: =F71-('UPS balance Sheet'!AN31+'UPS balance Sheet'!AO31+'UPS balance Sheet'!AP31) -> 115.560 | G72: 17.241 | H72: 11.880 | I72: 2.376 | J72: 1.376 | K72: 1.792 | L72: 0.792 | M72: 2.376 | O72: 21.680
A73: ='Att. Dairy'!B32 -> 2019-07-27 | B73: ='Att. Dairy'!D32 -> Saturday | C73: ='UPS balance Sheet'!AH32 -> 0 | D73: =D72-'UPS balance Sheet'!AL32 -> 251.550 | E73: =E72-'UPS balance Sheet'!AM32 -> 186.050 | F73: =F72-('UPS balance Sheet'!AN32+'UPS balance Sheet'!AO32+'UPS balance Sheet'!AP32) -> 115.560 | G73: 17.241 | H73: 11.880 | I73: 2.376 | J73: 1.376 | K73: 1.792 | L73: 0.792 | M73: 2.376 | O73: 21.680
A74: ='Att. Dairy'!B33 -> 2019-07-28 | B74: ='Att. Dairy'!D33 -> Sunday | C74: ='UPS balance Sheet'!AH33 -> 0 | D74: =D73-'UPS balance Sheet'!AL33 -> 251.550 | E74: =E73-'UPS balance Sheet'!AM33 -> 186.050 | F74: =F73-('UPS balance Sheet'!AN33+'UPS balance Sheet'!AO33+'UPS balance Sheet'!AP33) -> 115.560 | G74: 17.241 | H74: 11.880 | I74: 2.376 | J74: 1.376 | K74: 1.792 | L74: 0.792 | M74: 2.376 | O74: 21.680
A75: ='Att. Dairy'!B34 -> 2019-07-29 | B75: ='Att. Dairy'!D34 -> Monday | C75: ='UPS balance Sheet'!AH34 -> 0 | D75: =D74-'UPS balance Sheet'!AL34 -> 251.550 | E75: =E74-'UPS balance Sheet'!AM34 -> 186.050 | F75: =F74-('UPS balance Sheet'!AN34+'UPS balance Sheet'!AO34+'UPS balance Sheet'!AP34) -> 115.560 | G75: 17.241 | H75: 11.880 | I75: 2.376 | J75: 1.376 | K75: 1.792 | L75: 0.792 | M75: 2.376 | O75: 21.680
A76: ='Att. Dairy'!B35 -> 2019-07-30 | B76: ='Att. Dairy'!D35 -> Tuesday | C76: ='UPS balance Sheet'!AH35 -> 0 | D76: =D75-'UPS balance Sheet'!AL35 -> 251.550 | E76: =E75-'UPS balance Sheet'!AM35 -> 186.050 | F76: =F75-('UPS balance Sheet'!AN35+'UPS balance Sheet'!AO35+'UPS balance Sheet'!AP35) -> 115.560 | G76: 17.241 | H76: 11.880 | I76: 2.376 | J76: 1.376 | K76: 1.792 | L76: 0.792 | M76: 2.376 | O76: 21.680
A77: ='Att. Dairy'!B36 -> 2019-07-31 | B77: ='Att. Dairy'!D36 -> Wednesday | C77: ='UPS balance Sheet'!AH36 -> 0 | D77: =D76-'UPS balance Sheet'!AL36 -> 251.550 | E77: =E76-'UPS balance Sheet'!AM36 -> 186.050 | F77: =F76-('UPS balance Sheet'!AN36+'UPS balance Sheet'!AO36+'UPS balance Sheet'!AP36) -> 115.560 | G77: 17.241 | H77: 11.880 | I77: 2.376 | J77: 1.376 | K77: 1.792 | L77: 0.792 | M77: 2.376 | N77: =SUM(N47:N76) -> 0 | O77: 21.680

Sheet Bill generate
A1: dk;kZy; iz-@v- | C1: ='MASTER DATA'!C3 -> jktdh; vkn'kZ mPp ek/;fed fo|ky; bUnjokM+k ] ia-l-& jkuh ] ikyh
D2: pkyw ekg esa LVkWd o fcy fooj.k
A4: feM Ms ehy dk¸kZØe
A5: vuqekfur fcy
A6: Month | E6: ='MASTER DATA'!J4 -> tqykbZ&2019
D7: pkyw ekg esa ykHkkfUor fo|kFkhZ
B8: çkFkfed | D8: ='PS Balance Sheet'!AH37 -> 400
B9: mPp çkFkfed | D9: ='UPS balance Sheet'!AH37 -> 416
B10: jk'ku lkexzh vuqekfur ek=k ¼fdyksxzke esa ½
D11: çkFkfed | F11: mPp çkFkfed | H11: dqy ek=k
B12: lCth | D12: =Stock!G8-Stock!G39 -> 17.775 | F12: =Stock!G46-Stock!G77 -> 27.759 | H12: =D12+F12 -> 45.534
B13: rsy | D13: =Stock!H8-Stock!H39 -> 2.000 | F13: =Stock!H46-Stock!H77 -> 3.120 | H13: =D13+F13 -> 5.120
A14: ekg dh izkjfEHkd 'ks"k jkf'k | F14: ekg ds nkSjku izkIr jkf'k
A15: 1 | B15: çkFkfed | D15: ='Dal & Khadhiyan master'!E37 -> 10000.00 | E15: :Ik, | F15: çkFkfed | H15: ='Dal & Khadhiyan master'!E38 -> 15000.00 | J15: :Ik,
A16: 2 | B16: mPPk çkFkfed | D16: ='Dal & Khadhiyan master'!G37 -> 15000.00 | E16: :Ik, | F16: mPPk çkFkfed | H16: ='Dal & Khadhiyan master'!G38 -> 20000.00 | J16: :Ik,
D17: ekg ds nkSjku [kpZ jkf'k :Ik, ¼estimate Bill½
B18: lkexzh | D18: çkFkfed | G18: mPp çkFkfed
A19: 1- | B19: ydMh @ xSal | D19: ='PS Balance Sheet'!AV37*10/100 -> 156.22 | G19: ='UPS balance Sheet'!AV37*10/100 -> 242.55 | J19: :Ik,
A20: 2- | B20: xsagw filkbZ | D20: ='PS Balance Sheet'!AL37*2.5 -> 77.75 | G20: ='UPS balance Sheet'!AL37*2.5 -> 121.13 | J20: :Ik,
A21: 3 | B21: Qy | D21: ='PS Balance Sheet'!AV37*15/100 -> 234.33 | G21: ='UPS balance Sheet'!AV37*15/100 -> 363.82 | J21: :Ik,
A22: 4 | B22: lCth | D22: ='PS Balance Sheet'!AV37*30/100 -> 468.66 | G22: ='UPS balance Sheet'!AV37*30/100 -> 727.64 | J22: :Ik,
A23: 5 | B23: fdjk.kk jk'ku | D23: ='PS Balance Sheet'!AV37-D19-D20-D21-D22 -> 625.24 | G23: ='UPS balance Sheet'!AV37-G19-G20-G21-G22 -> 970.34 | J23: :Ik,
B24: dqy vuqekfur jkf'k | D24: =SUM(D19:F23) -> 1562.20 | G24: =SUM(G19:I23) -> 2425.48 | J24: :Ik,
A25: ekg ds vUr esa 'ks"k jkf'k
A26: 1 | B26: çkFkfed | D26: =D15+H15-D24 -> 23437.80 | J26: :Ik,
A27: 2 | B27: mPp çkFkfed | D27: =D16+H16-G24 -> 32574.52 | J27: :Ik,
B28: vUuiw.kkZ nqX/k ;kstuk gsrw jkf'k
A29: 1 | B29: çkFkfed | D29: ='Milk master'!E11 -> 6500.00 | H29: :Ik,
A30: 2 | B30: m çk | D30: ='Milk master'!G11 -> 9000.00 | H30: :Ik,
A31: 3 | B31: ;ksx | D31: =D29+D30 -> 15500.00 | H31: :Ik,
B32: vUuiw.kkZ nqX/k ;kstuk esa ekg ds vUr esa 'ks"k jkf'k
D33: çkFkfed | F33: mPp çkFkfed | H33: dqy 'ks"k jkf'k
B34: ekg esa [kpZ jkf'k | D34: ='PS Balance Sheet'!AW37 -> 2262.75 | F34: ='UPS balance Sheet'!AW37 -> 4116.00 | H34: =D34+F34 -> 6378.75
B35: ekg ds vUr esa 'ks"k | D35: ='Milk master'!E13 -> 4237.25 | F35: ='Milk master'!G13 -> 4884.00 | H35: =F35+D35 -> 9121.25
B36: nky dk LVkWd
B37: nky LVkWd | D37: çkFkfed | F37: mPp çkFkfed | H37: dqy ek=k
B38: ekg dk izkj- 'ks"k | D38: =Stock!F8 -> 80 | F38: =Stock!F46 -> 120 | H38: =D38+F38 -> 200
B39: ekg esa [kpZ nky | D39: ='Dal Report'!AE9+'Dal Report'!AF9+'Dal Report'!AG9 -> 2.8 | F39: ='Dal Report'!AH9+'Dal Report'!AI9+'Dal Report'!AJ9 -> 4.44 | H39: =D39+F39 -> 7.24
B40: ekg ds vUr esa 'ks"k | D40: =Stock!F39 -> 77.20 | F40: =Stock!F77 -> 115.56 | H40: =D40+F40 -> 192.76
